Organisation Code,Organisation Label,Effective Date,Organisational Unit,Service Division Label,Category Internal Name,Purpose,Detailed Expenditure Code,Payment Date,TransactionNumber,Irrecoverable VAT Amount,Amount,Capital Or Revenue,Benificiary Name,Procurement Card
Http://opendatacommunities.org/id/metropolitan-district-council/leeds,Leeds City Council,31/10/2015,Central & Corporate,Commercial Services Trading Services,Supplies and Services,Operational Materials,205,13-Oct-2015,1510-00001,0.00,81.52,R,A & A Electrical Distributors Ltd,No
Http://opendatacommunities.org/id/metropolitan-district-council/leeds,Leeds City Council,31/10/2015,Central & Corporate,Commercial Services Trading Services,Supplies and Services,Operational Materials,205,13-Oct-2015,1510-00002,0.00,23.18,R,A & A Electrical Distributors Ltd,No
Http://opendatacommunities.org/id/metropolitan-district-council/leeds,Leeds City Council,31/10/2015,Central & Corporate,Commercial Services Trading Services,Supplies and Services,Operational Materials,205,19-Oct-2015,1510-00003,0.00,57.74,R,A & A Electrical Distributors Ltd,No
Http://opendatacommunities.org/id/metropolitan-district-council/leeds,Leeds City Council,31/10/2015,Central & Corporate,Commercial Services Trading Services,Supplies and Services,Operational Materials,205,23-Oct-2015,1510-00004,0.00,76.60,R,A & A Electrical Distributors Ltd,No
Http://opendatacommunities.org/id/metropolitan-district-council/leeds,Leeds City Council,31/10/2015,Environment & Housing,Environmental Health,Capital,Construction,3,09-Oct-2015,1510-00005,0.00,30502.13,C,A & P Crontractors Ltd,No
Http://opendatacommunities.org/id/metropolitan-district-council/leeds,Leeds City Council,31/10/2015,Central & Corporate,Commercial Services Trading Services,Supplies and Services,Operational Materials,205,13-Oct-2015,1510-00006,0.00,25.49,R,A Andrews & Sons (Marbles & Tiles),No
Http://opendatacommunities.org/id/metropolitan-district-council/leeds,Leeds City Council,31/10/2015,Central & Corporate,Commercial Services Trading Services,Supplies and Services,Operational Materials,205,13-Oct-2015,1510-00007,0.00,4.17,R,A Andrews & Sons (Marbles & Tiles),No
Http://opendatacommunities.org/id/metropolitan-district-council/leeds,Leeds City Council,31/10/2015,Central & Corporate,Commercial Services Trading Services,Supplies and Services,Operational Materials,205,21-Oct-2015,1510-00008,0.00,25.45,R,A Andrews & Sons (Marbles & Tiles),No
Http://opendatacommunities.org/id/metropolitan-district-council/leeds,Leeds City Council,31/10/2015,Central & Corporate,Commercial Services Trading Services,Supplies and Services,Operational Materials,205,21-Oct-2015,1510-00009,0.00,5.74,R,A Andrews & Sons (Marbles & Tiles),No
Http://opendatacommunities.org/id/metropolitan-district-council/leeds,Leeds City Council,31/10/2015,Central & Corporate,Commercial Services Trading Services,Supplies and Services,Operational Materials,205,21-Oct-2015,1510-00010,0.00,50.16,R,A Andrews & Sons (Marbles & Tiles),No
Http://opendatacommunities.org/id/metropolitan-district-council/leeds,Leeds City Council,31/10/2015,City Development,Libraries  Arts & Heritage,Supplies and Services,Bought In Professional Services,277,09-Oct-2015,1510-00011,0.00,120.00,R,A B Jones,No
Http://opendatacommunities.org/id/metropolitan-district-council/leeds,Leeds City Council,31/10/2015,City Development,Libraries  Arts & Heritage  ,Supplies and Services,Operational Materials,205,28-Sep-2015,1510-00012,0.00,235.83,R,A Bentley Cushions,Yes
Http://opendatacommunities.org/id/metropolitan-district-council/leeds,Leeds City Council,31/10/2015,Childrens Services,Learning Skills & Universal,Supplies and Services,Training Allowances,257,01-Oct-2015,1510-00013,0.00,248.19,R,REDACTED PERSONAL DATA,No
Http://opendatacommunities.org/id/metropolitan-district-council/leeds,Leeds City Council,31/10/2015,Childrens Services,Learning Skills & Universal,Supplies and Services,Training Allowances,257,09-Oct-2015,1510-00014,0.00,248.19,R,REDACTED PERSONAL DATA,No
Http://opendatacommunities.org/id/metropolitan-district-council/leeds,Leeds City Council,31/10/2015,City Development,Libraries  Arts & Heritage,Supplies and Services,Operational Materials,205,22-Oct-2015,1510-00015,0.00,290.75,R,A C Entertainment Technologies Ltd,No
Http://opendatacommunities.org/id/metropolitan-district-council/leeds,Leeds City Council,31/10/2015,City Development,Libraries  Arts & Heritage,Supplies and Services,Operational Materials,205,22-Oct-2015,1510-00016,0.00,227.46,R,A C Entertainment Technologies Ltd,No
Http://opendatacommunities.org/id/metropolitan-district-council/leeds,Leeds City Council,31/10/2015,Environment & Housing,Parks and Countryside,Supplies and Services,Bought In Professional Services,277,19-Oct-2015,1510-00017,0.00,2586.44,R,REDACTED COMMERCIAL CONFIDENTIALITY,No
Http://opendatacommunities.org/id/metropolitan-district-council/leeds,Leeds City Council,31/10/2015,Civic Enterprise Leeds,Facilities Management,Supplies and Services,Office Furniture & Equipment,201,02-Oct-2015,1510-00018,0.00,338.00,R,A D Smith,No
Http://opendatacommunities.org/id/metropolitan-district-council/leeds,Leeds City Council,31/10/2015,Environment & Housing,Housing Leeds Service,Capital,Other Costs,7,28-Oct-2015,1510-00019,0.00,250.00,C,REDACTED PERSONAL DATA,No
Http://opendatacommunities.org/id/metropolitan-district-council/leeds,Leeds City Council,31/10/2015,Childrens Services,Safeguarding Targeted & Specialist,Transfer Payments,Leaving Care Allowances,634,01-Oct-2015,1510-00020,0.00,915.23,R,REDACTED PERSONAL DATA,No
Http://opendatacommunities.org/id/metropolitan-district-council/leeds,Leeds City Council,31/10/2015,Childrens Services,Safeguarding Targeted & Specialist,Transfer Payments,Leaving Care Allowances,634,08-Oct-2015,1510-00021,0.00,527.80,R,REDACTED PERSONAL DATA,No
Http://opendatacommunities.org/id/metropolitan-district-council/leeds,Leeds City Council,31/10/2015,Childrens Services,Learning Skills & Universal,Third Party Payments,Services Rendered By Voluntary Sector,505,28-Oct-2015,1510-00022,0.00,850.83,R,A E Speight,No
Http://opendatacommunities.org/id/metropolitan-district-council/leeds,Leeds City Council,31/10/2015,Childrens Services,Safeguarding Targeted & Specialist,Supplies and Services,General Amenity For Clients/Residents,285,15-Oct-2015,1510-00023,0.00,20.00,R,REDACTED PERSONAL DATA,No
Http://opendatacommunities.org/id/metropolitan-district-council/leeds,Leeds City Council,31/10/2015,Childrens Services,Safeguarding Targeted & Specialist,Transport,Public Transport Expenses,310,15-Oct-2015,1510-00024,0.00,14.00,R,REDACTED PERSONAL DATA,No
Http://opendatacommunities.org/id/metropolitan-district-council/leeds,Leeds City Council,31/10/2015,Environment & Housing,Housing Leeds Service,Capital,Other Costs,7,15-Oct-2015,1510-00025,0.00,260.00,C,REDACTED PERSONAL DATA,No
Http://opendatacommunities.org/id/metropolitan-district-council/leeds,Leeds City Council,31/10/2015,Childrens Services,Learning Skills & Universal,Third Party Payments,Services Rendered By Other Organisations,511,28-Oct-2015,1510-00026,0.00,12.23,R,A Hayes,No
Http://opendatacommunities.org/id/metropolitan-district-council/leeds,Leeds City Council,31/10/2015,City Development,Recreation,Supplies and Services,Operational Furniture And Equipment,203,15-Oct-2015,1510-00027,0.00,57.20,R,REDACTED PERSONAL DATA,No
Http://opendatacommunities.org/id/metropolitan-district-council/leeds,Leeds City Council,31/10/2015,Environment & Housing,Housing Leeds Service,Capital,Other Costs,7,08-Oct-2015,1510-00028,0.00,165.00,C,REDACTED PERSONAL DATA,No
Http://opendatacommunities.org/id/metropolitan-district-council/leeds,Leeds City Council,31/10/2015,City Development,Libraries  Arts & Heritage,Supplies and Services,Other Hired And Contracted Services,265,30-Oct-2015,1510-00029,0.00,295.00,R,REDACTED COMMERCIAL CONFIDENTIALITY,No
Http://opendatacommunities.org/id/metropolitan-district-council/leeds,Leeds City Council,31/10/2015,City Development,Libraries  Arts & Heritage,Supplies and Services,Operational Furniture And Equipment,203,14-Oct-2015,1510-00030,0.00,265.00,R,A J Gallagher (Uk) Ltd,No
Http://opendatacommunities.org/id/metropolitan-district-council/leeds,Leeds City Council,31/10/2015,Central & Corporate,Commercial Services Trading Services,Supplies and Services,Operational Materials,205,13-Oct-2015,1510-00031,0.00,62.12,R,A J H  Pump Supply & Repair Ltd,No
Http://opendatacommunities.org/id/metropolitan-district-council/leeds,Leeds City Council,31/10/2015,Central & Corporate,Commercial Services Trading Services,Supplies and Services,Operational Materials,205,13-Oct-2015,1510-00032,0.00,245.65,R,A J H  Pump Supply & Repair Ltd,No
Http://opendatacommunities.org/id/metropolitan-district-council/leeds,Leeds City Council,31/10/2015,Central & Corporate,Commercial Services Trading Services,Supplies and Services,Operational Materials,205,13-Oct-2015,1510-00033,0.00,155.39,R,A J H  Pump Supply & Repair Ltd,No
Http://opendatacommunities.org/id/metropolitan-district-council/leeds,Leeds City Council,31/10/2015,Central & Corporate,Commercial Services Trading Services,Supplies and Services,Operational Materials,205,13-Oct-2015,1510-00034,0.00,53.30,R,A J H  Pump Supply & Repair Ltd,No
Http://opendatacommunities.org/id/metropolitan-district-council/leeds,Leeds City Council,31/10/2015,Central & Corporate,Commercial Services Trading Services,Supplies and Services,Operational Materials,205,13-Oct-2015,1510-00035,0.00,185.45,R,A J H  Pump Supply & Repair Ltd,No
Http://opendatacommunities.org/id/metropolitan-district-council/leeds,Leeds City Council,31/10/2015,Central & Corporate,Commercial Services Trading Services,Supplies and Services,Operational Materials,205,13-Oct-2015,1510-00036,0.00,129.96,R,A J H  Pump Supply & Repair Ltd,No
Http://opendatacommunities.org/id/metropolitan-district-council/leeds,Leeds City Council,31/10/2015,Central & Corporate,Commercial Services Trading Services,Supplies and Services,Operational Materials,205,13-Oct-2015,1510-00037,0.00,510.00,R,A J H  Pump Supply & Repair Ltd,No
Http://opendatacommunities.org/id/metropolitan-district-council/leeds,Leeds City Council,31/10/2015,Central & Corporate,Commercial Services Trading Services,Supplies and Services,Operational Materials,205,13-Oct-2015,1510-00038,0.00,48.00,R,A J H  Pump Supply & Repair Ltd,No
Http://opendatacommunities.org/id/metropolitan-district-council/leeds,Leeds City Council,31/10/2015,Central & Corporate,Commercial Services Trading Services,Supplies and Services,Operational Materials,205,13-Oct-2015,1510-00039,0.00,349.95,R,A J H  Pump Supply & Repair Ltd,No
Http://opendatacommunities.org/id/metropolitan-district-council/leeds,Leeds City Council,31/10/2015,Central & Corporate,Commercial Services Trading Services,Supplies and Services,Operational Materials,205,13-Oct-2015,1510-00040,0.00,439.12,R,A J H  Pump Supply & Repair Ltd,No
Http://opendatacommunities.org/id/metropolitan-district-council/leeds,Leeds City Council,31/10/2015,Central & Corporate,Commercial Services Trading Services,Supplies and Services,Operational Materials,205,13-Oct-2015,1510-00041,0.00,16.00,R,A J H  Pump Supply & Repair Ltd,No
Http://opendatacommunities.org/id/metropolitan-district-council/leeds,Leeds City Council,31/10/2015,Central & Corporate,Commercial Services Trading Services,Supplies and Services,Operational Materials,205,13-Oct-2015,1510-00042,0.00,105.00,R,A J H  Pump Supply & Repair Ltd,No
Http://opendatacommunities.org/id/metropolitan-district-council/leeds,Leeds City Council,31/10/2015,Central & Corporate,Commercial Services Trading Services,Supplies and Services,Operational Materials,205,13-Oct-2015,1510-00043,0.00,297.38,R,A J H  Pump Supply & Repair Ltd,No
Http://opendatacommunities.org/id/metropolitan-district-council/leeds,Leeds City Council,31/10/2015,Central & Corporate,Commercial Services Trading Services,Supplies and Services,Operational Materials,205,13-Oct-2015,1510-00044,0.00,133.00,R,A J H  Pump Supply & Repair Ltd,No
Http://opendatacommunities.org/id/metropolitan-district-council/leeds,Leeds City Council,31/10/2015,Central & Corporate,Commercial Services Trading Services,Supplies and Services,Operational Materials,205,13-Oct-2015,1510-00045,0.00,386.00,R,A J H  Pump Supply & Repair Ltd,No
Http://opendatacommunities.org/id/metropolitan-district-council/leeds,Leeds City Council,31/10/2015,Central & Corporate,Commercial Services Trading Services,Supplies and Services,Operational Materials,205,13-Oct-2015,1510-00046,0.00,35.97,R,A J H  Pump Supply & Repair Ltd,No
Http://opendatacommunities.org/id/metropolitan-district-council/leeds,Leeds City Council,31/10/2015,Central & Corporate,Commercial Services Trading Services,Supplies and Services,Operational Materials,205,13-Oct-2015,1510-00047,0.00,120.08,R,A J H  Pump Supply & Repair Ltd,No
Http://opendatacommunities.org/id/metropolitan-district-council/leeds,Leeds City Council,31/10/2015,Central & Corporate,Commercial Services Trading Services,Supplies and Services,Operational Materials,205,13-Oct-2015,1510-00048,0.00,124.50,R,A J H  Pump Supply & Repair Ltd,No
Http://opendatacommunities.org/id/metropolitan-district-council/leeds,Leeds City Council,31/10/2015,Central & Corporate,Commercial Services Trading Services,Supplies and Services,Operational Materials,205,13-Oct-2015,1510-00049,0.00,49.65,R,A J H  Pump Supply & Repair Ltd,No
Http://opendatacommunities.org/id/metropolitan-district-council/leeds,Leeds City Council,31/10/2015,Central & Corporate,Commercial Services Trading Services,Supplies and Services,Operational Materials,205,13-Oct-2015,1510-00050,0.00,245.00,R,A J H  Pump Supply & Repair Ltd,No
Http://opendatacommunities.org/id/metropolitan-district-council/leeds,Leeds City Council,31/10/2015,Central & Corporate,Commercial Services Trading Services,Supplies and Services,Operational Materials,205,13-Oct-2015,1510-00051,0.00,64.71,R,A J H  Pump Supply & Repair Ltd,No
Http://opendatacommunities.org/id/metropolitan-district-council/leeds,Leeds City Council,31/10/2015,Central & Corporate,Commercial Services Trading Services,Supplies and Services,Operational Materials,205,13-Oct-2015,1510-00052,0.00,782.00,R,A J H  Pump Supply & Repair Ltd,No
Http://opendatacommunities.org/id/metropolitan-district-council/leeds,Leeds City Council,31/10/2015,Central & Corporate,Commercial Services Trading Services,Supplies and Services,Operational Materials,205,13-Oct-2015,1510-00053,0.00,60.00,R,A J H  Pump Supply & Repair Ltd,No
Http://opendatacommunities.org/id/metropolitan-district-council/leeds,Leeds City Council,31/10/2015,Central & Corporate,Commercial Services Trading Services,Supplies and Services,Operational Materials,205,13-Oct-2015,1510-00054,0.00,509.77,R,A J H  Pump Supply & Repair Ltd,No
Http://opendatacommunities.org/id/metropolitan-district-council/leeds,Leeds City Council,31/10/2015,Central & Corporate,Commercial Services Trading Services,Supplies and Services,Operational Materials,205,13-Oct-2015,1510-00055,0.00,53.29,R,A J H  Pump Supply & Repair Ltd,No
Http://opendatacommunities.org/id/metropolitan-district-council/leeds,Leeds City Council,31/10/2015,Central & Corporate,Commercial Services Trading Services,Supplies and Services,Operational Materials,205,13-Oct-2015,1510-00056,0.00,65.00,R,A J H  Pump Supply & Repair Ltd,No
Http://opendatacommunities.org/id/metropolitan-district-council/leeds,Leeds City Council,31/10/2015,Central & Corporate,Commercial Services Trading Services,Supplies and Services,Operational Materials,205,13-Oct-2015,1510-00057,0.00,65.00,R,A J H  Pump Supply & Repair Ltd,No
Http://opendatacommunities.org/id/metropolitan-district-council/leeds,Leeds City Council,31/10/2015,Central & Corporate,Commercial Services Trading Services,Supplies and Services,Operational Materials,205,13-Oct-2015,1510-00058,0.00,90.19,R,A J H  Pump Supply & Repair Ltd,No
Http://opendatacommunities.org/id/metropolitan-district-council/leeds,Leeds City Council,31/10/2015,Central & Corporate,Commercial Services Trading Services,Supplies and Services,Operational Materials,205,13-Oct-2015,1510-00059,0.00,7.84,R,A J H  Pump Supply & Repair Ltd,No
Http://opendatacommunities.org/id/metropolitan-district-council/leeds,Leeds City Council,31/10/2015,Central & Corporate,Commercial Services Trading Services,Supplies and Services,Operational Materials,205,13-Oct-2015,1510-00060,0.00,40.00,R,A J H  Pump Supply & Repair Ltd,No
Http://opendatacommunities.org/id/metropolitan-district-council/leeds,Leeds City Council,31/10/2015,Central & Corporate,Commercial Services Trading Services,Supplies and Services,Operational Materials,205,13-Oct-2015,1510-00061,0.00,787.00,R,A J H  Pump Supply & Repair Ltd,No
Http://opendatacommunities.org/id/metropolitan-district-council/leeds,Leeds City Council,31/10/2015,Central & Corporate,Commercial Services Trading Services,Supplies and Services,Other Hired And Contracted Services,265,16-Oct-2015,1510-00062,0.00,458.00,R,A J H  Pump Supply & Repair Ltd,No
Http://opendatacommunities.org/id/metropolitan-district-council/leeds,Leeds City Council,31/10/2015,Central & Corporate,Commercial Services Trading Services,Supplies and Services,Operational Materials,205,19-Oct-2015,1510-00063,0.00,34.54,R,A J H  Pump Supply & Repair Ltd,No
Http://opendatacommunities.org/id/metropolitan-district-council/leeds,Leeds City Council,31/10/2015,Central & Corporate,Commercial Services Trading Services,Supplies and Services,Operational Materials,205,19-Oct-2015,1510-00064,0.00,39.64,R,A J H  Pump Supply & Repair Ltd,No
Http://opendatacommunities.org/id/metropolitan-district-council/leeds,Leeds City Council,31/10/2015,Central & Corporate,Commercial Services Trading Services,Supplies and Services,Operational Materials,205,19-Oct-2015,1510-00065,0.00,75.25,R,A J H  Pump Supply & Repair Ltd,No
Http://opendatacommunities.org/id/metropolitan-district-council/leeds,Leeds City Council,31/10/2015,Central & Corporate,Commercial Services Trading Services,Supplies and Services,Operational Furniture And Equipment,203,19-Oct-2015,1510-00066,0.00,52.00,R,A J H  Pump Supply & Repair Ltd,No
Http://opendatacommunities.org/id/metropolitan-district-council/leeds,Leeds City Council,31/10/2015,Central & Corporate,Commercial Services Trading Services,Supplies and Services,Operational Materials,205,19-Oct-2015,1510-00067,0.00,34.54,R,A J H  Pump Supply & Repair Ltd,No
Http://opendatacommunities.org/id/metropolitan-district-council/leeds,Leeds City Council,31/10/2015,Central & Corporate,Commercial Services Trading Services,Supplies and Services,Operational Materials,205,19-Oct-2015,1510-00068,0.00,847.00,R,A J H  Pump Supply & Repair Ltd,No
Http://opendatacommunities.org/id/metropolitan-district-council/leeds,Leeds City Council,31/10/2015,Central & Corporate,Commercial Services Trading Services,Supplies and Services,Operational Materials,205,19-Oct-2015,1510-00069,0.00,462.15,R,A J H  Pump Supply & Repair Ltd,No
Http://opendatacommunities.org/id/metropolitan-district-council/leeds,Leeds City Council,31/10/2015,Central & Corporate,Commercial Services Trading Services,Supplies and Services,Operational Materials,205,19-Oct-2015,1510-00070,0.00,94.37,R,A J H  Pump Supply & Repair Ltd,No
Http://opendatacommunities.org/id/metropolitan-district-council/leeds,Leeds City Council,31/10/2015,Central & Corporate,Commercial Services Trading Services,Supplies and Services,Operational Furniture And Equipment,203,19-Oct-2015,1510-00071,0.00,40.00,R,A J H  Pump Supply & Repair Ltd,No
Http://opendatacommunities.org/id/metropolitan-district-council/leeds,Leeds City Council,31/10/2015,Central & Corporate,Commercial Services Trading Services,Supplies and Services,Operational Materials,205,19-Oct-2015,1510-00072,0.00,332.82,R,A J H  Pump Supply & Repair Ltd,No
Http://opendatacommunities.org/id/metropolitan-district-council/leeds,Leeds City Council,31/10/2015,Central & Corporate,Commercial Services Trading Services,Supplies and Services,Operational Materials,205,19-Oct-2015,1510-00073,0.00,62.49,R,A J H  Pump Supply & Repair Ltd,No
Http://opendatacommunities.org/id/metropolitan-district-council/leeds,Leeds City Council,31/10/2015,Central & Corporate,Commercial Services Trading Services,Supplies and Services,Operational Materials,205,19-Oct-2015,1510-00074,0.00,65.20,R,A J H  Pump Supply & Repair Ltd,No
Http://opendatacommunities.org/id/metropolitan-district-council/leeds,Leeds City Council,31/10/2015,Central & Corporate,Commercial Services Trading Services,Supplies and Services,Operational Materials,205,19-Oct-2015,1510-00075,0.00,107.00,R,A J H  Pump Supply & Repair Ltd,No
Http://opendatacommunities.org/id/metropolitan-district-council/leeds,Leeds City Council,31/10/2015,Central & Corporate,Commercial Services Trading Services,Supplies and Services,Operational Materials,205,19-Oct-2015,1510-00076,0.00,87.08,R,A J H  Pump Supply & Repair Ltd,No
Http://opendatacommunities.org/id/metropolitan-district-council/leeds,Leeds City Council,31/10/2015,Central & Corporate,Commercial Services Trading Services,Supplies and Services,Operational Materials,205,19-Oct-2015,1510-00077,0.00,849.00,R,A J H  Pump Supply & Repair Ltd,No
Http://opendatacommunities.org/id/metropolitan-district-council/leeds,Leeds City Council,31/10/2015,Central & Corporate,Commercial Services Trading Services,Supplies and Services,Operational Materials,205,19-Oct-2015,1510-00078,0.00,698.00,R,A J H  Pump Supply & Repair Ltd,No
Http://opendatacommunities.org/id/metropolitan-district-council/leeds,Leeds City Council,31/10/2015,Central & Corporate,Commercial Services Trading Services,Supplies and Services,Operational Materials,205,19-Oct-2015,1510-00079,0.00,561.00,R,A J H  Pump Supply & Repair Ltd,No
Http://opendatacommunities.org/id/metropolitan-district-council/leeds,Leeds City Council,31/10/2015,Central & Corporate,Commercial Services Trading Services,Supplies and Services,Operational Materials,205,20-Oct-2015,1510-00080,0.00,55.00,R,A J H  Pump Supply & Repair Ltd,No
Http://opendatacommunities.org/id/metropolitan-district-council/leeds,Leeds City Council,31/10/2015,Central & Corporate,Commercial Services Trading Services,Supplies and Services,Other Hired And Contracted Services,265,22-Oct-2015,1510-00081,0.00,802.18,R,A J H  Pump Supply & Repair Ltd,No
Http://opendatacommunities.org/id/metropolitan-district-council/leeds,Leeds City Council,31/10/2015,Central & Corporate,Commercial Services Trading Services,Supplies and Services,Operational Materials,205,22-Oct-2015,1510-00082,0.00,37.95,R,A J H  Pump Supply & Repair Ltd,No
Http://opendatacommunities.org/id/metropolitan-district-council/leeds,Leeds City Council,31/10/2015,Central & Corporate,Commercial Services Trading Services,Supplies and Services,Operational Furniture And Equipment,203,22-Oct-2015,1510-00083,0.00,75.00,R,A J H  Pump Supply & Repair Ltd,No
Http://opendatacommunities.org/id/metropolitan-district-council/leeds,Leeds City Council,31/10/2015,Central & Corporate,Commercial Services Trading Services,Supplies and Services,Operational Materials,205,22-Oct-2015,1510-00084,0.00,618.00,R,A J H  Pump Supply & Repair Ltd,No
Http://opendatacommunities.org/id/metropolitan-district-council/leeds,Leeds City Council,31/10/2015,Central & Corporate,Commercial Services Trading Services,Supplies and Services,Operational Materials,205,22-Oct-2015,1510-00085,0.00,8.95,R,A J H  Pump Supply & Repair Ltd,No
Http://opendatacommunities.org/id/metropolitan-district-council/leeds,Leeds City Council,31/10/2015,Central & Corporate,Commercial Services Trading Services,Supplies and Services,Operational Materials,205,22-Oct-2015,1510-00086,0.00,124.49,R,A J H  Pump Supply & Repair Ltd,No
Http://opendatacommunities.org/id/metropolitan-district-council/leeds,Leeds City Council,31/10/2015,Central & Corporate,Commercial Services Trading Services,Supplies and Services,Operational Materials,205,22-Oct-2015,1510-00087,0.00,225.75,R,A J H  Pump Supply & Repair Ltd,No
Http://opendatacommunities.org/id/metropolitan-district-council/leeds,Leeds City Council,31/10/2015,Central & Corporate,Commercial Services Trading Services,Supplies and Services,Operational Materials,205,22-Oct-2015,1510-00088,0.00,980.34,R,A J H  Pump Supply & Repair Ltd,No
Http://opendatacommunities.org/id/metropolitan-district-council/leeds,Leeds City Council,31/10/2015,Central & Corporate,Commercial Services Trading Services,Supplies and Services,Operational Materials,205,22-Oct-2015,1510-00089,0.00,45.76,R,A J H  Pump Supply & Repair Ltd,No
Http://opendatacommunities.org/id/metropolitan-district-council/leeds,Leeds City Council,31/10/2015,Central & Corporate,Commercial Services Trading Services,Supplies and Services,Operational Materials,205,22-Oct-2015,1510-00090,0.00,149.96,R,A J H  Pump Supply & Repair Ltd,No
Http://opendatacommunities.org/id/metropolitan-district-council/leeds,Leeds City Council,31/10/2015,Central & Corporate,Commercial Services Trading Services,Supplies and Services,Operational Materials,205,22-Oct-2015,1510-00091,0.00,16.00,R,A J H  Pump Supply & Repair Ltd,No
Http://opendatacommunities.org/id/metropolitan-district-council/leeds,Leeds City Council,31/10/2015,Central & Corporate,Commercial Services Trading Services,Supplies and Services,Operational Materials,205,22-Oct-2015,1510-00092,0.00,610.00,R,A J H  Pump Supply & Repair Ltd,No
Http://opendatacommunities.org/id/metropolitan-district-council/leeds,Leeds City Council,31/10/2015,Central & Corporate,Commercial Services Trading Services,Supplies and Services,Operational Materials,205,22-Oct-2015,1510-00093,0.00,61.53,R,A J H  Pump Supply & Repair Ltd,No
Http://opendatacommunities.org/id/metropolitan-district-council/leeds,Leeds City Council,31/10/2015,Central & Corporate,Commercial Services Trading Services,Supplies and Services,Operational Materials,205,22-Oct-2015,1510-00094,0.00,375.00,R,A J H  Pump Supply & Repair Ltd,No
Http://opendatacommunities.org/id/metropolitan-district-council/leeds,Leeds City Council,31/10/2015,Central & Corporate,Commercial Services Trading Services,Supplies and Services,Operational Materials,205,22-Oct-2015,1510-00095,0.00,118.24,R,A J H  Pump Supply & Repair Ltd,No
Http://opendatacommunities.org/id/metropolitan-district-council/leeds,Leeds City Council,31/10/2015,Central & Corporate,Commercial Services Trading Services,Supplies and Services,Operational Materials,205,22-Oct-2015,1510-00096,0.00,89.15,R,A J H  Pump Supply & Repair Ltd,No
Http://opendatacommunities.org/id/metropolitan-district-council/leeds,Leeds City Council,31/10/2015,Central & Corporate,Commercial Services Trading Services,Supplies and Services,Operational Furniture And Equipment,203,22-Oct-2015,1510-00097,0.00,35.00,R,A J H  Pump Supply & Repair Ltd,No
Http://opendatacommunities.org/id/metropolitan-district-council/leeds,Leeds City Council,31/10/2015,Environment & Housing,Parks and Countryside,Supplies and Services,Operational Materials,205,27-Oct-2015,1510-00098,0.00,93.56,R,A J H  Pump Supply & Repair Ltd,No
Http://opendatacommunities.org/id/metropolitan-district-council/leeds,Leeds City Council,31/10/2015,Central & Corporate,Commercial Services Trading Services,Supplies and Services,Operational Materials,205,29-Oct-2015,1510-00099,0.00,133.00,R,A J H  Pump Supply & Repair Ltd,No
Http://opendatacommunities.org/id/metropolitan-district-council/leeds,Leeds City Council,31/10/2015,Central & Corporate,Commercial Services Trading Services,Supplies and Services,Operational Materials,205,29-Oct-2015,1510-00100,0.00,9.30,R,A J H  Pump Supply & Repair Ltd,No
Http://opendatacommunities.org/id/metropolitan-district-council/leeds,Leeds City Council,31/10/2015,Central & Corporate,Commercial Services Trading Services,Supplies and Services,Operational Materials,205,29-Oct-2015,1510-00101,0.00,127.78,R,A J H  Pump Supply & Repair Ltd,No
Http://opendatacommunities.org/id/metropolitan-district-council/leeds,Leeds City Council,31/10/2015,Central & Corporate,Commercial Services Trading Services,Supplies and Services,Operational Materials,205,29-Oct-2015,1510-00102,0.00,23.31,R,A J H  Pump Supply & Repair Ltd,No
Http://opendatacommunities.org/id/metropolitan-district-council/leeds,Leeds City Council,31/10/2015,Central & Corporate,Commercial Services Trading Services,Supplies and Services,Operational Materials,205,29-Oct-2015,1510-00103,0.00,48.85,R,A J H  Pump Supply & Repair Ltd,No
Http://opendatacommunities.org/id/metropolitan-district-council/leeds,Leeds City Council,31/10/2015,Central & Corporate,Commercial Services Trading Services,Supplies and Services,Operational Materials,205,29-Oct-2015,1510-00104,0.00,45.56,R,A J H  Pump Supply & Repair Ltd,No
Http://opendatacommunities.org/id/metropolitan-district-council/leeds,Leeds City Council,31/10/2015,Central & Corporate,Commercial Services Trading Services,Supplies and Services,Operational Materials,205,29-Oct-2015,1510-00105,0.00,114.57,R,A J H  Pump Supply & Repair Ltd,No
Http://opendatacommunities.org/id/metropolitan-district-council/leeds,Leeds City Council,31/10/2015,Central & Corporate,Commercial Services Trading Services,Supplies and Services,Operational Materials,205,29-Oct-2015,1510-00106,0.00,339.12,R,A J H  Pump Supply & Repair Ltd,No
Http://opendatacommunities.org/id/metropolitan-district-council/leeds,Leeds City Council,31/10/2015,Central & Corporate,Commercial Services Trading Services,Supplies and Services,Operational Materials,205,29-Oct-2015,1510-00107,0.00,132.95,R,A J H  Pump Supply & Repair Ltd,No
Http://opendatacommunities.org/id/metropolitan-district-council/leeds,Leeds City Council,31/10/2015,Central & Corporate,Commercial Services Trading Services,Supplies and Services,Operational Materials,205,29-Oct-2015,1510-00108,0.00,120.90,R,A J H  Pump Supply & Repair Ltd,No
Http://opendatacommunities.org/id/metropolitan-district-council/leeds,Leeds City Council,31/10/2015,Central & Corporate,Commercial Services Trading Services,Supplies and Services,Operational Materials,205,29-Oct-2015,1510-00109,0.00,116.69,R,A J H  Pump Supply & Repair Ltd,No
Http://opendatacommunities.org/id/metropolitan-district-council/leeds,Leeds City Council,31/10/2015,Central & Corporate,Commercial Services Trading Services,Supplies and Services,Operational Materials,205,29-Oct-2015,1510-00110,0.00,71.06,R,A J H  Pump Supply & Repair Ltd,No
Http://opendatacommunities.org/id/metropolitan-district-council/leeds,Leeds City Council,31/10/2015,Central & Corporate,Commercial Services Trading Services,Supplies and Services,Operational Materials,205,29-Oct-2015,1510-00111,0.00,404.62,R,A J H  Pump Supply & Repair Ltd,No
Http://opendatacommunities.org/id/metropolitan-district-council/leeds,Leeds City Council,31/10/2015,Central & Corporate,Commercial Services Trading Services,Supplies and Services,Operational Materials,205,29-Oct-2015,1510-00112,0.00,122.68,R,A J H  Pump Supply & Repair Ltd,No
Http://opendatacommunities.org/id/metropolitan-district-council/leeds,Leeds City Council,31/10/2015,Central & Corporate,Commercial Services Trading Services,Supplies and Services,Operational Materials,205,29-Oct-2015,1510-00113,0.00,219.25,R,A J H  Pump Supply & Repair Ltd,No
Http://opendatacommunities.org/id/metropolitan-district-council/leeds,Leeds City Council,31/10/2015,Central & Corporate,Commercial Services Trading Services,Supplies and Services,Operational Materials,205,29-Oct-2015,1510-00114,0.00,764.50,R,A J H  Pump Supply & Repair Ltd,No
Http://opendatacommunities.org/id/metropolitan-district-council/leeds,Leeds City Council,31/10/2015,Central & Corporate,Commercial Services Trading Services,Supplies and Services,Operational Materials,205,29-Oct-2015,1510-00115,0.00,23.45,R,A J H  Pump Supply & Repair Ltd,No
Http://opendatacommunities.org/id/metropolitan-district-council/leeds,Leeds City Council,31/10/2015,Central & Corporate,Commercial Services Trading Services,Supplies and Services,Operational Materials,205,29-Oct-2015,1510-00116,0.00,115.16,R,A J H  Pump Supply & Repair Ltd,No
Http://opendatacommunities.org/id/metropolitan-district-council/leeds,Leeds City Council,31/10/2015,Central & Corporate,Commercial Services Trading Services,Supplies and Services,Operational Materials,205,29-Oct-2015,1510-00117,0.00,349.29,R,A J H  Pump Supply & Repair Ltd,No
Http://opendatacommunities.org/id/metropolitan-district-council/leeds,Leeds City Council,31/10/2015,Central & Corporate,Commercial Services Trading Services,Supplies and Services,Operational Materials,205,29-Oct-2015,1510-00118,0.00,210.71,R,A J H  Pump Supply & Repair Ltd,No
Http://opendatacommunities.org/id/metropolitan-district-council/leeds,Leeds City Council,31/10/2015,Central & Corporate,Commercial Services Trading Services,Supplies and Services,Operational Materials,205,29-Oct-2015,1510-00119,0.00,850.00,R,A J H  Pump Supply & Repair Ltd,No
Http://opendatacommunities.org/id/metropolitan-district-council/leeds,Leeds City Council,31/10/2015,Central & Corporate,Commercial Services Trading Services,Supplies and Services,Operational Materials,205,30-Oct-2015,1510-00120,0.00,1147.00,R,A J H  Pump Supply & Repair Ltd,No
Http://opendatacommunities.org/id/metropolitan-district-council/leeds,Leeds City Council,31/10/2015,Central & Corporate,Commercial Services Trading Services,Supplies and Services,Operational Furniture And Equipment,203,30-Oct-2015,1510-00121,0.00,290.00,R,A J H  Pump Supply & Repair Ltd,No
Http://opendatacommunities.org/id/metropolitan-district-council/leeds,Leeds City Council,31/10/2015,Central & Corporate,Commercial Services Trading Services,Supplies and Services,Operational Materials,205,30-Oct-2015,1510-00122,0.00,247.31,R,A J H  Pump Supply & Repair Ltd,No
Http://opendatacommunities.org/id/metropolitan-district-council/leeds,Leeds City Council,31/10/2015,Central & Corporate,Commercial Services Trading Services,Supplies and Services,Operational Materials,205,30-Oct-2015,1510-00123,0.00,107.00,R,A J H  Pump Supply & Repair Ltd,No
Http://opendatacommunities.org/id/metropolitan-district-council/leeds,Leeds City Council,31/10/2015,Central & Corporate,Commercial Services Trading Services,Supplies and Services,Operational Materials,205,30-Oct-2015,1510-00124,0.00,110.00,R,A J H  Pump Supply & Repair Ltd,No
Http://opendatacommunities.org/id/metropolitan-district-council/leeds,Leeds City Council,31/10/2015,Central & Corporate,Commercial Services Trading Services,Supplies and Services,Operational Materials,205,30-Oct-2015,1510-00125,0.00,18.15,R,A J H  Pump Supply & Repair Ltd,No
Http://opendatacommunities.org/id/metropolitan-district-council/leeds,Leeds City Council,31/10/2015,Central & Corporate,Commercial Services Trading Services,Supplies and Services,Operational Materials,205,30-Oct-2015,1510-00126,0.00,196.39,R,A J H  Pump Supply & Repair Ltd,No
Http://opendatacommunities.org/id/metropolitan-district-council/leeds,Leeds City Council,31/10/2015,Central & Corporate,Commercial Services Trading Services,Supplies and Services,Operational Materials,205,30-Oct-2015,1510-00127,0.00,152.61,R,A J H  Pump Supply & Repair Ltd,No
Http://opendatacommunities.org/id/metropolitan-district-council/leeds,Leeds City Council,31/10/2015,Central & Corporate,Commercial Services Trading Services,Supplies and Services,Operational Materials,205,30-Oct-2015,1510-00128,0.00,12.76,R,A J H  Pump Supply & Repair Ltd,No
Http://opendatacommunities.org/id/metropolitan-district-council/leeds,Leeds City Council,31/10/2015,City Development,Libraries  Arts & Heritage,Supplies and Services,Operational Materials,205,01-Oct-2015,1510-00129,0.00,736.00,R,A J Promotions,No
Http://opendatacommunities.org/id/metropolitan-district-council/leeds,Leeds City Council,31/10/2015,Environment & Housing,Parks and Countryside,Supplies and Services,Resaleable Materials,204,01-Oct-2015,1510-00130,0.00,345.00,R,A J Promotions,No
Http://opendatacommunities.org/id/metropolitan-district-council/leeds,Leeds City Council,31/10/2015,City Development,Libraries  Arts & Heritage,Supplies and Services,Resaleable Materials,204,01-Oct-2015,1510-00131,0.00,123.90,R,A J Promotions,No
Http://opendatacommunities.org/id/metropolitan-district-council/leeds,Leeds City Council,31/10/2015,Environment & Housing,Parks and Countryside,Supplies and Services,Resaleable Materials,204,02-Oct-2015,1510-00132,0.00,1472.36,R,A J Promotions,No
Http://opendatacommunities.org/id/metropolitan-district-council/leeds,Leeds City Council,31/10/2015,Environment & Housing,Parks and Countryside,Supplies and Services,Resaleable Materials,204,27-Oct-2015,1510-00133,0.00,442.00,R,A J Promotions,No
Http://opendatacommunities.org/id/metropolitan-district-council/leeds,Leeds City Council,31/10/2015,Insurance,Insurance,Supplies and Services,Insurance Claims,248,02-Oct-2015,1510-00134,0.00,500.00,R,REDACTED PERSONAL DATA,No
Http://opendatacommunities.org/id/metropolitan-district-council/leeds,Leeds City Council,31/10/2015,Environment & Housing,Housing Leeds Service,Capital,Other Costs,7,01-Oct-2015,1510-00135,0.00,600.00,C,REDACTED PERSONAL DATA,No
Http://opendatacommunities.org/id/metropolitan-district-council/leeds,Leeds City Council,31/10/2015,Childrens Services,Learning Skills & Universal,Supplies and Services,Teaching Materials,202,05-Oct-2015,1510-00136,0.00,60.00,R,A Little Something Extra Ltd,No
Http://opendatacommunities.org/id/metropolitan-district-council/leeds,Leeds City Council,31/10/2015,Childrens Services,Learning Skills & Universal,Supplies and Services,Teaching Materials,202,20-Oct-2015,1510-00137,0.00,180.00,R,A Little Something Extra Ltd,No
Http://opendatacommunities.org/id/metropolitan-district-council/leeds,Leeds City Council,31/10/2015,Childrens Services,Learning Skills & Universal,Supplies and Services,Teaching Materials,202,20-Oct-2015,1510-00138,0.00,180.00,R,A Little Something Extra Ltd,No
Http://opendatacommunities.org/id/metropolitan-district-council/leeds,Leeds City Council,31/10/2015,Childrens Services,Learning Skills & Universal,Supplies and Services,Teaching Materials,202,20-Oct-2015,1510-00139,0.00,180.00,R,A Little Something Extra Ltd,No
Http://opendatacommunities.org/id/metropolitan-district-council/leeds,Leeds City Council,31/10/2015,Childrens Services,Learning Skills & Universal,Supplies and Services,Teaching Materials,202,20-Oct-2015,1510-00140,0.00,180.00,R,A Little Something Extra Ltd,No
Http://opendatacommunities.org/id/metropolitan-district-council/leeds,Leeds City Council,31/10/2015,Citizens and Communities,Customer Access,Supplies and Services,Other Hired And Contracted Services,265,01-Oct-2015,1510-00141,0.00,57.25,R,A Mohammed,No
Http://opendatacommunities.org/id/metropolitan-district-council/leeds,Leeds City Council,31/10/2015,Citizens and Communities,Customer Access,Supplies and Services,Other Hired And Contracted Services,265,05-Oct-2015,1510-00142,0.00,448.50,R,A Mohammed,No
Http://opendatacommunities.org/id/metropolitan-district-council/leeds,Leeds City Council,31/10/2015,Environment & Housing,Housing Leeds Service,Capital,Other Costs,7,29-Oct-2015,1510-00143,0.00,120.00,C,REDACTED PERSONAL DATA,No
Http://opendatacommunities.org/id/metropolitan-district-council/leeds,Leeds City Council,31/10/2015,Citizens and Communities,Customer Access,Supplies and Services,Other Hired And Contracted Services,265,05-Oct-2015,1510-00144,0.00,255.50,R,A Namaki,No
Http://opendatacommunities.org/id/metropolitan-district-council/leeds,Leeds City Council,31/10/2015,Environment & Housing,Housing Leeds Service,Capital,Other Costs,7,08-Oct-2015,1510-00145,0.00,120.00,C,REDACTED PERSONAL DATA,No
Http://opendatacommunities.org/id/metropolitan-district-council/leeds,Leeds City Council,31/10/2015,Childrens Services,Safeguarding Targeted & Specialist,Third Party Payments,Placement Support,550,29-Oct-2015,1510-00146,0.00,170.00,R,REDACTED PERSONAL DATA,No
Http://opendatacommunities.org/id/metropolitan-district-council/leeds,Leeds City Council,31/10/2015,Environment & Housing,Housing Leeds Service,Capital,Other Costs,7,22-Oct-2015,1510-00147,0.00,50.00,C,REDACTED PERSONAL DATA,No
Http://opendatacommunities.org/id/metropolitan-district-council/leeds,Leeds City Council,31/10/2015,Central & Corporate,Human Resources,Employees,Occupational Health,85,16-Oct-2015,1510-00148,0.00,90.00,R,A R Iball,No
Http://opendatacommunities.org/id/metropolitan-district-council/leeds,Leeds City Council,31/10/2015,Environment & Housing,Parks and Countryside,Supplies and Services,Operational Furniture And Equipment,203,02-Oct-2015,1510-00149,0.00,156.00,R,A R Twigg & Son Limited,No
Http://opendatacommunities.org/id/metropolitan-district-council/leeds,Leeds City Council,31/10/2015,Environment & Housing,Parks & Countryside,Capital,Construction,3,14-Oct-2015,1510-00150,0.00,3049.00,C,A R Twigg & Son Limited,No
Http://opendatacommunities.org/id/metropolitan-district-council/leeds,Leeds City Council,31/10/2015,City Development,Libraries  Arts & Heritage,Supplies and Services,Books & Audio-Visual Materials,206,02-Oct-2015,1510-00151,0.00,140.50,R,A S Jhagra,No
Http://opendatacommunities.org/id/metropolitan-district-council/leeds,Leeds City Council,31/10/2015,Environment & Housing,Parks And Countryside  ,Transport,Plant Spares,346,04-Sep-2015,1510-00152,0.00,93.00,R,A S P W,Yes
Http://opendatacommunities.org/id/metropolitan-district-council/leeds,Leeds City Council,31/10/2015,Civic Enterprise Leeds,Business Support Centre,Supplies and Services,Other Hired And Contracted Services,265,21-Oct-2015,1510-00153,0.00,35.00,R,A Star Couriers Ltd,No
Http://opendatacommunities.org/id/metropolitan-district-council/leeds,Leeds City Council,31/10/2015,Childrens Services,Safeguarding Targeted & Specialist,Third Party Payments,Placement Support,550,29-Oct-2015,1510-00154,0.00,500.00,R,REDACTED PERSONAL DATA,No
Http://opendatacommunities.org/id/metropolitan-district-council/leeds,Leeds City Council,31/10/2015,Central & Corporate,Commercial Services Trading Services,Supplies and Services,Other Hired And Contracted Services,265,16-Oct-2015,1510-00155,0.00,2800.00,R,A1 Bridge Flue Systems,No
Http://opendatacommunities.org/id/metropolitan-district-council/leeds,Leeds City Council,31/10/2015,Central & Corporate,Finance,Employees,Training & Development,70,21-Oct-2015,1510-00156,0.00,174.00,R,Aat,No
Http://opendatacommunities.org/id/metropolitan-district-council/leeds,Leeds City Council,31/10/2015,Central & Corporate,Finance,Transport,Public Transport Expenses,310,09-Oct-2015,1510-00157,0.00,628.00,R,Ab Cars (Garforth) Ltd,No
Http://opendatacommunities.org/id/metropolitan-district-council/leeds,Leeds City Council,31/10/2015,City Development,Economic Development  ,Supplies and Services,Postages,212,02-Sep-2015,1510-00158,0.00,13.50,R,Abacus Express,Yes
Http://opendatacommunities.org/id/metropolitan-district-council/leeds,Leeds City Council,31/10/2015,Childrens Services,Safeguarding Targeted & Specialist,Support Services,Legal Disbursements,411,02-Oct-2015,1510-00159,0.00,31.02,R,Abacus Express Limited,No
Http://opendatacommunities.org/id/metropolitan-district-council/leeds,Leeds City Council,31/10/2015,Childrens Services,Safeguarding Targeted & Specialist,Support Services,Legal Disbursements,411,02-Oct-2015,1510-00160,0.00,31.02,R,Abacus Express Limited,No
Http://opendatacommunities.org/id/metropolitan-district-council/leeds,Leeds City Council,31/10/2015,Childrens Services,Safeguarding Targeted & Specialist,Support Services,Legal Disbursements,411,02-Oct-2015,1510-00161,0.00,48.38,R,Abacus Express Limited,No
Http://opendatacommunities.org/id/metropolitan-district-council/leeds,Leeds City Council,31/10/2015,Central & Corporate,Finance,Support Services,Legal Disbursements,411,09-Oct-2015,1510-00162,0.00,14.51,R,Abacus Express Limited,No
Http://opendatacommunities.org/id/metropolitan-district-council/leeds,Leeds City Council,31/10/2015,Childrens Services,Safeguarding Targeted & Specialist,Support Services,Legal Disbursements,411,22-Oct-2015,1510-00163,0.00,23.11,R,Abacus Express Limited,No
Http://opendatacommunities.org/id/metropolitan-district-council/leeds,Leeds City Council,31/10/2015,Childrens Services,Safeguarding Targeted & Specialist,Support Services,Legal Disbursements,411,22-Oct-2015,1510-00164,0.00,16.66,R,Abacus Express Limited,No
Http://opendatacommunities.org/id/metropolitan-district-council/leeds,Leeds City Council,31/10/2015,Childrens Services,Safeguarding Targeted & Specialist,Support Services,Legal Disbursements,411,22-Oct-2015,1510-00165,0.00,16.66,R,Abacus Express Limited,No
Http://opendatacommunities.org/id/metropolitan-district-council/leeds,Leeds City Council,31/10/2015,Childrens Services,Safeguarding Targeted & Specialist,Support Services,Legal Disbursements,411,23-Oct-2015,1510-00166,0.00,31.02,R,Abacus Express Limited,No
Http://opendatacommunities.org/id/metropolitan-district-council/leeds,Leeds City Council,31/10/2015,Childrens Services,Safeguarding Targeted & Specialist,Support Services,Legal Disbursements,411,23-Oct-2015,1510-00167,0.00,31.02,R,Abacus Express Limited,No
Http://opendatacommunities.org/id/metropolitan-district-council/leeds,Leeds City Council,31/10/2015,Insurance,Insurance,Support Services,Legal Disbursements,411,23-Oct-2015,1510-00168,0.00,19.89,R,Abacus Express Limited,No
Http://opendatacommunities.org/id/metropolitan-district-council/leeds,Leeds City Council,31/10/2015,Childrens Services,Safeguarding Targeted & Specialist,Support Services,Legal Disbursements,411,23-Oct-2015,1510-00169,0.00,14.51,R,Abacus Express Limited,No
Http://opendatacommunities.org/id/metropolitan-district-council/leeds,Leeds City Council,31/10/2015,City Development,Highways,Supplies and Services,Postages,212,27-Oct-2015,1510-00170,0.00,14.51,R,Abacus Express Limited,No
Http://opendatacommunities.org/id/metropolitan-district-council/leeds,Leeds City Council,31/10/2015,Citizens And Communities,Communities  ,Supplies and Services,Crockery  Cutlery & Utensils,221,29-Sep-2015,1510-00171,0.00,93.52,R,Abaseen Superstore,Yes
Http://opendatacommunities.org/id/metropolitan-district-council/leeds,Leeds City Council,31/10/2015,City Development,Libraries  Arts & Heritage  ,Supplies and Services,Food & Drink,231,17-Sep-2015,1510-00172,0.00,33.33,R,Abbey House Museum Caf,Yes
Http://opendatacommunities.org/id/metropolitan-district-council/leeds,Leeds City Council,31/10/2015,City Development,Libraries  Arts & Heritage  ,Supplies and Services,Food & Drink,231,17-Sep-2015,1510-00173,0.00,25.00,R,Abbey House Museum Caf,Yes
Http://opendatacommunities.org/id/metropolitan-district-council/leeds,Leeds City Council,31/10/2015,Adult Social Care,Services For Older People - 65 And Over,Third Party Payments,Residential Care Dementia,571,21-Oct-2015,1510-00174,0.00,1121.88,R,Abbey Lea Residential Care Home,No
Http://opendatacommunities.org/id/metropolitan-district-council/leeds,Leeds City Council,31/10/2015,Childrens Services,Learning Skills & Universal,Third Party Payments,Services Rendered By Other Organisations,511,28-Oct-2015,1510-00175,0.00,390.88,R,Abc Daycare And Ozone Out Of School,No
Http://opendatacommunities.org/id/metropolitan-district-council/leeds,Leeds City Council,31/10/2015,Childrens Services,Learning Skills & Universal,Third Party Payments,Services Rendered By Other Organisations,511,28-Oct-2015,1510-00176,0.00,763.66,R,Abc Nursery At Lufc,No
Http://opendatacommunities.org/id/metropolitan-district-council/leeds,Leeds City Council,31/10/2015,Childrens Services,Learning Skills & Universal,Third Party Payments,Services Rendered By Other Organisations,511,28-Oct-2015,1510-00177,0.00,210.29,R,Abc@D'S Childcare Services,No
Http://opendatacommunities.org/id/metropolitan-district-council/leeds,Leeds City Council,31/10/2015,Childrens Services,Learning Skills & Universal,Supplies and Services,Training Allowances,257,01-Oct-2015,1510-00178,0.00,248.19,R,REDACTED PERSONAL DATA,No
Http://opendatacommunities.org/id/metropolitan-district-council/leeds,Leeds City Council,31/10/2015,Childrens Services,Learning Skills & Universal,Supplies and Services,Training Allowances,257,09-Oct-2015,1510-00179,0.00,248.19,R,REDACTED PERSONAL DATA,No
Http://opendatacommunities.org/id/metropolitan-district-council/leeds,Leeds City Council,31/10/2015,Childrens Services,Learning Skills & Universal,Supplies and Services,Training Allowances,257,16-Oct-2015,1510-00180,0.00,255.59,R,REDACTED PERSONAL DATA,No
Http://opendatacommunities.org/id/metropolitan-district-council/leeds,Leeds City Council,31/10/2015,Childrens Services,Learning Skills & Universal,Supplies and Services,Training Allowances,257,23-Oct-2015,1510-00181,0.00,255.59,R,REDACTED PERSONAL DATA,No
Http://opendatacommunities.org/id/metropolitan-district-council/leeds,Leeds City Council,31/10/2015,Adult Social Care,Services For Older People Under 65 P/Dis,Third Party Payments,Nursing Home,570,21-Oct-2015,1510-00182,0.00,-4565.17,R,Aberford Hall,No
Http://opendatacommunities.org/id/metropolitan-district-council/leeds,Leeds City Council,31/10/2015,Adult Social Care,Services For Older People - 65 And Over,Third Party Payments,Nursing Home,570,21-Oct-2015,1510-00183,0.00,27734.29,R,Aberford Hall,No
Http://opendatacommunities.org/id/metropolitan-district-council/leeds,Leeds City Council,31/10/2015,Adult Social Care,Services For Older People - 65 And Over,Third Party Payments,Nursing Care Dementia,574,21-Oct-2015,1510-00184,0.00,1856.00,R,Aberford Hall,No
Http://opendatacommunities.org/id/metropolitan-district-council/leeds,Leeds City Council,31/10/2015,Adult Social Care,Services For Older People - 65 And Over,Third Party Payments,Residential,580,21-Oct-2015,1510-00185,0.00,5726.04,R,Aberford Hall,No
Http://opendatacommunities.org/id/metropolitan-district-council/leeds,Leeds City Council,31/10/2015,Central & Corporate,Commercial Services Trading Services,Supplies and Services,Operational Materials,205,27-Oct-2015,1510-00186,0.00,450.00,R,Abi Garage Doors Ltd,No
Http://opendatacommunities.org/id/metropolitan-district-council/leeds,Leeds City Council,31/10/2015,Childrens Services,Learning Skills & Universal,Third Party Payments,Services Rendered By Other Organisations,511,02-Oct-2015,1510-00187,0.00,7088.27,R,Academic Appointments Ltd,No
Http://opendatacommunities.org/id/metropolitan-district-council/leeds,Leeds City Council,31/10/2015,Childrens Services,Safeguarding Targeted & Specialist,Employees,Agency Staff,8,16-Oct-2015,1510-00188,0.00,2749.90,R,Academic Appointments Ltd,No
Http://opendatacommunities.org/id/metropolitan-district-council/leeds,Leeds City Council,31/10/2015,Childrens Services,Safeguarding Targeted & Specialist,Employees,Agency Staff,8,22-Oct-2015,1510-00189,0.00,3472.15,R,Academic Appointments Ltd,No
Http://opendatacommunities.org/id/metropolitan-district-council/leeds,Leeds City Council,31/10/2015,City Development,Libraries  Arts & Heritage,Employees,Training & Development,70,02-Oct-2015,1510-00190,0.00,235.00,R,Acas,No
Http://opendatacommunities.org/id/metropolitan-district-council/leeds,Leeds City Council,31/10/2015,Environment & Housing,Environmental Health,Capital,Construction,3,08-Oct-2015,1510-00191,0.00,905.90,C,Accent Homes Ltd,No
Http://opendatacommunities.org/id/metropolitan-district-council/leeds,Leeds City Council,31/10/2015,Environment & Housing,Environmental Health,Capital,Construction,3,29-Oct-2015,1510-00192,0.00,2052.00,C,Accent Homes Ltd,No
Http://opendatacommunities.org/id/metropolitan-district-council/leeds,Leeds City Council,31/10/2015,Central & Corporate,Technology,Employees,Agency Staff,8,01-Oct-2015,1510-00193,0.00,4012.00,R,Access Computer Consulting Plc,No
Http://opendatacommunities.org/id/metropolitan-district-council/leeds,Leeds City Council,31/10/2015,Central & Corporate,Technology,Employees,Agency Staff,8,01-Oct-2015,1510-00194,0.00,2512.00,R,Access Computer Consulting Plc,No
Http://opendatacommunities.org/id/metropolitan-district-council/leeds,Leeds City Council,31/10/2015,Central & Corporate,Technology,Employees,Agency Staff,8,01-Oct-2015,1510-00195,0.00,3780.00,R,Access Computer Consulting Plc,No
Http://opendatacommunities.org/id/metropolitan-district-council/leeds,Leeds City Council,31/10/2015,Central & Corporate,Technology,Employees,Agency Staff,8,19-Oct-2015,1510-00196,0.00,3600.00,R,Access Computer Consulting Plc,No
Http://opendatacommunities.org/id/metropolitan-district-council/leeds,Leeds City Council,31/10/2015,Central & Corporate,Technology,Employees,Agency Staff,8,19-Oct-2015,1510-00197,0.00,3600.00,R,Access Computer Consulting Plc,No
Http://opendatacommunities.org/id/metropolitan-district-council/leeds,Leeds City Council,31/10/2015,Environment & Housing,Community Safety,Supplies and Services,Other Hired And Contracted Services,265,26-Oct-2015,1510-00198,0.00,1350.71,R,Access Hire Nationwide Ltd,No
Http://opendatacommunities.org/id/metropolitan-district-council/leeds,Leeds City Council,31/10/2015,Environment & Housing,Community Safety,Supplies and Services,Other Hired And Contracted Services,265,30-Oct-2015,1510-00199,0.00,1307.14,R,Access Hire Nationwide Ltd,No
Http://opendatacommunities.org/id/metropolitan-district-council/leeds,Leeds City Council,31/10/2015,Adult Social Care,Services For Adults Under 65 Learn/Dis  ,Supplies and Services,Operational Furniture And Equipment,203,02-Sep-2015,1510-00200,0.00,5.75,R,Access Locksmiths,Yes
Http://opendatacommunities.org/id/metropolitan-district-council/leeds,Leeds City Council,31/10/2015,Strategic Landlord,Housing Management,Supplies and Services,Operational Materials,205,01-Oct-2015,1510-00201,0.00,10.00,R,Access Locksmiths (Leeds) Limited,No
Http://opendatacommunities.org/id/metropolitan-district-council/leeds,Leeds City Council,31/10/2015,Strategic Landlord,Housing Management,Premises,General Maintenance,104,01-Oct-2015,1510-00202,0.00,270.00,R,Access Locksmiths (Leeds) Limited,No
Http://opendatacommunities.org/id/metropolitan-district-council/leeds,Leeds City Council,31/10/2015,Strategic Landlord,Property and Contracts,Premises,General Maintenance,104,01-Oct-2015,1510-00203,0.00,20.00,R,Access Locksmiths (Leeds) Limited,No
Http://opendatacommunities.org/id/metropolitan-district-council/leeds,Leeds City Council,31/10/2015,Strategic Landlord,Housing Management,Supplies and Services,Operational Materials,205,01-Oct-2015,1510-00204,0.00,55.25,R,Access Locksmiths (Leeds) Limited,No
Http://opendatacommunities.org/id/metropolitan-district-council/leeds,Leeds City Council,31/10/2015,Strategic Landlord,Housing Management,Premises,General Maintenance,104,02-Oct-2015,1510-00205,0.00,30.00,R,Access Locksmiths (Leeds) Limited,No
Http://opendatacommunities.org/id/metropolitan-district-council/leeds,Leeds City Council,31/10/2015,Central & Corporate,Commercial Services Trading Services,Supplies and Services,Operational Materials,205,05-Oct-2015,1510-00206,0.00,98.53,R,Access Locksmiths (Leeds) Limited,No
Http://opendatacommunities.org/id/metropolitan-district-council/leeds,Leeds City Council,31/10/2015,Strategic Landlord,Housing Management,Supplies and Services,Operational Materials,205,09-Oct-2015,1510-00207,0.00,103.70,R,Access Locksmiths (Leeds) Limited,No
Http://opendatacommunities.org/id/metropolitan-district-council/leeds,Leeds City Council,31/10/2015,Central & Corporate,Commercial Services Trading Services,Supplies and Services,Operational Materials,205,13-Oct-2015,1510-00208,0.00,67.10,R,Access Locksmiths (Leeds) Limited,No
Http://opendatacommunities.org/id/metropolitan-district-council/leeds,Leeds City Council,31/10/2015,Central & Corporate,Commercial Services Trading Services,Supplies and Services,Operational Materials,205,13-Oct-2015,1510-00209,0.00,36.66,R,Access Locksmiths (Leeds) Limited,No
Http://opendatacommunities.org/id/metropolitan-district-council/leeds,Leeds City Council,31/10/2015,Central & Corporate,Commercial Services Trading Services,Supplies and Services,Operational Materials,205,13-Oct-2015,1510-00210,0.00,15.00,R,Access Locksmiths (Leeds) Limited,No
Http://opendatacommunities.org/id/metropolitan-district-council/leeds,Leeds City Council,31/10/2015,Central & Corporate,Commercial Services Trading Services,Supplies and Services,Operational Materials,205,13-Oct-2015,1510-00211,0.00,49.35,R,Access Locksmiths (Leeds) Limited,No
Http://opendatacommunities.org/id/metropolitan-district-council/leeds,Leeds City Council,31/10/2015,Central & Corporate,Commercial Services Trading Services,Supplies and Services,Operational Materials,205,13-Oct-2015,1510-00212,0.00,36.66,R,Access Locksmiths (Leeds) Limited,No
Http://opendatacommunities.org/id/metropolitan-district-council/leeds,Leeds City Council,31/10/2015,Central & Corporate,Commercial Services Trading Services,Supplies and Services,Operational Materials,205,13-Oct-2015,1510-00213,0.00,10.98,R,Access Locksmiths (Leeds) Limited,No
Http://opendatacommunities.org/id/metropolitan-district-council/leeds,Leeds City Council,31/10/2015,Central & Corporate,Commercial Services Trading Services,Supplies and Services,Operational Materials,205,13-Oct-2015,1510-00214,0.00,37.71,R,Access Locksmiths (Leeds) Limited,No
Http://opendatacommunities.org/id/metropolitan-district-council/leeds,Leeds City Council,31/10/2015,Central & Corporate,Commercial Services Trading Services,Supplies and Services,Operational Materials,205,13-Oct-2015,1510-00215,0.00,48.71,R,Access Locksmiths (Leeds) Limited,No
Http://opendatacommunities.org/id/metropolitan-district-council/leeds,Leeds City Council,31/10/2015,Central & Corporate,Commercial Services Trading Services,Supplies and Services,Operational Materials,205,13-Oct-2015,1510-00216,0.00,330.84,R,Access Locksmiths (Leeds) Limited,No
Http://opendatacommunities.org/id/metropolitan-district-council/leeds,Leeds City Council,31/10/2015,Central & Corporate,Commercial Services Trading Services,Supplies and Services,Operational Materials,205,13-Oct-2015,1510-00217,0.00,37.69,R,Access Locksmiths (Leeds) Limited,No
Http://opendatacommunities.org/id/metropolitan-district-council/leeds,Leeds City Council,31/10/2015,Central & Corporate,Commercial Services Trading Services,Supplies and Services,Operational Materials,205,13-Oct-2015,1510-00218,0.00,6.25,R,Access Locksmiths (Leeds) Limited,No
Http://opendatacommunities.org/id/metropolitan-district-council/leeds,Leeds City Council,31/10/2015,Strategic Landlord,Property and Contracts,Supplies and Services,Operational Materials,205,16-Oct-2015,1510-00219,0.00,992.63,R,Access Locksmiths (Leeds) Limited,No
Http://opendatacommunities.org/id/metropolitan-district-council/leeds,Leeds City Council,31/10/2015,Strategic Landlord,Property and Contracts,Supplies and Services,Operational Materials,205,16-Oct-2015,1510-00220,0.00,15.00,R,Access Locksmiths (Leeds) Limited,No
Http://opendatacommunities.org/id/metropolitan-district-council/leeds,Leeds City Council,31/10/2015,Central & Corporate,Commercial Services Trading Services,Supplies and Services,Operational Materials,205,19-Oct-2015,1510-00221,0.00,27.75,R,Access Locksmiths (Leeds) Limited,No
Http://opendatacommunities.org/id/metropolitan-district-council/leeds,Leeds City Council,31/10/2015,Central & Corporate,Commercial Services Trading Services,Supplies and Services,Operational Materials,205,19-Oct-2015,1510-00222,0.00,14.79,R,Access Locksmiths (Leeds) Limited,No
Http://opendatacommunities.org/id/metropolitan-district-council/leeds,Leeds City Council,31/10/2015,Central & Corporate,Commercial Services Trading Services,Supplies and Services,Operational Materials,205,19-Oct-2015,1510-00223,0.00,52.60,R,Access Locksmiths (Leeds) Limited,No
Http://opendatacommunities.org/id/metropolitan-district-council/leeds,Leeds City Council,31/10/2015,Central & Corporate,Commercial Services Trading Services,Supplies and Services,Operational Materials,205,19-Oct-2015,1510-00224,0.00,15.25,R,Access Locksmiths (Leeds) Limited,No
Http://opendatacommunities.org/id/metropolitan-district-council/leeds,Leeds City Council,31/10/2015,Strategic Landlord,Property and Contracts,Supplies and Services,Operational Materials,205,23-Oct-2015,1510-00225,0.00,371.00,R,Access Locksmiths (Leeds) Limited,No
Http://opendatacommunities.org/id/metropolitan-district-council/leeds,Leeds City Council,31/10/2015,Strategic Landlord,Housing Management,Supplies and Services,Operational Materials,205,23-Oct-2015,1510-00226,0.00,10.00,R,Access Locksmiths (Leeds) Limited,No
Http://opendatacommunities.org/id/metropolitan-district-council/leeds,Leeds City Council,31/10/2015,Strategic Landlord,Property and Contracts,Premises,General Maintenance,104,23-Oct-2015,1510-00227,0.00,215.46,R,Access Locksmiths (Leeds) Limited,No
Http://opendatacommunities.org/id/metropolitan-district-council/leeds,Leeds City Council,31/10/2015,Strategic Landlord,Housing Management,Premises,General Maintenance,104,23-Oct-2015,1510-00228,0.00,155.55,R,Access Locksmiths (Leeds) Limited,No
Http://opendatacommunities.org/id/metropolitan-district-council/leeds,Leeds City Council,31/10/2015,Central & Corporate,Commercial Services Trading Services,Supplies and Services,Operational Materials,205,23-Oct-2015,1510-00229,0.00,21.91,R,Access Locksmiths (Leeds) Limited,No
Http://opendatacommunities.org/id/metropolitan-district-council/leeds,Leeds City Council,31/10/2015,Central & Corporate,Commercial Services Trading Services,Supplies and Services,Operational Materials,205,23-Oct-2015,1510-00230,0.00,339.84,R,Access Locksmiths (Leeds) Limited,No
Http://opendatacommunities.org/id/metropolitan-district-council/leeds,Leeds City Council,31/10/2015,Central & Corporate,Commercial Services Trading Services,Supplies and Services,Operational Materials,205,23-Oct-2015,1510-00231,0.00,212.40,R,Access Locksmiths (Leeds) Limited,No
Http://opendatacommunities.org/id/metropolitan-district-council/leeds,Leeds City Council,31/10/2015,Central & Corporate,Commercial Services Trading Services,Supplies and Services,Operational Materials,205,23-Oct-2015,1510-00232,0.00,127.44,R,Access Locksmiths (Leeds) Limited,No
Http://opendatacommunities.org/id/metropolitan-district-council/leeds,Leeds City Council,31/10/2015,Central & Corporate,Commercial Services Trading Services,Supplies and Services,Operational Materials,205,23-Oct-2015,1510-00233,0.00,169.92,R,Access Locksmiths (Leeds) Limited,No
Http://opendatacommunities.org/id/metropolitan-district-council/leeds,Leeds City Council,31/10/2015,Central & Corporate,Commercial Services Trading Services,Supplies and Services,Operational Materials,205,23-Oct-2015,1510-00234,0.00,40.14,R,Access Locksmiths (Leeds) Limited,No
Http://opendatacommunities.org/id/metropolitan-district-council/leeds,Leeds City Council,31/10/2015,Central & Corporate,Commercial Services Trading Services,Supplies and Services,Operational Materials,205,23-Oct-2015,1510-00235,0.00,13.42,R,Access Locksmiths (Leeds) Limited,No
Http://opendatacommunities.org/id/metropolitan-district-council/leeds,Leeds City Council,31/10/2015,Central & Corporate,Commercial Services Trading Services,Supplies and Services,Operational Materials,205,23-Oct-2015,1510-00236,0.00,3.74,R,Access Locksmiths (Leeds) Limited,No
Http://opendatacommunities.org/id/metropolitan-district-council/leeds,Leeds City Council,31/10/2015,Central & Corporate,Commercial Services Trading Services,Supplies and Services,Operational Materials,205,23-Oct-2015,1510-00237,0.00,7.76,R,Access Locksmiths (Leeds) Limited,No
Http://opendatacommunities.org/id/metropolitan-district-council/leeds,Leeds City Council,31/10/2015,Central & Corporate,Commercial Services Trading Services,Supplies and Services,Operational Materials,205,23-Oct-2015,1510-00238,0.00,127.44,R,Access Locksmiths (Leeds) Limited,No
Http://opendatacommunities.org/id/metropolitan-district-council/leeds,Leeds City Council,31/10/2015,Central & Corporate,Commercial Services Trading Services,Supplies and Services,Operational Materials,205,23-Oct-2015,1510-00239,0.00,9.00,R,Access Locksmiths (Leeds) Limited,No
Http://opendatacommunities.org/id/metropolitan-district-council/leeds,Leeds City Council,31/10/2015,Central & Corporate,Commercial Services Trading Services,Supplies and Services,Operational Materials,205,23-Oct-2015,1510-00240,0.00,132.68,R,Access Locksmiths (Leeds) Limited,No
Http://opendatacommunities.org/id/metropolitan-district-council/leeds,Leeds City Council,31/10/2015,Central & Corporate,Commercial Services Trading Services,Supplies and Services,Operational Materials,205,23-Oct-2015,1510-00241,0.00,8.70,R,Access Locksmiths (Leeds) Limited,No
Http://opendatacommunities.org/id/metropolitan-district-council/leeds,Leeds City Council,31/10/2015,Central & Corporate,Commercial Services Trading Services,Supplies and Services,Operational Materials,205,23-Oct-2015,1510-00242,0.00,6.93,R,Access Locksmiths (Leeds) Limited,No
Http://opendatacommunities.org/id/metropolitan-district-council/leeds,Leeds City Council,31/10/2015,Central & Corporate,Commercial Services Trading Services,Supplies and Services,Operational Materials,205,23-Oct-2015,1510-00243,0.00,17.91,R,Access Locksmiths (Leeds) Limited,No
Http://opendatacommunities.org/id/metropolitan-district-council/leeds,Leeds City Council,31/10/2015,Central & Corporate,Commercial Services Trading Services,Supplies and Services,Operational Materials,205,23-Oct-2015,1510-00244,0.00,10.72,R,Access Locksmiths (Leeds) Limited,No
Http://opendatacommunities.org/id/metropolitan-district-council/leeds,Leeds City Council,31/10/2015,Strategic Landlord,Housing Management,Supplies and Services,Operational Materials,205,23-Oct-2015,1510-00245,0.00,103.76,R,Access Locksmiths (Leeds) Limited,No
Http://opendatacommunities.org/id/metropolitan-district-council/leeds,Leeds City Council,31/10/2015,Central & Corporate,Commercial Services Trading Services,Supplies and Services,Operational Materials,205,27-Oct-2015,1510-00246,0.00,27.14,R,Access Locksmiths (Leeds) Limited,No
Http://opendatacommunities.org/id/metropolitan-district-council/leeds,Leeds City Council,31/10/2015,Strategic Landlord,Property and Contracts,Supplies and Services,Operational Materials,205,30-Oct-2015,1510-00247,0.00,46.00,R,Access Locksmiths (Leeds) Limited,No
Http://opendatacommunities.org/id/metropolitan-district-council/leeds,Leeds City Council,31/10/2015,Strategic Landlord,Property and Contracts,Supplies and Services,Operational Materials,205,30-Oct-2015,1510-00248,0.00,282.80,R,Access Locksmiths (Leeds) Limited,No
Http://opendatacommunities.org/id/metropolitan-district-council/leeds,Leeds City Council,31/10/2015,Central & Corporate,Commercial Services Trading Services,Supplies and Services,Other Hired And Contracted Services,265,02-Oct-2015,1510-00249,0.00,85.00,R,Access Opening Systems Limited,No
Http://opendatacommunities.org/id/metropolitan-district-council/leeds,Leeds City Council,31/10/2015,Central & Corporate,Commercial Services Trading Services,Supplies and Services,Other Hired And Contracted Services,265,02-Oct-2015,1510-00250,0.00,85.00,R,Access Opening Systems Limited,No
Http://opendatacommunities.org/id/metropolitan-district-council/leeds,Leeds City Council,31/10/2015,Central & Corporate,Commercial Services Trading Services,Supplies and Services,Other Hired And Contracted Services,265,02-Oct-2015,1510-00251,0.00,85.00,R,Access Opening Systems Limited,No
Http://opendatacommunities.org/id/metropolitan-district-council/leeds,Leeds City Council,31/10/2015,Central & Corporate,Commercial Services Trading Services,Supplies and Services,Other Hired And Contracted Services,265,02-Oct-2015,1510-00252,0.00,91.25,R,Access Opening Systems Limited,No
Http://opendatacommunities.org/id/metropolitan-district-council/leeds,Leeds City Council,31/10/2015,Central & Corporate,Commercial Services Trading Services,Supplies and Services,Other Hired And Contracted Services,265,02-Oct-2015,1510-00253,0.00,85.00,R,Access Opening Systems Limited,No
Http://opendatacommunities.org/id/metropolitan-district-council/leeds,Leeds City Council,31/10/2015,Central & Corporate,Commercial Services Trading Services,Supplies and Services,Other Hired And Contracted Services,265,02-Oct-2015,1510-00254,0.00,97.50,R,Access Opening Systems Limited,No
Http://opendatacommunities.org/id/metropolitan-district-council/leeds,Leeds City Council,31/10/2015,Central & Corporate,Commercial Services Trading Services,Supplies and Services,Operational Materials,205,02-Oct-2015,1510-00255,0.00,25.00,R,Access Opening Systems Limited,No
Http://opendatacommunities.org/id/metropolitan-district-council/leeds,Leeds City Council,31/10/2015,Central & Corporate,Commercial Services Trading Services,Supplies and Services,Operational Materials,205,02-Oct-2015,1510-00256,0.00,48.50,R,Access Opening Systems Limited,No
Http://opendatacommunities.org/id/metropolitan-district-council/leeds,Leeds City Council,31/10/2015,Central & Corporate,Commercial Services Trading Services,Supplies and Services,Other Hired And Contracted Services,265,06-Oct-2015,1510-00257,0.00,430.90,R,Access Opening Systems Limited,No
Http://opendatacommunities.org/id/metropolitan-district-council/leeds,Leeds City Council,31/10/2015,Central & Corporate,Commercial Services Trading Services,Supplies and Services,Other Hired And Contracted Services,265,06-Oct-2015,1510-00258,0.00,259.90,R,Access Opening Systems Limited,No
Http://opendatacommunities.org/id/metropolitan-district-council/leeds,Leeds City Council,31/10/2015,Central & Corporate,Commercial Services Trading Services,Supplies and Services,Other Hired And Contracted Services,265,09-Oct-2015,1510-00259,0.00,210.00,R,Access Opening Systems Limited,No
Http://opendatacommunities.org/id/metropolitan-district-council/leeds,Leeds City Council,31/10/2015,Central & Corporate,Commercial Services Trading Services,Supplies and Services,Other Hired And Contracted Services,265,09-Oct-2015,1510-00260,0.00,85.00,R,Access Opening Systems Limited,No
Http://opendatacommunities.org/id/metropolitan-district-council/leeds,Leeds City Council,31/10/2015,Central & Corporate,Commercial Services Trading Services,Supplies and Services,Other Hired And Contracted Services,265,09-Oct-2015,1510-00261,0.00,85.00,R,Access Opening Systems Limited,No
Http://opendatacommunities.org/id/metropolitan-district-council/leeds,Leeds City Council,31/10/2015,Central & Corporate,Commercial Services Trading Services,Supplies and Services,Other Hired And Contracted Services,265,09-Oct-2015,1510-00262,0.00,85.00,R,Access Opening Systems Limited,No
Http://opendatacommunities.org/id/metropolitan-district-council/leeds,Leeds City Council,31/10/2015,Central & Corporate,Commercial Services Trading Services,Supplies and Services,Operational Materials,205,13-Oct-2015,1510-00263,0.00,85.00,R,Access Opening Systems Limited,No
Http://opendatacommunities.org/id/metropolitan-district-council/leeds,Leeds City Council,31/10/2015,Central & Corporate,Commercial Services Trading Services,Supplies and Services,Operational Materials,205,13-Oct-2015,1510-00264,0.00,215.00,R,Access Opening Systems Limited,No
Http://opendatacommunities.org/id/metropolitan-district-council/leeds,Leeds City Council,31/10/2015,Central & Corporate,Commercial Services Trading Services,Supplies and Services,Operational Materials,205,13-Oct-2015,1510-00265,0.00,20.00,R,Access Opening Systems Limited,No
Http://opendatacommunities.org/id/metropolitan-district-council/leeds,Leeds City Council,31/10/2015,Central & Corporate,Commercial Services Trading Services,Supplies and Services,Operational Materials,205,19-Oct-2015,1510-00266,0.00,94.25,R,Access Opening Systems Limited,No
Http://opendatacommunities.org/id/metropolitan-district-council/leeds,Leeds City Council,31/10/2015,Central & Corporate,Commercial Services Trading Services,Supplies and Services,Operational Materials,205,19-Oct-2015,1510-00267,0.00,125.00,R,Access Opening Systems Limited,No
Http://opendatacommunities.org/id/metropolitan-district-council/leeds,Leeds City Council,31/10/2015,Central & Corporate,Commercial Services Trading Services,Supplies and Services,Other Hired And Contracted Services,265,21-Oct-2015,1510-00268,0.00,135.00,R,Access Opening Systems Limited,No
Http://opendatacommunities.org/id/metropolitan-district-council/leeds,Leeds City Council,31/10/2015,Central & Corporate,Commercial Services Trading Services,Supplies and Services,Other Hired And Contracted Services,265,23-Oct-2015,1510-00269,0.00,293.10,R,Access Opening Systems Limited,No
Http://opendatacommunities.org/id/metropolitan-district-council/leeds,Leeds City Council,31/10/2015,Central & Corporate,Commercial Services Trading Services,Supplies and Services,Operational Materials,205,23-Oct-2015,1510-00270,0.00,105.00,R,Access Opening Systems Limited,No
Http://opendatacommunities.org/id/metropolitan-district-council/leeds,Leeds City Council,31/10/2015,Central & Corporate,Commercial Services Trading Services,Supplies and Services,Other Hired And Contracted Services,265,23-Oct-2015,1510-00271,0.00,85.00,R,Access Opening Systems Limited,No
Http://opendatacommunities.org/id/metropolitan-district-council/leeds,Leeds City Council,31/10/2015,Central & Corporate,Commercial Services Trading Services,Supplies and Services,Other Hired And Contracted Services,265,23-Oct-2015,1510-00272,0.00,85.00,R,Access Opening Systems Limited,No
Http://opendatacommunities.org/id/metropolitan-district-council/leeds,Leeds City Council,31/10/2015,Central & Corporate,Commercial Services Trading Services,Supplies and Services,Other Hired And Contracted Services,265,23-Oct-2015,1510-00273,0.00,85.00,R,Access Opening Systems Limited,No
Http://opendatacommunities.org/id/metropolitan-district-council/leeds,Leeds City Council,31/10/2015,Central & Corporate,Commercial Services Trading Services,Supplies and Services,Operational Materials,205,23-Oct-2015,1510-00274,0.00,91.74,R,Access Opening Systems Limited,No
Http://opendatacommunities.org/id/metropolitan-district-council/leeds,Leeds City Council,31/10/2015,Central & Corporate,Commercial Services Trading Services,Supplies and Services,Operational Materials,205,26-Oct-2015,1510-00275,0.00,1150.00,R,Access Opening Systems Limited,No
Http://opendatacommunities.org/id/metropolitan-district-council/leeds,Leeds City Council,31/10/2015,Central & Corporate,Commercial Services Trading Services,Supplies and Services,Other Hired And Contracted Services,265,28-Oct-2015,1510-00276,0.00,91.25,R,Access Opening Systems Limited,No
Http://opendatacommunities.org/id/metropolitan-district-council/leeds,Leeds City Council,31/10/2015,Central & Corporate,Commercial Services Trading Services,Supplies and Services,Other Hired And Contracted Services,265,28-Oct-2015,1510-00277,0.00,188.75,R,Access Opening Systems Limited,No
Http://opendatacommunities.org/id/metropolitan-district-council/leeds,Leeds City Council,31/10/2015,Central & Corporate,Commercial Services Trading Services,Supplies and Services,Other Hired And Contracted Services,265,28-Oct-2015,1510-00278,0.00,85.00,R,Access Opening Systems Limited,No
Http://opendatacommunities.org/id/metropolitan-district-council/leeds,Leeds City Council,31/10/2015,Central & Corporate,Commercial Services Trading Services,Supplies and Services,Operational Materials,205,28-Oct-2015,1510-00279,0.00,984.27,R,Access Opening Systems Limited,No
Http://opendatacommunities.org/id/metropolitan-district-council/leeds,Leeds City Council,31/10/2015,Central & Corporate,Commercial Services Trading Services,Supplies and Services,Other Hired And Contracted Services,265,30-Oct-2015,1510-00280,0.00,85.00,R,Access Opening Systems Limited,No
Http://opendatacommunities.org/id/metropolitan-district-council/leeds,Leeds City Council,31/10/2015,Central & Corporate,Commercial Services Trading Services,Supplies and Services,Other Hired And Contracted Services,265,30-Oct-2015,1510-00281,0.00,660.32,R,Access Opening Systems Limited,No
Http://opendatacommunities.org/id/metropolitan-district-council/leeds,Leeds City Council,31/10/2015,Central & Corporate,Commercial Services Trading Services,Supplies and Services,Other Hired And Contracted Services,265,30-Oct-2015,1510-00282,0.00,91.25,R,Access Opening Systems Limited,No
Http://opendatacommunities.org/id/metropolitan-district-council/leeds,Leeds City Council,31/10/2015,Central & Corporate,Commercial Services Trading Services,Supplies and Services,Other Hired And Contracted Services,265,30-Oct-2015,1510-00283,0.00,85.00,R,Access Opening Systems Limited,No
Http://opendatacommunities.org/id/metropolitan-district-council/leeds,Leeds City Council,31/10/2015,Central & Corporate,Commercial Services Trading Services,Supplies and Services,Operational Materials,205,30-Oct-2015,1510-00284,0.00,39.50,R,Access Opening Systems Limited,No
Http://opendatacommunities.org/id/metropolitan-district-council/leeds,Leeds City Council,31/10/2015,Central & Corporate,Commercial Services Trading Services,Supplies and Services,Other Hired And Contracted Services,265,30-Oct-2015,1510-00285,0.00,590.23,R,Access Opening Systems Limited,No
Http://opendatacommunities.org/id/metropolitan-district-council/leeds,Leeds City Council,31/10/2015,Central & Corporate,Commercial Services Trading Services,Supplies and Services,Other Hired And Contracted Services,265,30-Oct-2015,1510-00286,0.00,85.00,R,Access Opening Systems Limited,No
Http://opendatacommunities.org/id/metropolitan-district-council/leeds,Leeds City Council,31/10/2015,Childrens Services,Safeguarding Targeted & Specialist  ,Third Party Payments,Rents (non supported),552,11-Sep-2015,1510-00287,0.00,200.00,R,Accommodation,Yes
Http://opendatacommunities.org/id/metropolitan-district-council/leeds,Leeds City Council,31/10/2015,Adult Social Care,Services For Older People - 65 And Over,Supplies and Services,Operational Furniture And Equipment,203,30-Oct-2015,1510-00288,0.00,1055.00,R,Accora,No
Http://opendatacommunities.org/id/metropolitan-district-council/leeds,Leeds City Council,31/10/2015,Insurance,Insurance,Supplies and Services,Insurance Claims,248,08-Oct-2015,1510-00289,0.00,5250.00,R,Accountant General Of The Senior Courts,No
Http://opendatacommunities.org/id/metropolitan-district-council/leeds,Leeds City Council,31/10/2015,Insurance,Insurance,Supplies and Services,Insurance Claims,248,22-Oct-2015,1510-00290,0.00,1750.00,R,Accountant General Of The Senior Courts,No
Http://opendatacommunities.org/id/metropolitan-district-council/leeds,Leeds City Council,31/10/2015,City Development,Recreation,Transport,External Hire -Occasional,304,01-Oct-2015,1510-00291,0.00,169.50,R,Ace Container Services Limited,No
Http://opendatacommunities.org/id/metropolitan-district-council/leeds,Leeds City Council,31/10/2015,City Development,Recreation,Supplies and Services,Other Hired And Contracted Services,265,05-Oct-2015,1510-00292,0.00,126.00,R,Ace Container Services Limited,No
Http://opendatacommunities.org/id/metropolitan-district-council/leeds,Leeds City Council,31/10/2015,City Development,Recreation,Supplies and Services,Other Hired And Contracted Services,265,05-Oct-2015,1510-00293,0.00,135.00,R,Ace Container Services Limited,No
Http://opendatacommunities.org/id/metropolitan-district-council/leeds,Leeds City Council,31/10/2015,City Development,Libraries  Arts & Heritage,Supplies and Services,Other Hired And Contracted Services,265,09-Oct-2015,1510-00294,0.00,225.00,R,Ace Container Services Limited,No
Http://opendatacommunities.org/id/metropolitan-district-council/leeds,Leeds City Council,31/10/2015,City Development,Recreation,Transport,External Hire -Occasional,304,30-Oct-2015,1510-00295,0.00,128.65,R,Ace Container Services Limited,No
Http://opendatacommunities.org/id/metropolitan-district-council/leeds,Leeds City Council,31/10/2015,Environment & Housing,Parks and Countryside,Supplies and Services,Operational Materials,205,09-Oct-2015,1510-00296,0.00,3085.00,R,Ace Engineers (Morley) Ltd,No
Http://opendatacommunities.org/id/metropolitan-district-council/leeds,Leeds City Council,31/10/2015,Environment & Housing,Parks and Countryside,Supplies and Services,Operational Materials,205,23-Oct-2015,1510-00297,0.00,2415.00,R,Ace Engineers (Morley) Ltd,No
Http://opendatacommunities.org/id/metropolitan-district-council/leeds,Leeds City Council,31/10/2015,Civic Enterprise Leeds,Commercial Services,Supplies and Services,Operational Materials,205,05-Oct-2015,1510-00298,0.00,1353.00,R,Acme Facilities Group Ltd,No
Http://opendatacommunities.org/id/metropolitan-district-council/leeds,Leeds City Council,31/10/2015,Civic Enterprise Leeds,Commercial Services,Supplies and Services,Operational Materials,205,14-Oct-2015,1510-00299,0.00,999.00,R,Acme Facilities Group Ltd,No
Http://opendatacommunities.org/id/metropolitan-district-council/leeds,Leeds City Council,31/10/2015,Civic Enterprise Leeds,Commercial Services,Supplies and Services,Operational Furniture And Equipment,203,14-Oct-2015,1510-00300,0.00,1145.00,R,Acme Facilities Group Ltd,No
Http://opendatacommunities.org/id/metropolitan-district-council/leeds,Leeds City Council,31/10/2015,Civic Enterprise Leeds,Commercial Services,Supplies and Services,Operational Materials,205,14-Oct-2015,1510-00301,0.00,1872.00,R,Acme Facilities Group Ltd,No
Http://opendatacommunities.org/id/metropolitan-district-council/leeds,Leeds City Council,31/10/2015,Childrens Services,Safeguarding Targeted & Specialist,Third Party Payments,Independent Fostering Agencies,509,30-Oct-2015,1510-00302,0.00,2785.71,R,Acorn Fostering Services,No
Http://opendatacommunities.org/id/metropolitan-district-council/leeds,Leeds City Council,31/10/2015,Childrens Services,Safeguarding Targeted & Specialist,Third Party Payments,Independent Fostering Agencies,509,30-Oct-2015,1510-00303,0.00,5014.20,R,Acorn House (Fostering Services) Ltd,No
Http://opendatacommunities.org/id/metropolitan-district-council/leeds,Leeds City Council,31/10/2015,City Development,Libraries  Arts & Heritage,Supplies and Services,Other Hired And Contracted Services,265,06-Oct-2015,1510-00304,0.00,1060.00,R,Acorn Scaffolding (Yorkshire) Ltd,No
Http://opendatacommunities.org/id/metropolitan-district-council/leeds,Leeds City Council,31/10/2015,Childrens Services,Learning Skills & Universal,Third Party Payments,Services Rendered By Other Organisations,511,28-Oct-2015,1510-00305,0.00,284.18,R,Acorns Nursery,No
Http://opendatacommunities.org/id/metropolitan-district-council/leeds,Leeds City Council,31/10/2015,Adult Social Care,Services For Older People Under 65 P/Dis,Third Party Payments,Nursing Home,570,21-Oct-2015,1510-00306,0.00,2893.44,R,Acre Green,No
Http://opendatacommunities.org/id/metropolitan-district-council/leeds,Leeds City Council,31/10/2015,Adult Social Care,Services For Older People - 65 And Over,Third Party Payments,Nursing Home,570,21-Oct-2015,1510-00307,0.00,11386.08,R,Acre Green,No
Http://opendatacommunities.org/id/metropolitan-district-council/leeds,Leeds City Council,31/10/2015,Adult Social Care,Other Adult Services,Third Party Payments,Nursing Home,570,21-Oct-2015,1510-00308,0.00,6731.72,R,Acre Green,No
Http://opendatacommunities.org/id/metropolitan-district-council/leeds,Leeds City Council,31/10/2015,Adult Social Care,Services For Older People - 65 And Over,Third Party Payments,Residential Care Dementia,571,21-Oct-2015,1510-00309,0.00,2605.29,R,Acre Green,No
Http://opendatacommunities.org/id/metropolitan-district-council/leeds,Leeds City Council,31/10/2015,Adult Social Care,Services For Older People - 65 And Over,Third Party Payments,Nursing Care Dementia,574,21-Oct-2015,1510-00310,0.00,2552.41,R,Acre Green,No
Http://opendatacommunities.org/id/metropolitan-district-council/leeds,Leeds City Council,31/10/2015,Adult Social Care,Services For Older People - 65 And Over,Third Party Payments,Residential,580,21-Oct-2015,1510-00311,0.00,7487.76,R,Acre Green,No
Http://opendatacommunities.org/id/metropolitan-district-council/leeds,Leeds City Council,31/10/2015,Adult Social Care,Services For Adults Under 65 Mental/Dis,Third Party Payments,Residential,580,21-Oct-2015,1510-00312,0.00,1319.20,R,Acre Green,No
Http://opendatacommunities.org/id/metropolitan-district-council/leeds,Leeds City Council,31/10/2015,Childrens Services,Learning Skills & Universal,Third Party Payments,Services Rendered By Other Organisations,511,28-Oct-2015,1510-00313,0.00,995.33,R,Acre Wood Day Nursery,No
Http://opendatacommunities.org/id/metropolitan-district-council/leeds,Leeds City Council,31/10/2015,Central & Corporate,Public Health,Employees,Training & Development,70,27-Oct-2015,1510-00314,0.00,265.00,R,Act Now Training Ltd,No
Http://opendatacommunities.org/id/metropolitan-district-council/leeds,Leeds City Council,31/10/2015,Central & Corporate,Public Health,Employees,Training & Development,70,27-Oct-2015,1510-00315,0.00,265.00,R,Act Now Training Ltd,No
Http://opendatacommunities.org/id/metropolitan-district-council/leeds,Leeds City Council,31/10/2015,Central & Corporate,Commercial Services Trading Services,Supplies and Services,Other Hired And Contracted Services,265,05-Oct-2015,1510-00316,0.00,169.30,R,Actavo Uk Limited,No
Http://opendatacommunities.org/id/metropolitan-district-council/leeds,Leeds City Council,31/10/2015,Adult Social Care,Services For Adults Under 65 Mental/Dis,Third Party Payments,Services Provided By Other NHS Bodies,522,02-Oct-2015,1510-00317,0.00,700.00,R,Action First Recruitment Ltd,No
Http://opendatacommunities.org/id/metropolitan-district-council/leeds,Leeds City Council,31/10/2015,Adult Social Care,Services For Adults Under 65 Mental/Dis,Third Party Payments,Services Provided By Other NHS Bodies,522,02-Oct-2015,1510-00318,0.00,400.00,R,Action First Recruitment Ltd,No
Http://opendatacommunities.org/id/metropolitan-district-council/leeds,Leeds City Council,31/10/2015,Adult Social Care,Services For Adults Under 65 Mental/Dis,Third Party Payments,Services Provided By Other NHS Bodies,522,02-Oct-2015,1510-00319,0.00,700.00,R,Action First Recruitment Ltd,No
Http://opendatacommunities.org/id/metropolitan-district-council/leeds,Leeds City Council,31/10/2015,Adult Social Care,Services For Adults Under 65 Mental/Dis,Third Party Payments,Services Provided By Other NHS Bodies,522,02-Oct-2015,1510-00320,0.00,1750.00,R,Action First Recruitment Ltd,No
Http://opendatacommunities.org/id/metropolitan-district-council/leeds,Leeds City Council,31/10/2015,Adult Social Care,Services For Adults Under 65 Mental/Dis,Third Party Payments,Services Provided By Other NHS Bodies,522,02-Oct-2015,1510-00321,0.00,1050.00,R,Action First Recruitment Ltd,No
Http://opendatacommunities.org/id/metropolitan-district-council/leeds,Leeds City Council,31/10/2015,Adult Social Care,Services For Adults Under 65 Mental/Dis,Third Party Payments,Services Provided By Other NHS Bodies,522,02-Oct-2015,1510-00322,0.00,700.00,R,Action First Recruitment Ltd,No
Http://opendatacommunities.org/id/metropolitan-district-council/leeds,Leeds City Council,31/10/2015,Adult Social Care,Services For Adults Under 65 Mental/Dis,Third Party Payments,Services Provided By Other NHS Bodies,522,02-Oct-2015,1510-00323,0.00,1750.00,R,Action First Recruitment Ltd,No
Http://opendatacommunities.org/id/metropolitan-district-council/leeds,Leeds City Council,31/10/2015,Adult Social Care,Services For Adults Under 65 Mental/Dis,Third Party Payments,Services Provided By Other NHS Bodies,522,07-Oct-2015,1510-00324,0.00,350.00,R,Action First Recruitment Ltd,No
Http://opendatacommunities.org/id/metropolitan-district-council/leeds,Leeds City Council,31/10/2015,Adult Social Care,Services For Adults Under 65 Mental/Dis,Third Party Payments,Services Provided By Other NHS Bodies,522,09-Oct-2015,1510-00325,0.00,1400.00,R,Action First Recruitment Ltd,No
Http://opendatacommunities.org/id/metropolitan-district-council/leeds,Leeds City Council,31/10/2015,Adult Social Care,Services For Adults Under 65 Mental/Dis,Third Party Payments,Services Provided By Other NHS Bodies,522,09-Oct-2015,1510-00326,0.00,2800.00,R,Action First Recruitment Ltd,No
Http://opendatacommunities.org/id/metropolitan-district-council/leeds,Leeds City Council,31/10/2015,Adult Social Care,Services For Adults Under 65 Mental/Dis,Third Party Payments,Services Provided By Other NHS Bodies,522,16-Oct-2015,1510-00327,0.00,1050.00,R,Action First Recruitment Ltd,No
Http://opendatacommunities.org/id/metropolitan-district-council/leeds,Leeds City Council,31/10/2015,Adult Social Care,Services For Adults Under 65 Mental/Dis,Third Party Payments,Services Provided By Other NHS Bodies,522,16-Oct-2015,1510-00328,0.00,350.00,R,Action First Recruitment Ltd,No
Http://opendatacommunities.org/id/metropolitan-district-council/leeds,Leeds City Council,31/10/2015,Adult Social Care,Services For Adults Under 65 Mental/Dis,Third Party Payments,Services Provided By Other NHS Bodies,522,16-Oct-2015,1510-00329,0.00,700.00,R,Action First Recruitment Ltd,No
Http://opendatacommunities.org/id/metropolitan-district-council/leeds,Leeds City Council,31/10/2015,Adult Social Care,Services For Adults Under 65 Mental/Dis,Third Party Payments,Services Provided By Other NHS Bodies,522,16-Oct-2015,1510-00330,0.00,350.00,R,Action First Recruitment Ltd,No
Http://opendatacommunities.org/id/metropolitan-district-council/leeds,Leeds City Council,31/10/2015,Adult Social Care,Services For Adults Under 65 Mental/Dis,Third Party Payments,Services Provided By Other NHS Bodies,522,23-Oct-2015,1510-00331,0.00,350.00,R,Action First Recruitment Ltd,No
Http://opendatacommunities.org/id/metropolitan-district-council/leeds,Leeds City Council,31/10/2015,Adult Social Care,Services For Adults Under 65 Mental/Dis,Third Party Payments,Services Provided By Other NHS Bodies,522,23-Oct-2015,1510-00332,0.00,350.00,R,Action First Recruitment Ltd,No
Http://opendatacommunities.org/id/metropolitan-district-council/leeds,Leeds City Council,31/10/2015,Adult Social Care,Services For Adults Under 65 Mental/Dis,Third Party Payments,Services Provided By Other NHS Bodies,522,28-Oct-2015,1510-00333,0.00,1400.00,R,Action First Recruitment Ltd,No
Http://opendatacommunities.org/id/metropolitan-district-council/leeds,Leeds City Council,31/10/2015,Childrens Services,Safeguarding Targeted & Specialist,Third Party Payments,Interagency Adoptions,559,21-Oct-2015,1510-00334,0.00,750.00,R,Action For Children,No
Http://opendatacommunities.org/id/metropolitan-district-council/leeds,Leeds City Council,31/10/2015,Childrens Services,Safeguarding Targeted & Specialist,Third Party Payments,Interagency Adoptions,559,21-Oct-2015,1510-00335,0.00,750.00,R,Action For Children,No
Http://opendatacommunities.org/id/metropolitan-district-council/leeds,Leeds City Council,31/10/2015,Childrens Services,Safeguarding Targeted & Specialist,Third Party Payments,Interagency Adoptions,559,21-Oct-2015,1510-00336,0.00,3217.74,R,Action For Children,No
Http://opendatacommunities.org/id/metropolitan-district-council/leeds,Leeds City Council,31/10/2015,Adult Social Care,Services For Older People - 65 And Over,Third Party Payments,Payments To Voluntary Organisations,561,01-Oct-2015,1510-00337,0.00,33255.50,R,Action For Gipton Elderly,No
Http://opendatacommunities.org/id/metropolitan-district-council/leeds,Leeds City Council,31/10/2015,Strategic Landlord,Housing Management,Premises,Cleaning Agency Recharge,129,30-Oct-2015,1510-00338,0.00,360.00,R,Active Cleaning Solutions Ltd,No
Http://opendatacommunities.org/id/metropolitan-district-council/leeds,Leeds City Council,31/10/2015,Citizens and Communities,Communities,Supplies and Services,'Well Being' Large Grants Projects,230,19-Oct-2015,1510-00339,0.00,1275.00,R,Active Hire (Leeds) Ltd,No
Http://opendatacommunities.org/id/metropolitan-district-council/leeds,Leeds City Council,31/10/2015,Childrens Services,Learning Skills & Universal,Third Party Payments,Services Rendered By Other Organisations,511,28-Oct-2015,1510-00340,0.00,326.90,R,Active Kids Day Nursery,No
Http://opendatacommunities.org/id/metropolitan-district-council/leeds,Leeds City Council,31/10/2015,Environment & Housing,Parks and Countryside,Supplies and Services,Resaleable Materials,204,02-Oct-2015,1510-00341,0.00,91.80,R,Acushnet Europe Limited,No
Http://opendatacommunities.org/id/metropolitan-district-council/leeds,Leeds City Council as Accountable Body,31/10/2015,Social Services Pooled Budgets,Leeds Community Equip Store Pooled Budgt,Supplies and Services,Other Equipment,203,23-Oct-2015,1510-00342,0.00,65.00,R,Acute Sales Limited,No
Http://opendatacommunities.org/id/metropolitan-district-council/leeds,Leeds City Council as Accountable Body,31/10/2015,Social Services Pooled Budgets,Leeds Community Equip Store Pooled Budgt,Supplies and Services,Other Equipment,203,30-Oct-2015,1510-00343,0.00,120.00,R,Acute Sales Limited,No
Http://opendatacommunities.org/id/metropolitan-district-council/leeds,Leeds City Council,31/10/2015,Civic Enterprise Leeds,Business Support Centre,Supplies and Services,Other Hired And Contracted Services,265,02-Oct-2015,1510-00344,0.00,88.80,R,Ad3 Envelope Printers Limited,No
Http://opendatacommunities.org/id/metropolitan-district-council/leeds,Leeds City Council,31/10/2015,Civic Enterprise Leeds,Business Support Centre,Supplies and Services,Other Hired And Contracted Services,265,02-Oct-2015,1510-00345,0.00,88.80,R,Ad3 Envelope Printers Limited,No
Http://opendatacommunities.org/id/metropolitan-district-council/leeds,Leeds City Council,31/10/2015,Civic Enterprise Leeds,Business Support Centre,Supplies and Services,Other Hired And Contracted Services,265,02-Oct-2015,1510-00346,0.00,44.47,R,Ad3 Envelope Printers Limited,No
Http://opendatacommunities.org/id/metropolitan-district-council/leeds,Leeds City Council,31/10/2015,Civic Enterprise Leeds,Business Support Centre,Supplies and Services,Other Hired And Contracted Services,265,21-Oct-2015,1510-00347,0.00,95.80,R,Ad3 Envelope Printers Limited,No
Http://opendatacommunities.org/id/metropolitan-district-council/leeds,Leeds City Council,31/10/2015,City Development,Libraries  Arts & Heritage,Supplies and Services,Contributions To Extended Facilities,271,21-Oct-2015,1510-00348,0.00,2847.00,R,Adam Partridge Ltd,No
Http://opendatacommunities.org/id/metropolitan-district-council/leeds,Leeds City Council,31/10/2015,City Development,Libraries  Arts & Heritage,Supplies and Services,Non-Recurring Grants,227,20-Oct-2015,1510-00349,0.00,250.00,R,Adam Robinson,No
Http://opendatacommunities.org/id/metropolitan-district-council/leeds,Leeds City Council,31/10/2015,City Development,Libraries  Arts & Heritage,Supplies and Services,Non-Recurring Grants,227,20-Oct-2015,1510-00350,0.00,300.00,R,Adam Robinson,No
Http://opendatacommunities.org/id/metropolitan-district-council/leeds,Leeds City Council,31/10/2015,Childrens Services,Safeguarding Targeted & Specialist  ,Third Party Payments,Family Placements,562,04-Sep-2015,1510-00351,0.00,178.28,R,Adapted Vehicle Hire Ltd,Yes
Http://opendatacommunities.org/id/metropolitan-district-council/leeds,Leeds City Council,31/10/2015,Childrens Services,Safeguarding Targeted & Specialist  ,Third Party Payments,Placement Support,550,15-Sep-2015,1510-00352,0.00,838.00,R,Adapted Vehicle Hire Ltd,Yes
Http://opendatacommunities.org/id/metropolitan-district-council/leeds,Leeds City Council,31/10/2015,Childrens Services,Safeguarding Targeted & Specialist  ,Third Party Payments,Placement Support,550,25-Sep-2015,1510-00353,0.00,52.00,R,Adapted Vehicle Hire Ltd,Yes
Http://opendatacommunities.org/id/metropolitan-district-council/leeds,Leeds City Council,31/10/2015,Civic Enterprise Leeds,Facilities Management  ,Supplies and Services,Office Furniture & Equipment,201,10-Sep-2015,1510-00354,0.00,490.77,R,Addis Housewares Ltd,Yes
Http://opendatacommunities.org/id/metropolitan-district-council/leeds,Leeds City Council,31/10/2015,Environment & Housing,Environmental Health,Capital,Land,1,15-Oct-2015,1510-00355,0.00,39623.00,C,Addlestone Keane Ltd Solicitors,No
Http://opendatacommunities.org/id/metropolitan-district-council/leeds,Leeds City Council,31/10/2015,Strategic Landlord,Housing Management,Supplies and Services,Grants To Voluntary Organisations,293,30-Oct-2015,1510-00356,0.00,100.00,R,Adel Crag Community Association,No
Http://opendatacommunities.org/id/metropolitan-district-council/leeds,Leeds City Council,31/10/2015,Childrens Services,Learning Skills & Universal,Third Party Payments,Services Rendered By Other Organisations,511,28-Oct-2015,1510-00357,0.00,828.17,R,Adel Pre School,No
Http://opendatacommunities.org/id/metropolitan-district-council/leeds,Leeds City Council,31/10/2015,Environment & Housing,Housing Leeds Service,Capital,Other Costs,7,22-Oct-2015,1510-00358,0.00,310.00,C,REDACTED PERSONAL DATA,No
Http://opendatacommunities.org/id/metropolitan-district-council/leeds,Leeds City Council,31/10/2015,Adult Social Care,Services For Older People - 65 And Over,Third Party Payments,Nursing Home,570,21-Oct-2015,1510-00359,0.00,1060.84,R,Aden House,No
Http://opendatacommunities.org/id/metropolitan-district-council/leeds,Leeds City Council,31/10/2015,Adult Social Care,Services For Older People - 65 And Over,Third Party Payments,Residential Care Dementia,571,21-Oct-2015,1510-00360,0.00,1320.68,R,Aden House,No
Http://opendatacommunities.org/id/metropolitan-district-council/leeds,Leeds City Council,31/10/2015,Central & Corporate,Commercial Services Trading Services,Supplies and Services,Operational Materials,205,13-Oct-2015,1510-00361,0.00,180.73,R,Adi Global,No
Http://opendatacommunities.org/id/metropolitan-district-council/leeds,Leeds City Council,31/10/2015,Central & Corporate,Commercial Services Trading Services,Supplies and Services,Operational Materials,205,19-Oct-2015,1510-00362,0.00,89.00,R,Adi Global,No
Http://opendatacommunities.org/id/metropolitan-district-council/leeds,Leeds City Council,31/10/2015,Central & Corporate,Commercial Services Trading Services,Supplies and Services,Operational Materials,205,19-Oct-2015,1510-00363,0.00,77.10,R,Adi Global,No
Http://opendatacommunities.org/id/metropolitan-district-council/leeds,Leeds City Council,31/10/2015,Central & Corporate,Commercial Services Trading Services,Supplies and Services,Operational Materials,205,19-Oct-2015,1510-00364,0.00,27.17,R,Adi Global,No
Http://opendatacommunities.org/id/metropolitan-district-council/leeds,Leeds City Council,31/10/2015,Central & Corporate,Commercial Services Trading Services,Supplies and Services,Operational Materials,205,19-Oct-2015,1510-00365,0.00,8.68,R,Adi Global,No
Http://opendatacommunities.org/id/metropolitan-district-council/leeds,Leeds City Council,31/10/2015,Central & Corporate,Commercial Services Trading Services,Supplies and Services,Operational Materials,205,19-Oct-2015,1510-00366,0.00,8.75,R,Adi Global,No
Http://opendatacommunities.org/id/metropolitan-district-council/leeds,Leeds City Council,31/10/2015,Central & Corporate,Commercial Services Trading Services,Supplies and Services,Operational Materials,205,19-Oct-2015,1510-00367,0.00,19.87,R,Adi Global,No
Http://opendatacommunities.org/id/metropolitan-district-council/leeds,Leeds City Council,31/10/2015,Central & Corporate,Commercial Services Trading Services,Supplies and Services,Operational Materials,205,19-Oct-2015,1510-00368,0.00,140.96,R,Adi Global,No
Http://opendatacommunities.org/id/metropolitan-district-council/leeds,Leeds City Council,31/10/2015,Central & Corporate,Commercial Services Trading Services,Supplies and Services,Operational Materials,205,19-Oct-2015,1510-00369,0.00,640.91,R,Adi Global,No
Http://opendatacommunities.org/id/metropolitan-district-council/leeds,Leeds City Council,31/10/2015,Central & Corporate,Commercial Services Trading Services,Supplies and Services,Operational Materials,205,21-Oct-2015,1510-00370,0.00,1852.56,R,Adi Global,No
Http://opendatacommunities.org/id/metropolitan-district-council/leeds,Leeds City Council,31/10/2015,Central & Corporate,Commercial Services Trading Services,Supplies and Services,Operational Materials,205,29-Oct-2015,1510-00371,0.00,59.76,R,Adi Global,No
Http://opendatacommunities.org/id/metropolitan-district-council/leeds,Leeds City Council,31/10/2015,Environment & Housing,Community Safety  ,Supplies and Services,Other Hired And Contracted Services,265,28-Sep-2015,1510-00372,0.00,966.88,R,Adi-Gardiner Ltd,Yes
Http://opendatacommunities.org/id/metropolitan-district-council/leeds,Leeds City Council,31/10/2015,Civic Enterprise Leeds,Commercial Services,Transport,Vehicle Spares,345,16-Oct-2015,1510-00373,0.00,95.00,R,Adm Car Audio,No
Http://opendatacommunities.org/id/metropolitan-district-council/leeds,Leeds City Council,31/10/2015,Civic Enterprise Leeds,Commercial Services,Premises,Maintenance Of Buildings,101,02-Oct-2015,1510-00374,0.00,1425.00,R,Admas Limited,No
Http://opendatacommunities.org/id/metropolitan-district-council/leeds,Leeds City Council,31/10/2015,Central & Corporate,Commercial Services Trading Services,Supplies and Services,Other Hired And Contracted Services,265,09-Oct-2015,1510-00375,0.00,180.00,R,Admas Limited,No
Http://opendatacommunities.org/id/metropolitan-district-council/leeds,Leeds City Council,31/10/2015,Central & Corporate,Commercial Services Trading Services,Supplies and Services,Other Hired And Contracted Services,265,09-Oct-2015,1510-00376,0.00,310.00,R,Admas Limited,No
Http://opendatacommunities.org/id/metropolitan-district-council/leeds,Leeds City Council,31/10/2015,Central & Corporate,Commercial Services Trading Services,Supplies and Services,Other Hired And Contracted Services,265,09-Oct-2015,1510-00377,0.00,180.00,R,Admas Limited,No
Http://opendatacommunities.org/id/metropolitan-district-council/leeds,Leeds City Council,31/10/2015,Central & Corporate,Commercial Services Trading Services,Supplies and Services,Other Hired And Contracted Services,265,09-Oct-2015,1510-00378,0.00,180.00,R,Admas Limited,No
Http://opendatacommunities.org/id/metropolitan-district-council/leeds,Leeds City Council,31/10/2015,Central & Corporate,Commercial Services Trading Services,Supplies and Services,Other Hired And Contracted Services,265,09-Oct-2015,1510-00379,0.00,180.00,R,Admas Limited,No
Http://opendatacommunities.org/id/metropolitan-district-council/leeds,Leeds City Council,31/10/2015,Central & Corporate,Commercial Services Trading Services,Supplies and Services,Other Hired And Contracted Services,265,09-Oct-2015,1510-00380,0.00,195.00,R,Admas Limited,No
Http://opendatacommunities.org/id/metropolitan-district-council/leeds,Leeds City Council,31/10/2015,Central & Corporate,Commercial Services Trading Services,Supplies and Services,Other Hired And Contracted Services,265,16-Oct-2015,1510-00381,0.00,310.00,R,Admas Limited,No
Http://opendatacommunities.org/id/metropolitan-district-council/leeds,Leeds City Council,31/10/2015,Central & Corporate,Commercial Services Trading Services,Supplies and Services,Other Hired And Contracted Services,265,27-Oct-2015,1510-00382,0.00,180.00,R,Admas Limited,No
Http://opendatacommunities.org/id/metropolitan-district-council/leeds,Leeds City Council,31/10/2015,Central & Corporate,Commercial Services Trading Services,Supplies and Services,Other Hired And Contracted Services,265,27-Oct-2015,1510-00383,0.00,180.00,R,Admas Limited,No
Http://opendatacommunities.org/id/metropolitan-district-council/leeds,Leeds City Council,31/10/2015,Central & Corporate,Commercial Services Trading Services,Supplies and Services,Other Hired And Contracted Services,265,27-Oct-2015,1510-00384,0.00,180.00,R,Admas Limited,No
Http://opendatacommunities.org/id/metropolitan-district-council/leeds,Leeds City Council,31/10/2015,Central & Corporate,Commercial Services Trading Services,Supplies and Services,Other Hired And Contracted Services,265,29-Oct-2015,1510-00385,0.00,310.00,R,Admas Limited,No
Http://opendatacommunities.org/id/metropolitan-district-council/leeds,Leeds City Council,31/10/2015,Central & Corporate,Commercial Services Trading Services,Supplies and Services,Other Hired And Contracted Services,265,30-Oct-2015,1510-00386,0.00,180.00,R,Admas Limited,No
Http://opendatacommunities.org/id/metropolitan-district-council/leeds,Leeds City Council,31/10/2015,Central & Corporate,Commercial Services Trading Services,Supplies and Services,Other Hired And Contracted Services,265,30-Oct-2015,1510-00387,0.00,235.00,R,Admas Limited,No
Http://opendatacommunities.org/id/metropolitan-district-council/leeds,Leeds City Council,31/10/2015,Central & Corporate,Commercial Services Trading Services,Supplies and Services,Other Hired And Contracted Services,265,30-Oct-2015,1510-00388,0.00,1275.00,R,Admas Limited,No
Http://opendatacommunities.org/id/metropolitan-district-council/leeds,Leeds City Council,31/10/2015,Childrens Services,Safeguarding Targeted & Specialist,Third Party Payments,Independent Fostering Agencies,509,26-Oct-2015,1510-00389,0.00,5208.00,R,Adolescent And Childrens Trust,No
Http://opendatacommunities.org/id/metropolitan-district-council/leeds,Leeds City Council,31/10/2015,Childrens Services,Partnership Development & Leadership,Employees,Training & Development,70,30-Oct-2015,1510-00390,0.00,1100.00,R,Adolescent And Childrens Trust,No
Http://opendatacommunities.org/id/metropolitan-district-council/leeds,Leeds City Council as Accountable Body,31/10/2015,Social Services Pooled Budgets,Jcs For People With Learning Disabilitie,Third Party Payments,Residential,580,15-Oct-2015,1510-00391,0.00,2609.36,R,Adrian House,No
Http://opendatacommunities.org/id/metropolitan-district-council/leeds,Leeds City Council,31/10/2015,Childrens Services,Safeguarding Targeted & Specialist,Premises,Premises Security Services,162,09-Oct-2015,1510-00392,0.00,983.38,R,Adt Fire And Security Plc,No
Http://opendatacommunities.org/id/metropolitan-district-council/leeds,Leeds City Council,31/10/2015,Strategic Landlord,Property and Contracts,Premises,HRA Responsive Repairs,106,15-Oct-2015,1510-00393,0.00,408.13,R,Adt Fire And Security Plc,No
Http://opendatacommunities.org/id/metropolitan-district-council/leeds,Leeds City Council as Accountable Body,31/10/2015,Social Services Pooled Budgets,Jcs For People With Learning Disabilitie,Third Party Payments,Sheltered Accommodation,569,09-Oct-2015,1510-00394,0.00,1332.20,R,Adult Placement Services,No
Http://opendatacommunities.org/id/metropolitan-district-council/leeds,Leeds City Council,31/10/2015,Adult Social Care,Services For Adults Under 65 Mental/Dis,Third Party Payments,Nursing Home,570,21-Oct-2015,1510-00395,0.00,1541.96,R,Adult Supported Living Ltd,No
Http://opendatacommunities.org/id/metropolitan-district-council/leeds,Leeds City Council,31/10/2015,City Development,Libraries  Arts & Heritage,Supplies and Services,External Audit Fees,261,12-Oct-2015,1510-00396,0.00,85.00,R,Advance Stocks Ltd,No
Http://opendatacommunities.org/id/metropolitan-district-council/leeds,Leeds City Council,31/10/2015,City Development,Libraries  Arts & Heritage,Supplies and Services,External Audit Fees,261,14-Oct-2015,1510-00397,0.00,85.00,R,Advance Stocks Ltd,No
Http://opendatacommunities.org/id/metropolitan-district-council/leeds,Leeds City Council,31/10/2015,City Development,Recreation,Supplies and Services,External Audit Fees,261,14-Oct-2015,1510-00398,0.00,235.00,R,Advance Stocks Ltd,No
Http://opendatacommunities.org/id/metropolitan-district-council/leeds,Leeds City Council,31/10/2015,City Development,Recreation,Supplies and Services,External Audit Fees,261,14-Oct-2015,1510-00399,0.00,235.00,R,Advance Stocks Ltd,No
Http://opendatacommunities.org/id/metropolitan-district-council/leeds,Leeds City Council,31/10/2015,City Development,Recreation,Supplies and Services,External Audit Fees,261,28-Oct-2015,1510-00400,0.00,245.00,R,Advance Stocks Ltd,No
Http://opendatacommunities.org/id/metropolitan-district-council/leeds,Leeds City Council,31/10/2015,City Development,Recreation,Supplies and Services,External Audit Fees,261,28-Oct-2015,1510-00401,0.00,85.00,R,Advance Stocks Ltd,No
Http://opendatacommunities.org/id/metropolitan-district-council/leeds,Leeds City Council,31/10/2015,Childrens Services,Safeguarding Targeted & Specialist,Support Services,Legal Disbursements,411,16-Oct-2015,1510-00402,0.00,63.60,R,Advanced Child Care Assessments Ltd,No
Http://opendatacommunities.org/id/metropolitan-district-council/leeds,Leeds City Council,31/10/2015,Adult Social Care,Other Adult Services,Third Party Payments,Residential,580,21-Oct-2015,1510-00403,0.00,4917.12,R,Advitam Ltd,No
Http://opendatacommunities.org/id/metropolitan-district-council/leeds,Leeds City Council as Accountable Body,31/10/2015,Social Services Pooled Budgets,Jcs For People With Learning Disabilitie,Third Party Payments,Residential,580,21-Oct-2015,1510-00404,0.00,15331.56,R,Advitam Ltd,No
Http://opendatacommunities.org/id/metropolitan-district-council/leeds,Leeds City Council,31/10/2015,Adult Social Care,Services For Older People - 65 And Over,Third Party Payments,Payments To Voluntary Organisations,561,09-Oct-2015,1510-00405,0.00,84422.93,R,Advonet,No
Http://opendatacommunities.org/id/metropolitan-district-council/leeds,Leeds City Council,31/10/2015,City Development,Economic Development,Capital,Other Costs,7,09-Oct-2015,1510-00406,0.00,11258.00,C,Aecom Limited,No
Http://opendatacommunities.org/id/metropolitan-district-council/leeds,Leeds City Council,31/10/2015,City Development,Economic Development,Capital,Other Costs,7,09-Oct-2015,1510-00407,0.00,811.10,C,Aecom Limited,No
Http://opendatacommunities.org/id/metropolitan-district-council/leeds,Leeds City Council as Accountable Body,31/10/2015,Social Services Pooled Budgets,Jcs For People With Learning Disabilitie,Third Party Payments,Home Care,568,02-Oct-2015,1510-00408,0.00,967.50,R,Affinity Trust,No
Http://opendatacommunities.org/id/metropolitan-district-council/leeds,Leeds City Council as Accountable Body,31/10/2015,Social Services Pooled Budgets,Jcs For People With Learning Disabilitie,Third Party Payments,Home Care,568,02-Oct-2015,1510-00409,0.00,840.00,R,Affinity Trust,No
Http://opendatacommunities.org/id/metropolitan-district-council/leeds,Leeds City Council as Accountable Body,31/10/2015,Social Services Pooled Budgets,Jcs For People With Learning Disabilitie,Third Party Payments,Home Care,568,02-Oct-2015,1510-00410,0.00,1080.00,R,Affinity Trust,No
Http://opendatacommunities.org/id/metropolitan-district-council/leeds,Leeds City Council as Accountable Body,31/10/2015,Social Services Pooled Budgets,Jcs For People With Learning Disabilitie,Third Party Payments,Day Centre,564,02-Oct-2015,1510-00411,0.00,2031.48,R,Affinity Trust,No
Http://opendatacommunities.org/id/metropolitan-district-council/leeds,Leeds City Council as Accountable Body,31/10/2015,Social Services Pooled Budgets,Jcs For People With Learning Disabilitie,Third Party Payments,Home Care,568,02-Oct-2015,1510-00412,0.00,3316.88,R,Affinity Trust,No
Http://opendatacommunities.org/id/metropolitan-district-council/leeds,Leeds City Council as Accountable Body,31/10/2015,Social Services Pooled Budgets,Jcs For People With Learning Disabilitie,Third Party Payments,Home Care,568,02-Oct-2015,1510-00413,0.00,1365.00,R,Affinity Trust,No
Http://opendatacommunities.org/id/metropolitan-district-council/leeds,Leeds City Council as Accountable Body,31/10/2015,Social Services Pooled Budgets,Jcs For People With Learning Disabilitie,Third Party Payments,Home Care,568,02-Oct-2015,1510-00414,0.00,360.00,R,Affinity Trust,No
Http://opendatacommunities.org/id/metropolitan-district-council/leeds,Leeds City Council as Accountable Body,31/10/2015,Social Services Pooled Budgets,Jcs For People With Learning Disabilitie,Third Party Payments,Day Centre,564,02-Oct-2015,1510-00415,0.00,1248.80,R,Affinity Trust,No
Http://opendatacommunities.org/id/metropolitan-district-council/leeds,Leeds City Council as Accountable Body,31/10/2015,Social Services Pooled Budgets,Jcs For People With Learning Disabilitie,Third Party Payments,Home Care,568,02-Oct-2015,1510-00416,0.00,525.72,R,Affinity Trust,No
Http://opendatacommunities.org/id/metropolitan-district-council/leeds,Leeds City Council as Accountable Body,31/10/2015,Social Services Pooled Budgets,Jcs For People With Learning Disabilitie,Third Party Payments,Day Centre,564,02-Oct-2015,1510-00417,0.00,4052.48,R,Affinity Trust,No
Http://opendatacommunities.org/id/metropolitan-district-council/leeds,Leeds City Council as Accountable Body,31/10/2015,Social Services Pooled Budgets,Jcs For People With Learning Disabilitie,Third Party Payments,Home Care,568,02-Oct-2015,1510-00418,0.00,2279.36,R,Affinity Trust,No
Http://opendatacommunities.org/id/metropolitan-district-council/leeds,Leeds City Council as Accountable Body,31/10/2015,Social Services Pooled Budgets,Jcs For People With Learning Disabilitie,Third Party Payments,Home Care,568,02-Oct-2015,1510-00419,0.00,1599.98,R,Affinity Trust,No
Http://opendatacommunities.org/id/metropolitan-district-council/leeds,Leeds City Council as Accountable Body,31/10/2015,Social Services Pooled Budgets,Jcs For People With Learning Disabilitie,Third Party Payments,Home Care,568,02-Oct-2015,1510-00420,0.00,804.48,R,Affinity Trust,No
Http://opendatacommunities.org/id/metropolitan-district-council/leeds,Leeds City Council as Accountable Body,31/10/2015,Social Services Pooled Budgets,Jcs For People With Learning Disabilitie,Third Party Payments,Home Care,568,02-Oct-2015,1510-00421,0.00,1035.44,R,Affinity Trust,No
Http://opendatacommunities.org/id/metropolitan-district-council/leeds,Leeds City Council as Accountable Body,31/10/2015,Social Services Pooled Budgets,Jcs For People With Learning Disabilitie,Third Party Payments,Home Care,568,02-Oct-2015,1510-00422,0.00,1800.00,R,Affinity Trust,No
Http://opendatacommunities.org/id/metropolitan-district-council/leeds,Leeds City Council as Accountable Body,31/10/2015,Social Services Pooled Budgets,Jcs For People With Learning Disabilitie,Third Party Payments,Home Care,568,02-Oct-2015,1510-00423,0.00,2011.20,R,Affinity Trust,No
Http://opendatacommunities.org/id/metropolitan-district-council/leeds,Leeds City Council as Accountable Body,31/10/2015,Social Services Pooled Budgets,Jcs For People With Learning Disabilitie,Third Party Payments,Home Care,568,02-Oct-2015,1510-00424,0.00,1005.60,R,Affinity Trust,No
Http://opendatacommunities.org/id/metropolitan-district-council/leeds,Leeds City Council as Accountable Body,31/10/2015,Social Services Pooled Budgets,Jcs For People With Learning Disabilitie,Third Party Payments,Home Care,568,02-Oct-2015,1510-00425,0.00,360.00,R,Affinity Trust,No
Http://opendatacommunities.org/id/metropolitan-district-council/leeds,Leeds City Council as Accountable Body,31/10/2015,Social Services Pooled Budgets,Jcs For People With Learning Disabilitie,Third Party Payments,Home Care,568,02-Oct-2015,1510-00426,0.00,129.70,R,Affinity Trust,No
Http://opendatacommunities.org/id/metropolitan-district-council/leeds,Leeds City Council as Accountable Body,31/10/2015,Social Services Pooled Budgets,Jcs For People With Learning Disabilitie,Third Party Payments,Home Care,568,02-Oct-2015,1510-00427,0.00,1050.00,R,Affinity Trust,No
Http://opendatacommunities.org/id/metropolitan-district-council/leeds,Leeds City Council as Accountable Body,31/10/2015,Social Services Pooled Budgets,Jcs For People With Learning Disabilitie,Third Party Payments,Home Care,568,02-Oct-2015,1510-00428,0.00,2752.80,R,Affinity Trust,No
Http://opendatacommunities.org/id/metropolitan-district-council/leeds,Leeds City Council as Accountable Body,31/10/2015,Social Services Pooled Budgets,Jcs For People With Learning Disabilitie,Third Party Payments,Home Care,568,02-Oct-2015,1510-00429,0.00,1206.72,R,Affinity Trust,No
Http://opendatacommunities.org/id/metropolitan-district-council/leeds,Leeds City Council as Accountable Body,31/10/2015,Social Services Pooled Budgets,Jcs For People With Learning Disabilitie,Third Party Payments,Day Centre,564,02-Oct-2015,1510-00430,0.00,714.78,R,Affinity Trust,No
Http://opendatacommunities.org/id/metropolitan-district-council/leeds,Leeds City Council as Accountable Body,31/10/2015,Social Services Pooled Budgets,Jcs For People With Learning Disabilitie,Third Party Payments,Day Centre,564,02-Oct-2015,1510-00431,0.00,2346.40,R,Affinity Trust,No
Http://opendatacommunities.org/id/metropolitan-district-council/leeds,Leeds City Council as Accountable Body,31/10/2015,Social Services Pooled Budgets,Jcs For People With Learning Disabilitie,Third Party Payments,Home Care,568,02-Oct-2015,1510-00432,0.00,675.00,R,Affinity Trust,No
Http://opendatacommunities.org/id/metropolitan-district-council/leeds,Leeds City Council as Accountable Body,31/10/2015,Social Services Pooled Budgets,Jcs For People With Learning Disabilitie,Third Party Payments,Home Care,568,02-Oct-2015,1510-00433,0.00,4417.28,R,Affinity Trust,No
Http://opendatacommunities.org/id/metropolitan-district-council/leeds,Leeds City Council,31/10/2015,Adult Social Care,Services For Older People Under 65 P/Dis,Third Party Payments,Home Care,568,05-Oct-2015,1510-00434,0.00,319.60,R,Affinity Trust,No
Http://opendatacommunities.org/id/metropolitan-district-council/leeds,Leeds City Council,31/10/2015,Adult Social Care,Services For Older People Under 65 P/Dis,Third Party Payments,Home Care,568,05-Oct-2015,1510-00435,0.00,456.78,R,Affinity Trust,No
Http://opendatacommunities.org/id/metropolitan-district-council/leeds,Leeds City Council,31/10/2015,Adult Social Care,Services For Older People Under 65 P/Dis,Third Party Payments,Home Care,568,08-Oct-2015,1510-00436,0.00,526.68,R,Affinity Trust,No
Http://opendatacommunities.org/id/metropolitan-district-council/leeds,Leeds City Council,31/10/2015,Adult Social Care,Services For Older People Under 65 P/Dis,Third Party Payments,Home Care,568,08-Oct-2015,1510-00437,0.00,134.56,R,Affinity Trust,No
Http://opendatacommunities.org/id/metropolitan-district-council/leeds,Leeds City Council,31/10/2015,Adult Social Care,Services For Older People Under 65 P/Dis,Third Party Payments,Home Care,568,08-Oct-2015,1510-00438,0.00,302.76,R,Affinity Trust,No
Http://opendatacommunities.org/id/metropolitan-district-council/leeds,Leeds City Council as Accountable Body,31/10/2015,Social Services Pooled Budgets,Jcs For People With Learning Disabilitie,Third Party Payments,Home Care,568,09-Oct-2015,1510-00439,0.00,47.94,R,Affinity Trust,No
Http://opendatacommunities.org/id/metropolitan-district-council/leeds,Leeds City Council as Accountable Body,31/10/2015,Social Services Pooled Budgets,Jcs For People With Learning Disabilitie,Third Party Payments,Home Care,568,09-Oct-2015,1510-00440,0.00,767.04,R,Affinity Trust,No
Http://opendatacommunities.org/id/metropolitan-district-council/leeds,Leeds City Council as Accountable Body,31/10/2015,Social Services Pooled Budgets,Jcs For People With Learning Disabilitie,Third Party Payments,Home Care,568,09-Oct-2015,1510-00441,0.00,336.40,R,Affinity Trust,No
Http://opendatacommunities.org/id/metropolitan-district-council/leeds,Leeds City Council as Accountable Body,31/10/2015,Social Services Pooled Budgets,Jcs For People With Learning Disabilitie,Third Party Payments,Home Care,568,09-Oct-2015,1510-00442,0.00,790.50,R,Affinity Trust,No
Http://opendatacommunities.org/id/metropolitan-district-council/leeds,Leeds City Council as Accountable Body,31/10/2015,Social Services Pooled Budgets,Jcs For People With Learning Disabilitie,Third Party Payments,Home Care,568,09-Oct-2015,1510-00443,0.00,1278.40,R,Affinity Trust,No
Http://opendatacommunities.org/id/metropolitan-district-council/leeds,Leeds City Council as Accountable Body,31/10/2015,Social Services Pooled Budgets,Jcs For People With Learning Disabilitie,Third Party Payments,Home Care,568,09-Oct-2015,1510-00444,0.00,960.00,R,Affinity Trust,No
Http://opendatacommunities.org/id/metropolitan-district-council/leeds,Leeds City Council as Accountable Body,31/10/2015,Social Services Pooled Budgets,Jcs For People With Learning Disabilitie,Third Party Payments,Home Care,568,09-Oct-2015,1510-00445,0.00,276.64,R,Affinity Trust,No
Http://opendatacommunities.org/id/metropolitan-district-council/leeds,Leeds City Council as Accountable Body,31/10/2015,Social Services Pooled Budgets,Jcs For People With Learning Disabilitie,Third Party Payments,Day Centre,564,09-Oct-2015,1510-00446,0.00,416.64,R,Affinity Trust,No
Http://opendatacommunities.org/id/metropolitan-district-council/leeds,Leeds City Council as Accountable Body,31/10/2015,Social Services Pooled Budgets,Jcs For People With Learning Disabilitie,Third Party Payments,Home Care,568,09-Oct-2015,1510-00447,0.00,894.88,R,Affinity Trust,No
Http://opendatacommunities.org/id/metropolitan-district-council/leeds,Leeds City Council as Accountable Body,31/10/2015,Social Services Pooled Budgets,Jcs For People With Learning Disabilitie,Third Party Payments,Home Care,568,09-Oct-2015,1510-00448,0.00,957.00,R,Affinity Trust,No
Http://opendatacommunities.org/id/metropolitan-district-council/leeds,Leeds City Council as Accountable Body,31/10/2015,Social Services Pooled Budgets,Jcs For People With Learning Disabilitie,Third Party Payments,Home Care,568,09-Oct-2015,1510-00449,0.00,1211.04,R,Affinity Trust,No
Http://opendatacommunities.org/id/metropolitan-district-council/leeds,Leeds City Council as Accountable Body,31/10/2015,Social Services Pooled Budgets,Jcs For People With Learning Disabilitie,Third Party Payments,Home Care,568,09-Oct-2015,1510-00450,0.00,439.45,R,Affinity Trust,No
Http://opendatacommunities.org/id/metropolitan-district-council/leeds,Leeds City Council as Accountable Body,31/10/2015,Social Services Pooled Budgets,Jcs For People With Learning Disabilitie,Third Party Payments,Home Care,568,09-Oct-2015,1510-00451,0.00,1198.50,R,Affinity Trust,No
Http://opendatacommunities.org/id/metropolitan-district-council/leeds,Leeds City Council as Accountable Body,31/10/2015,Social Services Pooled Budgets,Jcs For People With Learning Disabilitie,Third Party Payments,Home Care,568,09-Oct-2015,1510-00452,0.00,806.99,R,Affinity Trust,No
Http://opendatacommunities.org/id/metropolitan-district-council/leeds,Leeds City Council as Accountable Body,31/10/2015,Social Services Pooled Budgets,Jcs For People With Learning Disabilitie,Third Party Payments,Home Care,568,09-Oct-2015,1510-00453,0.00,511.36,R,Affinity Trust,No
Http://opendatacommunities.org/id/metropolitan-district-council/leeds,Leeds City Council as Accountable Body,31/10/2015,Social Services Pooled Budgets,Jcs For People With Learning Disabilitie,Third Party Payments,Home Care,568,09-Oct-2015,1510-00454,0.00,479.40,R,Affinity Trust,No
Http://opendatacommunities.org/id/metropolitan-district-council/leeds,Leeds City Council as Accountable Body,31/10/2015,Social Services Pooled Budgets,Jcs For People With Learning Disabilitie,Third Party Payments,Home Care,568,09-Oct-2015,1510-00455,0.00,306.00,R,Affinity Trust,No
Http://opendatacommunities.org/id/metropolitan-district-council/leeds,Leeds City Council as Accountable Body,31/10/2015,Social Services Pooled Budgets,Jcs For People With Learning Disabilitie,Third Party Payments,Home Care,568,09-Oct-2015,1510-00456,0.00,1126.59,R,Affinity Trust,No
Http://opendatacommunities.org/id/metropolitan-district-council/leeds,Leeds City Council as Accountable Body,31/10/2015,Social Services Pooled Budgets,Jcs For People With Learning Disabilitie,Third Party Payments,Home Care,568,09-Oct-2015,1510-00457,0.00,2660.67,R,Affinity Trust,No
Http://opendatacommunities.org/id/metropolitan-district-council/leeds,Leeds City Council as Accountable Body,31/10/2015,Social Services Pooled Budgets,Jcs For People With Learning Disabilitie,Third Party Payments,Home Care,568,09-Oct-2015,1510-00458,0.00,675.00,R,Affinity Trust,No
Http://opendatacommunities.org/id/metropolitan-district-council/leeds,Leeds City Council as Accountable Body,31/10/2015,Social Services Pooled Budgets,Jcs For People With Learning Disabilitie,Third Party Payments,Home Care,568,09-Oct-2015,1510-00459,0.00,1022.72,R,Affinity Trust,No
Http://opendatacommunities.org/id/metropolitan-district-council/leeds,Leeds City Council as Accountable Body,31/10/2015,Social Services Pooled Budgets,Jcs For People With Learning Disabilitie,Third Party Payments,Home Care,568,09-Oct-2015,1510-00460,0.00,447.44,R,Affinity Trust,No
Http://opendatacommunities.org/id/metropolitan-district-council/leeds,Leeds City Council as Accountable Body,31/10/2015,Social Services Pooled Budgets,Jcs For People With Learning Disabilitie,Third Party Payments,Home Care,568,09-Oct-2015,1510-00461,0.00,63.92,R,Affinity Trust,No
Http://opendatacommunities.org/id/metropolitan-district-council/leeds,Leeds City Council as Accountable Body,31/10/2015,Social Services Pooled Budgets,Jcs For People With Learning Disabilitie,Third Party Payments,Home Care,568,09-Oct-2015,1510-00462,0.00,204.32,R,Affinity Trust,No
Http://opendatacommunities.org/id/metropolitan-district-council/leeds,Leeds City Council as Accountable Body,31/10/2015,Social Services Pooled Budgets,Jcs For People With Learning Disabilitie,Third Party Payments,Home Care,568,09-Oct-2015,1510-00463,0.00,300.00,R,Affinity Trust,No
Http://opendatacommunities.org/id/metropolitan-district-council/leeds,Leeds City Council as Accountable Body,31/10/2015,Social Services Pooled Budgets,Jcs For People With Learning Disabilitie,Third Party Payments,Home Care,568,09-Oct-2015,1510-00464,0.00,706.44,R,Affinity Trust,No
Http://opendatacommunities.org/id/metropolitan-district-council/leeds,Leeds City Council as Accountable Body,31/10/2015,Social Services Pooled Budgets,Jcs For People With Learning Disabilitie,Third Party Payments,Home Care,568,09-Oct-2015,1510-00465,0.00,1148.48,R,Affinity Trust,No
Http://opendatacommunities.org/id/metropolitan-district-council/leeds,Leeds City Council as Accountable Body,31/10/2015,Social Services Pooled Budgets,Jcs For People With Learning Disabilitie,Third Party Payments,Home Care,568,09-Oct-2015,1510-00466,0.00,1222.50,R,Affinity Trust,No
Http://opendatacommunities.org/id/metropolitan-district-council/leeds,Leeds City Council,31/10/2015,Adult Social Care,Services For Older People Under 65 P/Dis,Third Party Payments,Home Care,568,16-Oct-2015,1510-00467,0.00,191.76,R,Affinity Trust,No
Http://opendatacommunities.org/id/metropolitan-district-council/leeds,Leeds City Council,31/10/2015,Adult Social Care,Services For Adults Under 65 Mental/Dis,Third Party Payments,Home Care,568,16-Oct-2015,1510-00468,0.00,239.70,R,Affinity Trust,No
Http://opendatacommunities.org/id/metropolitan-district-council/leeds,Leeds City Council,31/10/2015,Adult Social Care,Services For Older People Under 65 P/Dis,Third Party Payments,Home Care,568,16-Oct-2015,1510-00469,0.00,396.00,R,Affinity Trust,No
Http://opendatacommunities.org/id/metropolitan-district-council/leeds,Leeds City Council,31/10/2015,Adult Social Care,Services For Older People Under 65 P/Dis,Third Party Payments,Home Care,568,16-Oct-2015,1510-00470,0.00,191.76,R,Affinity Trust,No
Http://opendatacommunities.org/id/metropolitan-district-council/leeds,Leeds City Council,31/10/2015,Adult Social Care,Services For Older People Under 65 P/Dis,Third Party Payments,Home Care,568,16-Oct-2015,1510-00471,0.00,62.48,R,Affinity Trust,No
Http://opendatacommunities.org/id/metropolitan-district-council/leeds,Leeds City Council,31/10/2015,Adult Social Care,Services For Older People Under 65 P/Dis,Third Party Payments,Home Care,568,21-Oct-2015,1510-00472,0.00,703.12,R,Affinity Trust,No
Http://opendatacommunities.org/id/metropolitan-district-council/leeds,Leeds City Council,31/10/2015,Adult Social Care,Services For Older People Under 65 P/Dis,Third Party Payments,Home Care,568,21-Oct-2015,1510-00473,0.00,2248.92,R,Affinity Trust,No
Http://opendatacommunities.org/id/metropolitan-district-council/leeds,Leeds City Council,31/10/2015,Adult Social Care,Services For Older People - 65 And Over,Third Party Payments,Home Care,568,21-Oct-2015,1510-00474,0.00,1076.48,R,Affinity Trust,No
Http://opendatacommunities.org/id/metropolitan-district-council/leeds,Leeds City Council as Accountable Body,31/10/2015,Social Services Pooled Budgets,Jcs For People With Learning Disabilitie,Third Party Payments,Home Care,568,28-Oct-2015,1510-00475,0.00,878.90,R,Affinity Trust,No
Http://opendatacommunities.org/id/metropolitan-district-council/leeds,Leeds City Council,31/10/2015,Adult Social Care,Services For Older People Under 65 P/Dis,Third Party Payments,Day Centre - Learning Disabil,567,21-Oct-2015,1510-00476,0.00,4895.00,R,Affinity Trust North Divisional Office,No
Http://opendatacommunities.org/id/metropolitan-district-council/leeds,Leeds City Council as Accountable Body,31/10/2015,Social Services Pooled Budgets,Jcs For People With Learning Disabilitie,Third Party Payments,Day Centre - Learning Disabil,567,21-Oct-2015,1510-00477,0.00,96668.36,R,Affinity Trust North Divisional Office,No
Http://opendatacommunities.org/id/metropolitan-district-council/leeds,Leeds City Council as Accountable Body,31/10/2015,Social Services Pooled Budgets,Jcs For People With Learning Disabilitie,Third Party Payments,Residential,580,21-Oct-2015,1510-00478,0.00,15596.92,R,Affinity Trust North Divisional Office,No
Http://opendatacommunities.org/id/metropolitan-district-council/leeds,Leeds City Council,31/10/2015,Environment & Housing,Parks And Countryside  ,Transport,Hire Of Movable Plant & Machinery,315,10-Sep-2015,1510-00479,0.00,950.00,R,Afi Uplift Ltd,Yes
Http://opendatacommunities.org/id/metropolitan-district-council/leeds,Leeds City Council,31/10/2015,Environment & Housing,Parks And Countryside  ,Transport,Hire Of Movable Plant & Machinery,315,10-Sep-2015,1510-00480,0.00,950.00,R,Afi Uplift Ltd,Yes
Http://opendatacommunities.org/id/metropolitan-district-council/leeds,Leeds City Council,31/10/2015,Environment & Housing,SP Contracts & SECC,Third Party Payments,Supporting Ppl - Block Gross Chargeable,514,01-Oct-2015,1510-00481,0.00,3957.68,R,Age Uk Leeds,No
Http://opendatacommunities.org/id/metropolitan-district-council/leeds,Leeds City Council,31/10/2015,Adult Social Care,Services For Older People - 65 And Over,Third Party Payments,Payments To Voluntary Organisations,561,01-Oct-2015,1510-00482,0.00,8025.00,R,Age Uk Leeds,No
Http://opendatacommunities.org/id/metropolitan-district-council/leeds,Leeds City Council,31/10/2015,Environment & Housing,SP Contracts & SECC,Third Party Payments,Supporting Ppl - Block Gross Chargeable,514,30-Oct-2015,1510-00483,0.00,3957.68,R,Age Uk Leeds,No
Http://opendatacommunities.org/id/metropolitan-district-council/leeds,Leeds City Council,31/10/2015,Adult Social Care,Social Services Support Services,Employees,Training & Development,70,19-Oct-2015,1510-00484,0.00,475.00,R,Age Uk Training,No
Http://opendatacommunities.org/id/metropolitan-district-council/leeds,Leeds City Council,31/10/2015,City Development,Libraries  Arts & Heritage,Supplies and Services,Bought In Professional Services,277,14-Oct-2015,1510-00485,0.00,150.00,R,Agere Learning,No
Http://opendatacommunities.org/id/metropolitan-district-council/leeds,Leeds City Council,31/10/2015,City Development,Libraries  Arts & Heritage,Supplies and Services,Bought In Professional Services,277,29-Oct-2015,1510-00486,0.00,1500.00,R,Agere Learning,No
Http://opendatacommunities.org/id/metropolitan-district-council/leeds,Leeds City Council,31/10/2015,Adult Social Care,Other Adult Services,Third Party Payments,Residential,580,21-Oct-2015,1510-00487,0.00,5598.40,R,Agricola House,No
Http://opendatacommunities.org/id/metropolitan-district-council/leeds,Leeds City Council,31/10/2015,Citizens and Communities,Elections  Licensing and Registration,Income,Admissions  Booking Fees & Ticket Sales,933,01-Oct-2015,1510-00488,0.00,250.00,R,Ahallad Hussain,No
Http://opendatacommunities.org/id/metropolitan-district-council/leeds,Leeds City Council,31/10/2015,Citizens and Communities,Elections  Licensing and Registration,Income,Admissions  Booking Fees & Ticket Sales,933,22-Oct-2015,1510-00489,0.00,200.00,R,REDACTED PERSONAL DATA,No
Http://opendatacommunities.org/id/metropolitan-district-council/leeds,Leeds City Council,31/10/2015,Environment & Housing,Parks And Countryside  ,Supplies and Services,Other Hired And Contracted Services,265,09-Sep-2015,1510-00490,0.00,146.00,R,Ahvla,Yes
Http://opendatacommunities.org/id/metropolitan-district-council/leeds,Leeds City Council,31/10/2015,Childrens Services,Safeguarding Targeted & Specialist,Transfer Payments,16 Plus Top Up Allowance,625,05-Oct-2015,1510-00491,0.00,20.00,R,REDACTED PERSONAL DATA,No
Http://opendatacommunities.org/id/metropolitan-district-council/leeds,Leeds City Council,31/10/2015,Childrens Services,Safeguarding Targeted & Specialist,Transfer Payments,16 Plus Top Up Allowance,625,08-Oct-2015,1510-00492,0.00,20.00,R,REDACTED PERSONAL DATA,No
Http://opendatacommunities.org/id/metropolitan-district-council/leeds,Leeds City Council,31/10/2015,Childrens Services,Safeguarding Targeted & Specialist,Transfer Payments,16 Plus Top Up Allowance,625,15-Oct-2015,1510-00493,0.00,20.00,R,REDACTED PERSONAL DATA,No
Http://opendatacommunities.org/id/metropolitan-district-council/leeds,Leeds City Council,31/10/2015,Childrens Services,Safeguarding Targeted & Specialist,Transfer Payments,16 Plus Top Up Allowance,625,22-Oct-2015,1510-00494,0.00,20.00,R,REDACTED PERSONAL DATA,No
Http://opendatacommunities.org/id/metropolitan-district-council/leeds,Leeds City Council,31/10/2015,Childrens Services,Safeguarding Targeted & Specialist,Transfer Payments,16 Plus Top Up Allowance,625,29-Oct-2015,1510-00495,0.00,20.00,R,REDACTED PERSONAL DATA,No
Http://opendatacommunities.org/id/metropolitan-district-council/leeds,Leeds City Council as Accountable Body,31/10/2015,Social Services Pooled Budgets,Leeds Community Equip Store Pooled Budgt,Supplies and Services,Other Equipment,203,02-Oct-2015,1510-00496,0.00,1075.00,R,Aidapt Bathrooms Ltd,No
Http://opendatacommunities.org/id/metropolitan-district-council/leeds,Leeds City Council as Accountable Body,31/10/2015,Social Services Pooled Budgets,Leeds Community Equip Store Pooled Budgt,Supplies and Services,Other Equipment,203,02-Oct-2015,1510-00497,0.00,120.00,R,Aidapt Bathrooms Ltd,No
Http://opendatacommunities.org/id/metropolitan-district-council/leeds,Leeds City Council as Accountable Body,31/10/2015,Social Services Pooled Budgets,Leeds Community Equip Store Pooled Budgt,Supplies and Services,Other Equipment,203,02-Oct-2015,1510-00498,0.00,675.00,R,Aidapt Bathrooms Ltd,No
Http://opendatacommunities.org/id/metropolitan-district-council/leeds,Leeds City Council as Accountable Body,31/10/2015,Social Services Pooled Budgets,Leeds Community Equip Store Pooled Budgt,Supplies and Services,Other Equipment,203,30-Oct-2015,1510-00499,0.00,387.00,R,Aidapt Bathrooms Ltd,No
Http://opendatacommunities.org/id/metropolitan-district-council/leeds,Leeds City Council as Accountable Body,31/10/2015,Social Services Pooled Budgets,Leeds Community Equip Store Pooled Budgt,Supplies and Services,Other Equipment,203,30-Oct-2015,1510-00500,0.00,774.00,R,Aidapt Bathrooms Ltd,No
Http://opendatacommunities.org/id/metropolitan-district-council/leeds,Leeds City Council as Accountable Body,31/10/2015,Social Services Pooled Budgets,Jcs For People With Learning Disabilitie,Supplies and Services,Other Equipment,203,16-Oct-2015,1510-00501,0.00,279.00,R,Aidservice Ltd,No
Http://opendatacommunities.org/id/metropolitan-district-council/leeds,Leeds City Council as Accountable Body,31/10/2015,Social Services Pooled Budgets,Jcs For People With Learning Disabilitie,Supplies and Services,Other Equipment,203,16-Oct-2015,1510-00502,0.00,165.00,R,Aidservice Ltd,No
Http://opendatacommunities.org/id/metropolitan-district-council/leeds,Leeds City Council as Accountable Body,31/10/2015,Social Services Pooled Budgets,Jcs For People With Learning Disabilitie,Supplies and Services,Other Equipment,203,16-Oct-2015,1510-00503,0.00,165.00,R,Aidservice Ltd,No
Http://opendatacommunities.org/id/metropolitan-district-council/leeds,Leeds City Council as Accountable Body,31/10/2015,Social Services Pooled Budgets,Jcs For People With Learning Disabilitie,Supplies and Services,Other Equipment,203,28-Oct-2015,1510-00504,0.00,149.10,R,Aidservice Ltd,No
Http://opendatacommunities.org/id/metropolitan-district-council/leeds,Leeds City Council as Accountable Body,31/10/2015,Social Services Pooled Budgets,Jcs For People With Learning Disabilitie,Supplies and Services,Other Equipment,203,30-Oct-2015,1510-00505,0.00,389.30,R,Aidservice Ltd,No
Http://opendatacommunities.org/id/metropolitan-district-council/leeds,Leeds City Council,31/10/2015,Strategic Accounts,Miscellaneous,Transfer Payments,Land Drainage Levies,665,30-Oct-2015,1510-00506,0.00,3596.81,R,Ainsty (2008) Internal Drainage Board,No
Http://opendatacommunities.org/id/metropolitan-district-council/leeds,Leeds City Council,31/10/2015,Civic Enterprise Leeds,Commercial Services  ,Supplies and Services,Operational Materials,205,15-Sep-2015,1510-00507,0.00,26.76,R,Air Force Pneumati,Yes
Http://opendatacommunities.org/id/metropolitan-district-council/leeds,Leeds City Council,31/10/2015,Central & Corporate,Commercial Services Trading Services,Supplies and Services,Operational Materials,205,23-Oct-2015,1510-00508,0.00,117.80,R,Air Force Pneumatics & Hydraulics,No
Http://opendatacommunities.org/id/metropolitan-district-council/leeds,Leeds City Council,31/10/2015,Environment & Housing,Environmental Health,Supplies and Services,Other Hired And Contracted Services,265,02-Oct-2015,1510-00509,0.00,791.00,R,Air Liquide Uk,No
Http://opendatacommunities.org/id/metropolitan-district-council/leeds,Leeds City Council,31/10/2015,Central & Corporate,Commercial Services Trading Services,Supplies and Services,Operational Materials,205,02-Oct-2015,1510-00510,0.00,146.70,R,Air Liquide Uk,No
Http://opendatacommunities.org/id/metropolitan-district-council/leeds,Leeds City Council,31/10/2015,Environment & Housing,Environmental Health,Supplies and Services,Other Hired And Contracted Services,265,21-Oct-2015,1510-00511,0.00,26.46,R,Air Liquide Uk,No
Http://opendatacommunities.org/id/metropolitan-district-council/leeds,Leeds City Council,31/10/2015,Environment & Housing,Environmental Health,Supplies and Services,Other Hired And Contracted Services,265,21-Oct-2015,1510-00512,0.00,26.46,R,Air Liquide Uk,No
Http://opendatacommunities.org/id/metropolitan-district-council/leeds,Leeds City Council,31/10/2015,Environment & Housing,Environmental Health,Supplies and Services,Other Hired And Contracted Services,265,21-Oct-2015,1510-00513,0.00,52.08,R,Air Liquide Uk,No
Http://opendatacommunities.org/id/metropolitan-district-council/leeds,Leeds City Council,31/10/2015,Environment & Housing,Environmental Health,Supplies and Services,Other Hired And Contracted Services,265,21-Oct-2015,1510-00514,0.00,649.91,R,Air Liquide Uk,No
Http://opendatacommunities.org/id/metropolitan-district-council/leeds,Leeds City Council,31/10/2015,Central & Corporate,Commercial Services Trading Services,Supplies and Services,Operational Materials,205,30-Oct-2015,1510-00515,0.00,146.70,R,Air Liquide Uk,No
Http://opendatacommunities.org/id/metropolitan-district-council/leeds,Leeds City Council,31/10/2015,Environment & Housing,Environmental Health,Supplies and Services,Other Hired And Contracted Services,265,30-Oct-2015,1510-00516,0.00,13.23,R,Air Liquide Uk,No
Http://opendatacommunities.org/id/metropolitan-district-council/leeds,Leeds City Council,31/10/2015,Environment & Housing,Environmental Health,Supplies and Services,Other Hired And Contracted Services,265,30-Oct-2015,1510-00517,0.00,13.23,R,Air Liquide Uk,No
Http://opendatacommunities.org/id/metropolitan-district-council/leeds,Leeds City Council,31/10/2015,Environment & Housing,Environmental Health,Supplies and Services,Other Hired And Contracted Services,265,30-Oct-2015,1510-00518,0.00,52.08,R,Air Liquide Uk,No
Http://opendatacommunities.org/id/metropolitan-district-council/leeds,Leeds City Council as Accountable Body,31/10/2015,Social Services Pooled Budgets,Jcs For People With Learning Disabilitie,Third Party Payments,Residential,580,21-Oct-2015,1510-00519,0.00,9087.84,R,Aire House,No
Http://opendatacommunities.org/id/metropolitan-district-council/leeds,Leeds City Council,31/10/2015,City Development,Economic Development,Capital,Other Costs,7,20-Oct-2015,1510-00520,0.00,320808.25,C,Aire Valley Land Llp,No
Http://opendatacommunities.org/id/metropolitan-district-council/leeds,Leeds City Council,31/10/2015,Strategic Landlord,Housing Management,Supplies and Services,Grant Related Expenditure,298,09-Oct-2015,1510-00521,0.00,4275.00,R,Aire Valley Landscaping Services Ltd,No
Http://opendatacommunities.org/id/metropolitan-district-council/leeds,Leeds City Council,31/10/2015,Adult Social Care,Other Adult Services,Third Party Payments,Residential Care Dementia,571,21-Oct-2015,1510-00522,0.00,3340.28,R,Aire View Residential Home,No
Http://opendatacommunities.org/id/metropolitan-district-council/leeds,Leeds City Council,31/10/2015,Adult Social Care,Services For Older People - 65 And Over,Third Party Payments,Residential Care Dementia,571,21-Oct-2015,1510-00523,0.00,25500.48,R,Aire View Residential Home,No
Http://opendatacommunities.org/id/metropolitan-district-council/leeds,Leeds City Council,31/10/2015,Adult Social Care,Other Adult Services,Third Party Payments,Residential,580,21-Oct-2015,1510-00524,0.00,1145.60,R,Aire View Residential Home,No
Http://opendatacommunities.org/id/metropolitan-district-council/leeds,Leeds City Council,31/10/2015,Adult Social Care,Services For Older People - 65 And Over,Third Party Payments,Residential,580,21-Oct-2015,1510-00525,0.00,10438.00,R,Aire View Residential Home,No
Http://opendatacommunities.org/id/metropolitan-district-council/leeds,Leeds City Council,31/10/2015,City Development,Recreation  ,Supplies and Services,Operational Furniture And Equipment,203,11-Sep-2015,1510-00526,0.00,112.50,R,Aireborough Skip Hire,Yes
Http://opendatacommunities.org/id/metropolitan-district-council/leeds,Leeds City Council,31/10/2015,City Development,Recreation  ,Supplies and Services,Operational Furniture And Equipment,203,25-Sep-2015,1510-00527,0.00,112.50,R,Aireborough Skip Hire,Yes
Http://opendatacommunities.org/id/metropolitan-district-council/leeds,Leeds City Council,31/10/2015,Adult Social Care,Services For Older People - 65 And Over,Third Party Payments,Payments To Voluntary Organisations,561,01-Oct-2015,1510-00528,0.00,16560.00,R,Aireborough Voluntary Services,No
Http://opendatacommunities.org/id/metropolitan-district-council/leeds,Leeds City Council,31/10/2015,Adult Social Care,Services For Older People - 65 And Over,Third Party Payments,Residential Care Dementia,571,21-Oct-2015,1510-00529,0.00,1243.08,R,Airedale (Goldsborough),No
Http://opendatacommunities.org/id/metropolitan-district-council/leeds,Leeds City Council,31/10/2015,Adult Social Care,Other Adult Services,Third Party Payments,Residential,580,21-Oct-2015,1510-00530,0.00,2853.76,R,Airedale (Goldsborough),No
Http://opendatacommunities.org/id/metropolitan-district-council/leeds,Leeds City Council,31/10/2015,Adult Social Care,Services For Older People - 65 And Over,Third Party Payments,Residential,580,21-Oct-2015,1510-00531,0.00,12511.92,R,Airedale (Goldsborough),No
Http://opendatacommunities.org/id/metropolitan-district-council/leeds,Leeds City Council,31/10/2015,Adult Social Care,Services For Older People Under 65 P/Dis,Third Party Payments,Residential,580,21-Oct-2015,1510-00532,0.00,1859.68,R,Airedale (Goldsborough),No
Http://opendatacommunities.org/id/metropolitan-district-council/leeds,Leeds City Council as Accountable Body,31/10/2015,Social Services Pooled Budgets,Jcs For People With Learning Disabilitie,Third Party Payments,Residential,580,21-Oct-2015,1510-00533,0.00,1226.80,R,Airedale (Goldsborough),No
Http://opendatacommunities.org/id/metropolitan-district-council/leeds,Leeds City Council,31/10/2015,Civic Enterprise Leeds,Commercial Services,Supplies and Services,Operational Furniture And Equipment,203,01-Oct-2015,1510-00534,0.00,3343.00,R,Airedale Catering Equipment Ltd,No
Http://opendatacommunities.org/id/metropolitan-district-council/leeds,Leeds City Council,31/10/2015,Childrens Services,Capital Maintenance,Capital,Furniture And Equipment,5,01-Oct-2015,1510-00535,0.00,13030.00,C,Airedale Catering Equipment Ltd,No
Http://opendatacommunities.org/id/metropolitan-district-council/leeds,Leeds City Council,31/10/2015,Childrens Services,Capital Maintenance,Capital,Furniture And Equipment,5,01-Oct-2015,1510-00536,0.00,6996.00,C,Airedale Catering Equipment Ltd,No
Http://opendatacommunities.org/id/metropolitan-district-council/leeds,Leeds City Council,31/10/2015,Civic Enterprise Leeds,Commercial Services,Supplies and Services,Crockery  Cutlery & Utensils,221,29-Oct-2015,1510-00537,0.00,642.00,R,Airedale Catering Equipment Ltd,No
Http://opendatacommunities.org/id/metropolitan-district-council/leeds,Leeds City Council,31/10/2015,City Development,Recreation,Supplies and Services,Operational Furniture And Equipment,203,05-Oct-2015,1510-00538,0.00,4278.00,R,Airquee Ltd,No
Http://opendatacommunities.org/id/metropolitan-district-council/leeds,Leeds City Council,31/10/2015,City Development,Recreation,Supplies and Services,Operational Furniture And Equipment,203,05-Oct-2015,1510-00539,0.00,5075.00,R,Airquee Ltd,No
Http://opendatacommunities.org/id/metropolitan-district-council/leeds,Leeds City Council,31/10/2015,Adult Social Care,Services For Adults Under 65 Mental/Dis,Third Party Payments,Services Provided By Other NHS Bodies,522,02-Oct-2015,1510-00540,0.00,175.00,R,Ait Mitra,No
Http://opendatacommunities.org/id/metropolitan-district-council/leeds,Leeds City Council,31/10/2015,Adult Social Care,Services For Adults Under 65 Mental/Dis,Third Party Payments,Services Provided By Other NHS Bodies,522,02-Oct-2015,1510-00541,0.00,175.00,R,Ait Mitra,No
Http://opendatacommunities.org/id/metropolitan-district-council/leeds,Leeds City Council,31/10/2015,Adult Social Care,Services For Adults Under 65 Mental/Dis,Third Party Payments,Services Provided By Other NHS Bodies,522,02-Oct-2015,1510-00542,0.00,175.00,R,Ait Mitra,No
Http://opendatacommunities.org/id/metropolitan-district-council/leeds,Leeds City Council,31/10/2015,Adult Social Care,Services For Adults Under 65 Mental/Dis,Third Party Payments,Services Provided By Other NHS Bodies,522,02-Oct-2015,1510-00543,0.00,175.00,R,Ait Mitra,No
Http://opendatacommunities.org/id/metropolitan-district-council/leeds,Leeds City Council,31/10/2015,Adult Social Care,Services For Adults Under 65 Mental/Dis,Third Party Payments,Services Provided By Other NHS Bodies,522,02-Oct-2015,1510-00544,0.00,175.00,R,Ait Mitra,No
Http://opendatacommunities.org/id/metropolitan-district-council/leeds,Leeds City Council,31/10/2015,Adult Social Care,Services For Adults Under 65 Mental/Dis,Third Party Payments,Services Provided By Other NHS Bodies,522,02-Oct-2015,1510-00545,0.00,175.00,R,Ait Mitra,No
Http://opendatacommunities.org/id/metropolitan-district-council/leeds,Leeds City Council as Accountable Body,31/10/2015,Social Services Pooled Budgets,Jcs For People With Learning Disabilitie,Third Party Payments,Residential,580,21-Oct-2015,1510-00546,0.00,6173.24,R,Aitch Care Homes,No
Http://opendatacommunities.org/id/metropolitan-district-council/leeds,Leeds City Council,31/10/2015,Adult Social Care,Services For Older People - 65 And Over,Supplies and Services,Contingency-Supplies & Services,268,02-Oct-2015,1510-00547,0.00,1194.59,R,Aj Social Care,No
Http://opendatacommunities.org/id/metropolitan-district-council/leeds,Leeds City Council,31/10/2015,Adult Social Care,Services For Older People Under 65 P/Dis,Third Party Payments,Home Care,568,02-Oct-2015,1510-00548,0.00,19.20,R,Aj Social Care,No
Http://opendatacommunities.org/id/metropolitan-district-council/leeds,Leeds City Council,31/10/2015,Adult Social Care,Services For Older People - 65 And Over,Third Party Payments,Home Care,568,16-Oct-2015,1510-00549,0.00,9429.24,R,Aj Social Care,No
Http://opendatacommunities.org/id/metropolitan-district-council/leeds,Leeds City Council,31/10/2015,Adult Social Care,Services For Older People Under 65 P/Dis,Third Party Payments,Home Care,568,16-Oct-2015,1510-00550,0.00,8688.90,R,Aj Social Care,No
Http://opendatacommunities.org/id/metropolitan-district-council/leeds,Leeds City Council,31/10/2015,Environment & Housing,Leeds Building Services,Supplies and Services,Operational Materials,205,02-Oct-2015,1510-00551,0.00,78.40,R,Ajm Fixings & Power Tools Ltd,No
Http://opendatacommunities.org/id/metropolitan-district-council/leeds,Leeds City Council,31/10/2015,Environment & Housing,Leeds Building Services,Supplies and Services,Operational Materials,205,09-Oct-2015,1510-00552,0.00,735.00,R,Ajm Fixings & Power Tools Ltd,No
Http://opendatacommunities.org/id/metropolitan-district-council/leeds,Leeds City Council,31/10/2015,Environment & Housing,Leeds Building Services,Supplies and Services,Stores - Central And Other Depots,005,13-Oct-2015,1510-00553,0.00,1287.00,R,Ajm Fixings & Power Tools Ltd,No
Http://opendatacommunities.org/id/metropolitan-district-council/leeds,Leeds City Council,31/10/2015,Central & Corporate,Commercial Services Trading Services,Supplies and Services,Operational Furniture And Equipment,203,13-Oct-2015,1510-00554,0.00,395.24,R,Ajm Fixings & Power Tools Ltd,No
Http://opendatacommunities.org/id/metropolitan-district-council/leeds,Leeds City Council,31/10/2015,Environment & Housing,Leeds Building Services,Supplies and Services,Stores - Central And Other Depots,005,13-Oct-2015,1510-00555,0.00,450.85,R,Ajm Fixings & Power Tools Ltd,No
Http://opendatacommunities.org/id/metropolitan-district-council/leeds,Leeds City Council,31/10/2015,Environment & Housing,Leeds Building Services,Supplies and Services,Operational Materials,205,16-Oct-2015,1510-00556,0.00,204.63,R,Ajm Fixings & Power Tools Ltd,No
Http://opendatacommunities.org/id/metropolitan-district-council/leeds,Leeds City Council,31/10/2015,Environment & Housing,Leeds Building Services,Supplies and Services,Operational Materials,205,16-Oct-2015,1510-00557,0.00,506.00,R,Ajm Fixings & Power Tools Ltd,No
Http://opendatacommunities.org/id/metropolitan-district-council/leeds,Leeds City Council,31/10/2015,Environment & Housing,Leeds Building Services,Supplies and Services,Stores - Central And Other Depots,005,19-Oct-2015,1510-00558,0.00,199.50,R,Ajm Fixings & Power Tools Ltd,No
Http://opendatacommunities.org/id/metropolitan-district-council/leeds,Leeds City Council,31/10/2015,Central & Corporate,Commercial Services Trading Services,Supplies and Services,Operational Furniture And Equipment,203,21-Oct-2015,1510-00559,0.00,120.24,R,Ajm Fixings & Power Tools Ltd,No
Http://opendatacommunities.org/id/metropolitan-district-council/leeds,Leeds City Council,31/10/2015,Central & Corporate,Commercial Services Trading Services,Supplies and Services,Operational Furniture And Equipment,203,21-Oct-2015,1510-00560,0.00,116.91,R,Ajm Fixings & Power Tools Ltd,No
Http://opendatacommunities.org/id/metropolitan-district-council/leeds,Leeds City Council,31/10/2015,Central & Corporate,Commercial Services Trading Services,Supplies and Services,Operational Furniture And Equipment,203,23-Oct-2015,1510-00561,0.00,1759.03,R,Ajm Fixings & Power Tools Ltd,No
Http://opendatacommunities.org/id/metropolitan-district-council/leeds,Leeds City Council,31/10/2015,Central & Corporate,Commercial Services Trading Services,Supplies and Services,Operational Materials,205,23-Oct-2015,1510-00562,0.00,116.91,R,Ajm Fixings & Power Tools Ltd,No
Http://opendatacommunities.org/id/metropolitan-district-council/leeds,Leeds City Council,31/10/2015,Central & Corporate,Commercial Services Trading Services,Supplies and Services,Operational Furniture And Equipment,203,23-Oct-2015,1510-00563,0.00,254.00,R,Ajm Fixings & Power Tools Ltd,No
Http://opendatacommunities.org/id/metropolitan-district-council/leeds,Leeds City Council,31/10/2015,Environment & Housing,Leeds Building Services,Supplies and Services,Operational Furniture And Equipment,203,29-Oct-2015,1510-00564,0.00,25.00,R,Ajm Fixings & Power Tools Ltd,No
Http://opendatacommunities.org/id/metropolitan-district-council/leeds,Leeds City Council,31/10/2015,Environment & Housing,Leeds Building Services,Supplies and Services,Stores - Central And Other Depots,005,29-Oct-2015,1510-00565,0.00,308.78,R,Ajm Fixings & Power Tools Ltd,No
Http://opendatacommunities.org/id/metropolitan-district-council/leeds,Leeds City Council,31/10/2015,Central & Corporate,Commercial Services Trading Services,Supplies and Services,Operational Furniture And Equipment,203,29-Oct-2015,1510-00566,0.00,435.85,R,Ajm Fixings & Power Tools Ltd,No
Http://opendatacommunities.org/id/metropolitan-district-council/leeds,Leeds City Council,31/10/2015,Environment & Housing,Leeds Building Services,Supplies and Services,Operational Furniture And Equipment,203,30-Oct-2015,1510-00567,0.00,6569.00,R,Ajm Fixings & Power Tools Ltd,No
Http://opendatacommunities.org/id/metropolitan-district-council/leeds,Leeds City Council,31/10/2015,Environment & Housing,Leeds Building Services,Supplies and Services,Stores - Central And Other Depots,005,30-Oct-2015,1510-00568,0.00,138.60,R,Ajm Fixings & Power Tools Ltd,No
Http://opendatacommunities.org/id/metropolitan-district-council/leeds,Leeds City Council,31/10/2015,Central & Corporate,Commercial Services Trading Services,Supplies and Services,Operational Materials,205,30-Oct-2015,1510-00569,0.00,120.00,R,Ajm Fixings & Power Tools Ltd,No
Http://opendatacommunities.org/id/metropolitan-district-council/leeds,Leeds City Council,31/10/2015,Adult Social Care,Services For Older People - 65 And Over,Third Party Payments,Nursing Home,570,21-Oct-2015,1510-00570,0.00,1279.08,R,Akari Care Ltd,No
Http://opendatacommunities.org/id/metropolitan-district-council/leeds,Leeds City Council,31/10/2015,Childrens Services,Safeguarding Targeted & Specialist,Supplies and Services,General Amenity For Clients/Residents,285,23-Oct-2015,1510-00571,0.00,20.00,R,REDACTED PERSONAL DATA,No
Http://opendatacommunities.org/id/metropolitan-district-council/leeds,Leeds City Council,31/10/2015,Childrens Services,Safeguarding Targeted & Specialist,Transport,Public Transport Expenses,310,23-Oct-2015,1510-00572,0.00,17.60,R,REDACTED PERSONAL DATA,No
Http://opendatacommunities.org/id/metropolitan-district-council/leeds,Leeds City Council,31/10/2015,Adult Social Care,Social Services Support Services,Supplies and Services,Bought In Professional Services,277,20-Oct-2015,1510-00573,0.00,3442.00,R,Al Hassan Funeral Service,No
Http://opendatacommunities.org/id/metropolitan-district-council/leeds,Leeds City Council,31/10/2015,Adult Social Care,Services For Older People - 65 And Over,Third Party Payments,Payments To Voluntary Organisations,561,01-Oct-2015,1510-00574,0.00,3000.00,R,Al Khidmat Centre,No
Http://opendatacommunities.org/id/metropolitan-district-council/leeds,Leeds City Council,31/10/2015,Childrens Services,Safeguarding Targeted & Specialist  ,Transfer Payments,Leaving Care Grants,635,07-Sep-2015,1510-00575,0.00,50.95,R,Al Murad Diy Ltd,Yes
Http://opendatacommunities.org/id/metropolitan-district-council/leeds,Leeds City Council,31/10/2015,Childrens Services,Safeguarding Targeted & Specialist  ,Transfer Payments,Leaving Care Grants,635,07-Sep-2015,1510-00576,0.00,74.16,R,Al Murad Diy Ltd,Yes
Http://opendatacommunities.org/id/metropolitan-district-council/leeds,Leeds City Council,31/10/2015,Childrens Services,Safeguarding Targeted & Specialist  ,Transfer Payments,Leaving Care Grants,635,10-Sep-2015,1510-00577,0.00,67.91,R,Al Murad Diy Ltd,Yes
Http://opendatacommunities.org/id/metropolitan-district-council/leeds,Leeds City Council,31/10/2015,Civic Enterprise Leeds,Commercial Services  ,Supplies and Services,Operational Materials,205,10-Sep-2015,1510-00578,0.00,125.00,R,Alan Brown Flowers,Yes
Http://opendatacommunities.org/id/metropolitan-district-council/leeds,Leeds City Council,31/10/2015,City Development,Planning & Sustainable Development,Support Services,Legal Disbursements,411,07-Oct-2015,1510-00579,0.00,2025.00,R,Alan Evans,No
Http://opendatacommunities.org/id/metropolitan-district-council/leeds,Leeds City Council,31/10/2015,Environment & Housing,Waste Management,Transport,Repair & Maintenance of  Plant,342,01-Oct-2015,1510-00580,0.00,297.00,R,Alan Thompson Transport,No
Http://opendatacommunities.org/id/metropolitan-district-council/leeds,Leeds City Council,31/10/2015,Environment & Housing,Waste Management,Transport,Repair & Maintenance of  Plant,342,05-Oct-2015,1510-00581,0.00,297.00,R,Alan Thompson Transport,No
Http://opendatacommunities.org/id/metropolitan-district-council/leeds,Leeds City Council,31/10/2015,Citizens and Communities,Customer Access,Supplies and Services,Other Hired And Contracted Services,265,05-Oct-2015,1510-00582,0.00,72.00,R,Alazar Araya,No
Http://opendatacommunities.org/id/metropolitan-district-council/leeds,Leeds City Council,31/10/2015,Environment & Housing,Waste Management,Supplies and Services,Other Hired And Contracted Services,265,01-Oct-2015,1510-00583,0.00,134.00,R,Alcontrol Uk Ltd,No
Http://opendatacommunities.org/id/metropolitan-district-council/leeds,Leeds City Council,31/10/2015,Environment & Housing,Waste Management,Supplies and Services,Other Hired And Contracted Services,265,09-Oct-2015,1510-00584,0.00,394.00,R,Alcontrol Uk Ltd,No
Http://opendatacommunities.org/id/metropolitan-district-council/leeds,Leeds City Council,31/10/2015,Central & Corporate,Commercial Services Trading Services,Supplies and Services,Memberships,226,05-Oct-2015,1510-00585,0.00,3810.00,R,Alcumus Sypol Limited,No
Http://opendatacommunities.org/id/metropolitan-district-council/leeds,Leeds City Council,31/10/2015,Central & Corporate,Commercial Services Trading Services,Supplies and Services,Memberships,226,07-Oct-2015,1510-00586,0.00,-3465.00,R,Alcumus Sypol Limited,No
Http://opendatacommunities.org/id/metropolitan-district-council/leeds,Leeds City Council,31/10/2015,Central & Corporate,Commercial Services Trading Services,Supplies and Services,Memberships,226,07-Oct-2015,1510-00587,0.00,3465.00,R,Alcumus Sypol Limited,No
Http://opendatacommunities.org/id/metropolitan-district-council/leeds,Leeds City Council,31/10/2015,Childrens Services,Safeguarding Targeted & Specialist  ,Supplies and Services,Food & Drink,231,02-Sep-2015,1510-00588,0.00,14.83,R,Aldi,Yes
Http://opendatacommunities.org/id/metropolitan-district-council/leeds,Leeds City Council,31/10/2015,Citizens and Communities,Customer Access,Supplies and Services,Other Hired And Contracted Services,265,05-Oct-2015,1510-00589,0.00,62.00,R,Alena Galiyeva,No
Http://opendatacommunities.org/id/metropolitan-district-council/leeds,Leeds City Council,31/10/2015,Insurance,Insurance,Supplies and Services,Insurance Claims,248,14-Oct-2015,1510-00590,0.00,5946.00,R,REDACTED PERSONAL DATA,No
Http://opendatacommunities.org/id/metropolitan-district-council/leeds,Leeds City Council,31/10/2015,Childrens Services,Safeguarding Targeted & Specialist,Support Services,Legal Disbursements,411,29-Oct-2015,1510-00591,0.00,361.00,R,Alex Taylor,No
Http://opendatacommunities.org/id/metropolitan-district-council/leeds,Leeds City Council,31/10/2015,Adult Social Care,Services For Older People Under 65 P/Dis,Third Party Payments,Residential Care Dementia,571,21-Oct-2015,1510-00592,0.00,1370.80,R,Alexander Residential Home,No
Http://opendatacommunities.org/id/metropolitan-district-council/leeds,Leeds City Council,31/10/2015,Adult Social Care,Services For Older People - 65 And Over,Third Party Payments,Residential Care Dementia,571,21-Oct-2015,1510-00593,0.00,8290.64,R,Alexander Residential Home,No
Http://opendatacommunities.org/id/metropolitan-district-council/leeds,Leeds City Council,31/10/2015,Adult Social Care,Services For Older People Under 65 P/Dis,Third Party Payments,Residential,580,21-Oct-2015,1510-00594,0.00,1294.80,R,Alexander Residential Home,No
Http://opendatacommunities.org/id/metropolitan-district-council/leeds,Leeds City Council,31/10/2015,Adult Social Care,Services For Older People - 65 And Over,Third Party Payments,Residential,580,21-Oct-2015,1510-00595,0.00,20709.46,R,Alexander Residential Home,No
Http://opendatacommunities.org/id/metropolitan-district-council/leeds,Leeds City Council,31/10/2015,Adult Social Care,Other Adult Services,Third Party Payments,Residential,580,21-Oct-2015,1510-00596,0.00,1294.80,R,Alexander Residential Home,No
Http://opendatacommunities.org/id/metropolitan-district-council/leeds,Leeds City Council,31/10/2015,Citizens and Communities,Customer Access,Income,Markets Income,935,15-Oct-2015,1510-00597,0.00,108.97,R,REDACTED PERSONAL DATA,No
Http://opendatacommunities.org/id/metropolitan-district-council/leeds,Leeds City Council,31/10/2015,Citizens and Communities,Customer Access,Supplies and Services,Other Hired And Contracted Services,265,05-Oct-2015,1510-00598,0.00,596.86,R,Alexandra Costenco,No
Http://opendatacommunities.org/id/metropolitan-district-council/leeds,Leeds City Council,31/10/2015,Citizens and Communities,Customer Access,Supplies and Services,Other Hired And Contracted Services,265,13-Oct-2015,1510-00599,0.00,55.32,R,Alexandra Costenco,No
Http://opendatacommunities.org/id/metropolitan-district-council/leeds,Leeds City Council,31/10/2015,Adult Social Care,Services For Older People - 65 And Over,Third Party Payments,Residential Care Dementia,571,21-Oct-2015,1510-00600,0.00,3935.37,R,Alexandra Court,No
Http://opendatacommunities.org/id/metropolitan-district-council/leeds,Leeds City Council,31/10/2015,Adult Social Care,Other Adult Services,Third Party Payments,Residential,580,21-Oct-2015,1510-00601,0.00,1067.80,R,Alexandra Court,No
Http://opendatacommunities.org/id/metropolitan-district-council/leeds,Leeds City Council,31/10/2015,Adult Social Care,Services For Older People - 65 And Over,Third Party Payments,Residential,580,21-Oct-2015,1510-00602,0.00,11202.40,R,Alexandra Court,No
Http://opendatacommunities.org/id/metropolitan-district-council/leeds,Leeds City Council,31/10/2015,Citizens and Communities,Customer Access,Supplies and Services,Other Hired And Contracted Services,265,05-Oct-2015,1510-00603,0.00,685.00,R,Alexandra Hirst,No
Http://opendatacommunities.org/id/metropolitan-district-council/leeds,Leeds City Council,31/10/2015,Civic Enterprise Leeds,Commercial Services,Supplies and Services,Other Hired And Contracted Services,265,23-Oct-2015,1510-00604,0.00,69.38,R,Alfa Tail Lifts Limited,No
Http://opendatacommunities.org/id/metropolitan-district-council/leeds,Leeds City Council,31/10/2015,City Development,Recreation,Supplies and Services,Other Hired And Contracted Services,265,01-Oct-2015,1510-00605,0.00,800.00,R,Alfred Bagnall & Sons (Leeds) Ltd,No
Http://opendatacommunities.org/id/metropolitan-district-council/leeds,Leeds City Council,31/10/2015,City Development,Libraries  Arts & Heritage,Premises,Maintenance Of Buildings,101,01-Oct-2015,1510-00606,0.00,6000.00,R,Alfred Bagnall & Sons (Leeds) Ltd,No
Http://opendatacommunities.org/id/metropolitan-district-council/leeds,Leeds City Council,31/10/2015,Adult Social Care,Adult Social Care,Capital,Construction,3,01-Oct-2015,1510-00607,0.00,600.00,C,Alfred Bagnall & Sons (Leeds) Ltd,No
Http://opendatacommunities.org/id/metropolitan-district-council/leeds,Leeds City Council,31/10/2015,Central & Corporate,Commercial Services Trading Services,Supplies and Services,Other Hired And Contracted Services,265,05-Oct-2015,1510-00608,0.00,6825.00,R,Alfred Bagnall & Sons (Leeds) Ltd,No
Http://opendatacommunities.org/id/metropolitan-district-council/leeds,Leeds City Council,31/10/2015,Central & Corporate,Commercial Services Trading Services,Supplies and Services,Other Hired And Contracted Services,265,05-Oct-2015,1510-00609,0.00,5981.25,R,Alfred Bagnall & Sons (Leeds) Ltd,No
Http://opendatacommunities.org/id/metropolitan-district-council/leeds,Leeds City Council,31/10/2015,Central & Corporate,Commercial Services Trading Services,Supplies and Services,Other Hired And Contracted Services,265,05-Oct-2015,1510-00610,0.00,3100.00,R,Alfred Bagnall & Sons (Leeds) Ltd,No
Http://opendatacommunities.org/id/metropolitan-district-council/leeds,Leeds City Council,31/10/2015,Central & Corporate,Commercial Services Trading Services,Supplies and Services,Other Hired And Contracted Services,265,05-Oct-2015,1510-00611,0.00,2090.00,R,Alfred Bagnall & Sons (Leeds) Ltd,No
Http://opendatacommunities.org/id/metropolitan-district-council/leeds,Leeds City Council,31/10/2015,Central & Corporate,Commercial Services Trading Services,Supplies and Services,Other Hired And Contracted Services,265,05-Oct-2015,1510-00612,0.00,2210.00,R,Alfred Bagnall & Sons (Leeds) Ltd,No
Http://opendatacommunities.org/id/metropolitan-district-council/leeds,Leeds City Council,31/10/2015,Civic Enterprise Leeds,Corporate Property Management,Premises,Maintenance Of Buildings,101,16-Oct-2015,1510-00613,0.00,490.00,R,Alfred Bagnall & Sons (Leeds) Ltd,No
Http://opendatacommunities.org/id/metropolitan-district-council/leeds,Leeds City Council,31/10/2015,City Development,Libraries  Arts & Heritage,Premises,Maintenance Of Buildings,101,30-Oct-2015,1510-00614,0.00,4200.00,R,Alfred Bagnall & Sons (Leeds) Ltd,No
Http://opendatacommunities.org/id/metropolitan-district-council/leeds,Leeds City Council,31/10/2015,Adult Social Care,Services For Older People - 65 And Over,Supplies and Services,Operational Furniture And Equipment,203,30-Oct-2015,1510-00615,0.00,13230.00,R,Alfred Bagnall & Sons (Leeds) Ltd,No
Http://opendatacommunities.org/id/metropolitan-district-council/leeds,Leeds City Council,31/10/2015,City Development,Asset Management Services,Premises,Maintenance Of Buildings,101,30-Oct-2015,1510-00616,0.00,7500.00,R,Alfred Bagnall & Sons (Leeds) Ltd,No
Http://opendatacommunities.org/id/metropolitan-district-council/leeds,Leeds City Council,31/10/2015,Central & Corporate,Commercial Services Trading Services,Supplies and Services,Other Hired And Contracted Services,265,30-Oct-2015,1510-00617,0.00,3831.00,R,Alfred Bagnall & Sons (Leeds) Ltd,No
Http://opendatacommunities.org/id/metropolitan-district-council/leeds,Leeds City Council,31/10/2015,City Development,Libraries  Arts & Heritage,Supplies and Services,Bought In Professional Services,277,30-Oct-2015,1510-00618,0.00,3890.00,R,Alfred Bagnall & Sons (Leeds) Ltd,No
Http://opendatacommunities.org/id/metropolitan-district-council/leeds,Leeds City Council,31/10/2015,Strategic Accounts,Miscellaneous,Supplies and Services,Non-Recurring Grants,227,12-Oct-2015,1510-00619,0.00,200.00,R,Al-Hassan Education Centre,No
Http://opendatacommunities.org/id/metropolitan-district-council/leeds,Leeds City Council,31/10/2015,City Development,Libraries  Arts & Heritage,Supplies and Services,Bought In Professional Services,277,05-Oct-2015,1510-00620,0.00,3339.45,R,Alison Glew,No
Http://opendatacommunities.org/id/metropolitan-district-council/leeds,Leeds City Council,31/10/2015,City Development,Libraries  Arts & Heritage,Supplies and Services,Bought In Professional Services,277,09-Oct-2015,1510-00621,0.00,1500.00,R,Alison Glew,No
Http://opendatacommunities.org/id/metropolitan-district-council/leeds,Leeds City Council,31/10/2015,City Development,Libraries  Arts & Heritage,Supplies and Services,Educational Visits,282,23-Oct-2015,1510-00622,0.00,192.00,R,Alison Glew,No
Http://opendatacommunities.org/id/metropolitan-district-council/leeds,Leeds City Council,31/10/2015,Civic Enterprise Leeds,Commercial Services  ,Supplies and Services,Crockery  Cutlery & Utensils,221,10-Sep-2015,1510-00623,0.00,343.70,R,Alison Handling Services,Yes
Http://opendatacommunities.org/id/metropolitan-district-council/leeds,Leeds City Council,31/10/2015,Insurance,Insurance,Supplies and Services,Insurance Claims,248,29-Oct-2015,1510-00624,0.00,10040.22,R,REDACTED PERSONAL DATA,No
Http://opendatacommunities.org/id/metropolitan-district-council/leeds,Leeds City Council,31/10/2015,Civic Enterprise Leeds,Commercial Services,Supplies and Services,Other Hired And Contracted Services,265,01-Oct-2015,1510-00625,0.00,208.92,R,REDACTED PERSONAL DATA,No
Http://opendatacommunities.org/id/metropolitan-district-council/leeds,Leeds City Council,31/10/2015,Civic Enterprise Leeds,Commercial Services,Supplies and Services,Other Hired And Contracted Services,265,01-Oct-2015,1510-00626,0.00,417.84,R,REDACTED PERSONAL DATA,No
Http://opendatacommunities.org/id/metropolitan-district-council/leeds,Leeds City Council,31/10/2015,Civic Enterprise Leeds,Commercial Services,Supplies and Services,Other Hired And Contracted Services,265,01-Oct-2015,1510-00627,0.00,192.08,R,REDACTED PERSONAL DATA,No
Http://opendatacommunities.org/id/metropolitan-district-council/leeds,Leeds City Council,31/10/2015,Civic Enterprise Leeds,Commercial Services,Supplies and Services,Other Hired And Contracted Services,265,01-Oct-2015,1510-00628,0.00,417.84,R,REDACTED PERSONAL DATA,No
Http://opendatacommunities.org/id/metropolitan-district-council/leeds,Leeds City Council,31/10/2015,Civic Enterprise Leeds,Commercial Services,Supplies and Services,Other Hired And Contracted Services,265,01-Oct-2015,1510-00629,0.00,208.92,R,REDACTED PERSONAL DATA,No
Http://opendatacommunities.org/id/metropolitan-district-council/leeds,Leeds City Council,31/10/2015,Civic Enterprise Leeds,Commercial Services,Supplies and Services,Other Hired And Contracted Services,265,01-Oct-2015,1510-00630,0.00,417.84,R,REDACTED PERSONAL DATA,No
Http://opendatacommunities.org/id/metropolitan-district-council/leeds,Leeds City Council,31/10/2015,Civic Enterprise Leeds,Commercial Services,Supplies and Services,Other Hired And Contracted Services,265,01-Oct-2015,1510-00631,0.00,276.29,R,REDACTED PERSONAL DATA,No
Http://opendatacommunities.org/id/metropolitan-district-council/leeds,Leeds City Council,31/10/2015,Civic Enterprise Leeds,Commercial Services,Supplies and Services,Other Hired And Contracted Services,265,01-Oct-2015,1510-00632,0.00,417.84,R,REDACTED PERSONAL DATA,No
Http://opendatacommunities.org/id/metropolitan-district-council/leeds,Leeds City Council,31/10/2015,Civic Enterprise Leeds,Commercial Services,Supplies and Services,Other Hired And Contracted Services,265,01-Oct-2015,1510-00633,0.00,279.59,R,REDACTED PERSONAL DATA,No
Http://opendatacommunities.org/id/metropolitan-district-council/leeds,Leeds City Council,31/10/2015,Civic Enterprise Leeds,Commercial Services,Supplies and Services,Other Hired And Contracted Services,265,01-Oct-2015,1510-00634,0.00,417.84,R,REDACTED PERSONAL DATA,No
Http://opendatacommunities.org/id/metropolitan-district-council/leeds,Leeds City Council,31/10/2015,Civic Enterprise Leeds,Commercial Services,Supplies and Services,Other Hired And Contracted Services,265,01-Oct-2015,1510-00635,0.00,236.79,R,REDACTED PERSONAL DATA,No
Http://opendatacommunities.org/id/metropolitan-district-council/leeds,Leeds City Council,31/10/2015,Civic Enterprise Leeds,Commercial Services,Supplies and Services,Other Hired And Contracted Services,265,01-Oct-2015,1510-00636,0.00,417.84,R,REDACTED PERSONAL DATA,No
Http://opendatacommunities.org/id/metropolitan-district-council/leeds,Leeds City Council,31/10/2015,Civic Enterprise Leeds,Commercial Services,Supplies and Services,Other Hired And Contracted Services,265,01-Oct-2015,1510-00637,0.00,279.12,R,REDACTED PERSONAL DATA,No
Http://opendatacommunities.org/id/metropolitan-district-council/leeds,Leeds City Council,31/10/2015,Childrens Services,Learning Skills & Universal,Supplies and Services,Food & Drink,231,23-Oct-2015,1510-00638,0.00,71.15,R,REDACTED PERSONAL DATA,No
Http://opendatacommunities.org/id/metropolitan-district-council/leeds,Leeds City Council,31/10/2015,Central & Corporate,Strategy and Improvement,Supplies and Services,Other Hired And Contracted Services,265,12-Oct-2015,1510-00639,0.00,500.00,R,Alistair Griffin,No
Http://opendatacommunities.org/id/metropolitan-district-council/leeds,Leeds City Council,31/10/2015,Childrens Services,Safeguarding Targeted & Specialist,Supplies and Services,General Amenity For Clients/Residents,285,07-Oct-2015,1510-00640,0.00,540.00,R,All Star Youth Entertainment,No
Http://opendatacommunities.org/id/metropolitan-district-council/leeds,Leeds City Council,31/10/2015,Childrens Services,Safeguarding Targeted & Specialist,Supplies and Services,General Amenity For Clients/Residents,285,07-Oct-2015,1510-00641,0.00,540.00,R,All Star Youth Entertainment,No
Http://opendatacommunities.org/id/metropolitan-district-council/leeds,Leeds City Council,31/10/2015,Childrens Services,Learning Skills & Universal,Third Party Payments,Services Rendered By Other Organisations,511,28-Oct-2015,1510-00642,0.00,297.12,R,All Stars Childcare,No
Http://opendatacommunities.org/id/metropolitan-district-council/leeds,Leeds City Council,31/10/2015,Civic Enterprise Leeds,Commercial Services,Supplies and Services,Postages,212,07-Oct-2015,1510-00643,0.00,4.95,R,Allanda,No
Http://opendatacommunities.org/id/metropolitan-district-council/leeds,Leeds City Council,31/10/2015,Civic Enterprise Leeds,Commercial Services,Transport,Miscellaneous Transport Related Costs,324,07-Oct-2015,1510-00644,0.00,17.97,R,Allanda,No
Http://opendatacommunities.org/id/metropolitan-district-council/leeds,Leeds City Council,31/10/2015,Adult Social Care,Services For Older People - 65 And Over,Third Party Payments,Day Centre - Learning Disabil,567,21-Oct-2015,1510-00645,0.00,4347.52,R,Allerton Avenue,No
Http://opendatacommunities.org/id/metropolitan-district-council/leeds,Leeds City Council as Accountable Body,31/10/2015,Social Services Pooled Budgets,Jcs For People With Learning Disabilitie,Third Party Payments,Day Centre - Learning Disabil,567,21-Oct-2015,1510-00646,0.00,12248.52,R,Allerton Avenue,No
Http://opendatacommunities.org/id/metropolitan-district-council/leeds,Leeds City Council,31/10/2015,Environment & Housing,Parks and Countryside,Supplies and Services,Operational Materials,205,28-Oct-2015,1510-00647,0.00,5.00,R,Allflex Europe (Uk) Ltd,No
Http://opendatacommunities.org/id/metropolitan-district-council/leeds,Leeds City Council,31/10/2015,Central & Corporate,Finance,Supplies and Services,Bank Charges,263,01-Oct-2015,1510-00648,0.00,-121.78,R,Alliance & Leicester Commercial Bank,No
Http://opendatacommunities.org/id/metropolitan-district-council/leeds,Leeds City Council,31/10/2015,Central & Corporate,Finance,Supplies and Services,Bank Charges,263,06-Oct-2015,1510-00649,0.00,3.01,R,Alliance & Leicester Commercial Bank,No
Http://opendatacommunities.org/id/metropolitan-district-council/leeds,Leeds City Council,31/10/2015,Central & Corporate,Finance,Supplies and Services,Bank Charges,263,06-Oct-2015,1510-00650,0.00,392.82,R,Alliance & Leicester Commercial Bank,No
Http://opendatacommunities.org/id/metropolitan-district-council/leeds,Leeds City Council,31/10/2015,Central & Corporate,Finance,Supplies and Services,Bank Charges,263,06-Oct-2015,1510-00651,0.00,843.93,R,Alliance & Leicester Commercial Bank,No
Http://opendatacommunities.org/id/metropolitan-district-council/leeds,Leeds City Council,31/10/2015,Central & Corporate,Finance,Supplies and Services,Bank Charges,263,06-Oct-2015,1510-00652,0.00,100.14,R,Alliance & Leicester Commercial Bank,No
Http://opendatacommunities.org/id/metropolitan-district-council/leeds,Leeds City Council,31/10/2015,Strategic Landlord,Housing Management,Supplies and Services,Other Hired And Contracted Services,265,06-Oct-2015,1510-00653,0.00,336.64,R,Alliance & Leicester Commercial Bank,No
Http://opendatacommunities.org/id/metropolitan-district-council/leeds,Leeds City Council,31/10/2015,Insurance,Insurance,Supplies and Services,Insurance Claims,248,29-Oct-2015,1510-00654,0.00,1259.00,R,Allianz Insurance Plc,No
Http://opendatacommunities.org/id/metropolitan-district-council/leeds,Leeds City Council,31/10/2015,City Development,Highways,Supplies and Services,Other Hired And Contracted Services,265,07-Oct-2015,1510-00655,0.00,3565.80,R,Allied Exploration & Geotechnics Ltd,No
Http://opendatacommunities.org/id/metropolitan-district-council/leeds,Leeds City Council,31/10/2015,City Development,Highways,Supplies and Services,Other Hired And Contracted Services,265,15-Oct-2015,1510-00656,0.00,250.00,R,Allied Exploration & Geotechnics Ltd,No
Http://opendatacommunities.org/id/metropolitan-district-council/leeds,Leeds City Council,31/10/2015,Childrens Services,Safeguarding Targeted & Specialist,Third Party Payments,Services Rendered By Voluntary Sector,505,01-Oct-2015,1510-00657,0.00,1661.87,R,Allied Healthcare,No
Http://opendatacommunities.org/id/metropolitan-district-council/leeds,Leeds City Council,31/10/2015,Adult Social Care,Services For Adults Under 65 Mental/Dis,Third Party Payments,Home Care,568,01-Oct-2015,1510-00658,0.00,746.42,R,Allied Healthcare,No
Http://opendatacommunities.org/id/metropolitan-district-council/leeds,Leeds City Council,31/10/2015,Adult Social Care,Services For Older People - 65 And Over,Third Party Payments,Home Care,568,01-Oct-2015,1510-00659,0.00,-153.76,R,Allied Healthcare,No
Http://opendatacommunities.org/id/metropolitan-district-council/leeds,Leeds City Council as Accountable Body,31/10/2015,Social Services Pooled Budgets,Jcs For People With Learning Disabilitie,Third Party Payments,Home Care,568,02-Oct-2015,1510-00660,0.00,-238.48,R,Allied Healthcare,No
Http://opendatacommunities.org/id/metropolitan-district-council/leeds,Leeds City Council as Accountable Body,31/10/2015,Social Services Pooled Budgets,Jcs For People With Learning Disabilitie,Third Party Payments,Home Care,568,02-Oct-2015,1510-00661,0.00,3824.88,R,Allied Healthcare,No
Http://opendatacommunities.org/id/metropolitan-district-council/leeds,Leeds City Council as Accountable Body,31/10/2015,Social Services Pooled Budgets,Jcs For People With Learning Disabilitie,Third Party Payments,Home Care,568,02-Oct-2015,1510-00662,0.00,37.65,R,Allied Healthcare,No
Http://opendatacommunities.org/id/metropolitan-district-council/leeds,Leeds City Council as Accountable Body,31/10/2015,Social Services Pooled Budgets,Jcs For People With Learning Disabilitie,Third Party Payments,Home Care,568,02-Oct-2015,1510-00663,0.00,3815.68,R,Allied Healthcare,No
Http://opendatacommunities.org/id/metropolitan-district-council/leeds,Leeds City Council as Accountable Body,31/10/2015,Social Services Pooled Budgets,Jcs For People With Learning Disabilitie,Third Party Payments,Home Care,568,02-Oct-2015,1510-00664,0.00,37.65,R,Allied Healthcare,No
Http://opendatacommunities.org/id/metropolitan-district-council/leeds,Leeds City Council as Accountable Body,31/10/2015,Social Services Pooled Budgets,Jcs For People With Learning Disabilitie,Third Party Payments,Home Care,568,02-Oct-2015,1510-00665,0.00,520.84,R,Allied Healthcare,No
Http://opendatacommunities.org/id/metropolitan-district-council/leeds,Leeds City Council as Accountable Body,31/10/2015,Social Services Pooled Budgets,Jcs For People With Learning Disabilitie,Third Party Payments,Home Care,568,02-Oct-2015,1510-00666,0.00,238.48,R,Allied Healthcare,No
Http://opendatacommunities.org/id/metropolitan-district-council/leeds,Leeds City Council,31/10/2015,Childrens Services,Safeguarding Targeted & Specialist,Third Party Payments,Services Rendered By Voluntary Sector,505,07-Oct-2015,1510-00667,0.00,1477.80,R,Allied Healthcare,No
Http://opendatacommunities.org/id/metropolitan-district-council/leeds,Leeds City Council,31/10/2015,Adult Social Care,Services For Older People Under 65 P/Dis,Third Party Payments,Home Care,568,09-Oct-2015,1510-00668,0.00,244.80,R,Allied Healthcare,No
Http://opendatacommunities.org/id/metropolitan-district-council/leeds,Leeds City Council as Accountable Body,31/10/2015,Social Services Pooled Budgets,Jcs For People With Learning Disabilitie,Third Party Payments,Home Care,568,09-Oct-2015,1510-00669,0.00,111.20,R,Allied Healthcare,No
Http://opendatacommunities.org/id/metropolitan-district-council/leeds,Leeds City Council as Accountable Body,31/10/2015,Social Services Pooled Budgets,Jcs For People With Learning Disabilitie,Third Party Payments,Home Care,568,09-Oct-2015,1510-00670,0.00,3815.68,R,Allied Healthcare,No
Http://opendatacommunities.org/id/metropolitan-district-council/leeds,Leeds City Council as Accountable Body,31/10/2015,Social Services Pooled Budgets,Jcs For People With Learning Disabilitie,Third Party Payments,Home Care,568,09-Oct-2015,1510-00671,0.00,539.65,R,Allied Healthcare,No
Http://opendatacommunities.org/id/metropolitan-district-council/leeds,Leeds City Council as Accountable Body,31/10/2015,Social Services Pooled Budgets,Jcs For People With Learning Disabilitie,Third Party Payments,Home Care,568,09-Oct-2015,1510-00672,0.00,106.88,R,Allied Healthcare,No
Http://opendatacommunities.org/id/metropolitan-district-council/leeds,Leeds City Council,31/10/2015,Adult Social Care,Other Generic Services,Third Party Payments,Home Care,568,13-Oct-2015,1510-00673,0.00,16382.82,R,Allied Healthcare,No
Http://opendatacommunities.org/id/metropolitan-district-council/leeds,Leeds City Council,31/10/2015,Adult Social Care,Other Generic Services,Third Party Payments,Home Care,568,13-Oct-2015,1510-00674,0.00,6248.17,R,Allied Healthcare,No
Http://opendatacommunities.org/id/metropolitan-district-council/leeds,Leeds City Council,31/10/2015,Adult Social Care,Services For Older People - 65 And Over,Third Party Payments,Home Care,568,13-Oct-2015,1510-00675,0.00,579.36,R,Allied Healthcare,No
Http://opendatacommunities.org/id/metropolitan-district-council/leeds,Leeds City Council,31/10/2015,Adult Social Care,Services For Older People - 65 And Over,Third Party Payments,Home Care,568,13-Oct-2015,1510-00676,0.00,153.00,R,Allied Healthcare,No
Http://opendatacommunities.org/id/metropolitan-district-council/leeds,Leeds City Council,31/10/2015,Adult Social Care,Services For Older People Under 65 P/Dis,Third Party Payments,Home Care,568,13-Oct-2015,1510-00677,0.00,612.00,R,Allied Healthcare,No
Http://opendatacommunities.org/id/metropolitan-district-council/leeds,Leeds City Council,31/10/2015,Adult Social Care,Services For Older People Under 65 P/Dis,Third Party Payments,Home Care,568,13-Oct-2015,1510-00678,0.00,6036.92,R,Allied Healthcare,No
Http://opendatacommunities.org/id/metropolitan-district-council/leeds,Leeds City Council,31/10/2015,Adult Social Care,Services For Older People - 65 And Over,Third Party Payments,Home Care,568,13-Oct-2015,1510-00679,0.00,341.70,R,Allied Healthcare,No
Http://opendatacommunities.org/id/metropolitan-district-council/leeds,Leeds City Council,31/10/2015,Adult Social Care,Services For Older People Under 65 P/Dis,Third Party Payments,Home Care,568,13-Oct-2015,1510-00680,0.00,1032.02,R,Allied Healthcare,No
Http://opendatacommunities.org/id/metropolitan-district-council/leeds,Leeds City Council,31/10/2015,Childrens Services,Safeguarding Targeted & Specialist,Third Party Payments,Services Rendered By Voluntary Sector,505,13-Oct-2015,1510-00681,0.00,1667.80,R,Allied Healthcare,No
Http://opendatacommunities.org/id/metropolitan-district-council/leeds,Leeds City Council,31/10/2015,Adult Social Care,Services For Older People - 65 And Over,Third Party Payments,Home Care,568,13-Oct-2015,1510-00682,0.00,387.75,R,Allied Healthcare,No
Http://opendatacommunities.org/id/metropolitan-district-council/leeds,Leeds City Council,31/10/2015,Adult Social Care,Services For Older People - 65 And Over,Third Party Payments,Home Care,568,15-Oct-2015,1510-00683,0.00,353.08,R,Allied Healthcare,No
Http://opendatacommunities.org/id/metropolitan-district-council/leeds,Leeds City Council,31/10/2015,Adult Social Care,Services For Older People Under 65 P/Dis,Third Party Payments,Home Care,568,15-Oct-2015,1510-00684,0.00,308.38,R,Allied Healthcare,No
Http://opendatacommunities.org/id/metropolitan-district-council/leeds,Leeds City Council,31/10/2015,Adult Social Care,Services For Older People - 65 And Over,Third Party Payments,Home Care,568,15-Oct-2015,1510-00685,0.00,223.82,R,Allied Healthcare,No
Http://opendatacommunities.org/id/metropolitan-district-council/leeds,Leeds City Council,31/10/2015,Adult Social Care,Services For Older People - 65 And Over,Third Party Payments,Home Care,568,15-Oct-2015,1510-00686,0.00,75.66,R,Allied Healthcare,No
Http://opendatacommunities.org/id/metropolitan-district-council/leeds,Leeds City Council,31/10/2015,Adult Social Care,Services For Older People - 65 And Over,Third Party Payments,Home Care,568,15-Oct-2015,1510-00687,0.00,359.13,R,Allied Healthcare,No
Http://opendatacommunities.org/id/metropolitan-district-council/leeds,Leeds City Council,31/10/2015,Adult Social Care,Services For Older People - 65 And Over,Third Party Payments,Home Care,568,15-Oct-2015,1510-00688,0.00,3297.52,R,Allied Healthcare,No
Http://opendatacommunities.org/id/metropolitan-district-council/leeds,Leeds City Council,31/10/2015,Adult Social Care,Services For Older People Under 65 P/Dis,Third Party Payments,Home Care,568,15-Oct-2015,1510-00689,0.00,347.78,R,Allied Healthcare,No
Http://opendatacommunities.org/id/metropolitan-district-council/leeds,Leeds City Council,31/10/2015,Adult Social Care,Services For Older People - 65 And Over,Third Party Payments,Home Care,568,15-Oct-2015,1510-00690,0.00,71.88,R,Allied Healthcare,No
Http://opendatacommunities.org/id/metropolitan-district-council/leeds,Leeds City Council,31/10/2015,Adult Social Care,Services For Older People - 65 And Over,Third Party Payments,Home Care,568,16-Oct-2015,1510-00691,0.00,3833.08,R,Allied Healthcare,No
Http://opendatacommunities.org/id/metropolitan-district-council/leeds,Leeds City Council,31/10/2015,Adult Social Care,Services For Older People Under 65 P/Dis,Third Party Payments,Home Care,568,16-Oct-2015,1510-00692,0.00,1167.04,R,Allied Healthcare,No
Http://opendatacommunities.org/id/metropolitan-district-council/leeds,Leeds City Council,31/10/2015,Adult Social Care,Services For Older People - 65 And Over,Third Party Payments,Home Care,568,16-Oct-2015,1510-00693,0.00,83.65,R,Allied Healthcare,No
Http://opendatacommunities.org/id/metropolitan-district-council/leeds,Leeds City Council,31/10/2015,Adult Social Care,Services For Older People Under 65 P/Dis,Third Party Payments,Home Care,568,16-Oct-2015,1510-00694,0.00,242.70,R,Allied Healthcare,No
Http://opendatacommunities.org/id/metropolitan-district-council/leeds,Leeds City Council,31/10/2015,Adult Social Care,Services For Older People - 65 And Over,Third Party Payments,Home Care,568,16-Oct-2015,1510-00695,0.00,1506.05,R,Allied Healthcare,No
Http://opendatacommunities.org/id/metropolitan-district-council/leeds,Leeds City Council,31/10/2015,Adult Social Care,Services For Older People - 65 And Over,Third Party Payments,Home Care,568,16-Oct-2015,1510-00696,0.00,522.09,R,Allied Healthcare,No
Http://opendatacommunities.org/id/metropolitan-district-council/leeds,Leeds City Council,31/10/2015,Adult Social Care,Services For Older People - 65 And Over,Third Party Payments,Home Care,568,16-Oct-2015,1510-00697,0.00,334.60,R,Allied Healthcare,No
Http://opendatacommunities.org/id/metropolitan-district-council/leeds,Leeds City Council as Accountable Body,31/10/2015,Social Services Pooled Budgets,Jcs For People With Learning Disabilitie,Third Party Payments,Home Care,568,19-Oct-2015,1510-00698,0.00,18.20,R,Allied Healthcare,No
Http://opendatacommunities.org/id/metropolitan-district-council/leeds,Leeds City Council,31/10/2015,Childrens Services,Safeguarding Targeted & Specialist,Third Party Payments,Services Rendered By Voluntary Sector,505,22-Oct-2015,1510-00699,0.00,1487.24,R,Allied Healthcare,No
Http://opendatacommunities.org/id/metropolitan-district-council/leeds,Leeds City Council as Accountable Body,31/10/2015,Social Services Pooled Budgets,Jcs For People With Learning Disabilitie,Third Party Payments,Home Care,568,23-Oct-2015,1510-00700,0.00,38.52,R,Allied Healthcare,No
Http://opendatacommunities.org/id/metropolitan-district-council/leeds,Leeds City Council as Accountable Body,31/10/2015,Social Services Pooled Budgets,Jcs For People With Learning Disabilitie,Third Party Payments,Home Care,568,23-Oct-2015,1510-00701,0.00,321.55,R,Allied Healthcare,No
Http://opendatacommunities.org/id/metropolitan-district-council/leeds,Leeds City Council as Accountable Body,31/10/2015,Social Services Pooled Budgets,Jcs For People With Learning Disabilitie,Third Party Payments,Home Care,568,23-Oct-2015,1510-00702,0.00,3724.74,R,Allied Healthcare,No
Http://opendatacommunities.org/id/metropolitan-district-council/leeds,Leeds City Council as Accountable Body,31/10/2015,Social Services Pooled Budgets,Jcs For People With Learning Disabilitie,Third Party Payments,Home Care,568,23-Oct-2015,1510-00703,0.00,12.55,R,Allied Healthcare,No
Http://opendatacommunities.org/id/metropolitan-district-council/leeds,Leeds City Council as Accountable Body,31/10/2015,Social Services Pooled Budgets,Jcs For People With Learning Disabilitie,Third Party Payments,Home Care,568,26-Oct-2015,1510-00704,0.00,321.55,R,Allied Healthcare,No
Http://opendatacommunities.org/id/metropolitan-district-council/leeds,Leeds City Council as Accountable Body,31/10/2015,Social Services Pooled Budgets,Jcs For People With Learning Disabilitie,Third Party Payments,Home Care,568,26-Oct-2015,1510-00705,0.00,447.98,R,Allied Healthcare,No
Http://opendatacommunities.org/id/metropolitan-district-council/leeds,Leeds City Council,31/10/2015,Childrens Services,Safeguarding Targeted & Specialist,Third Party Payments,Services Rendered By Voluntary Sector,505,27-Oct-2015,1510-00706,0.00,1667.80,R,Allied Healthcare,No
Http://opendatacommunities.org/id/metropolitan-district-council/leeds,Leeds City Council,31/10/2015,Adult Social Care,Services For Older People - 65 And Over,Third Party Payments,Home Care,568,28-Oct-2015,1510-00707,0.00,9236.50,R,Allied Healthcare,No
Http://opendatacommunities.org/id/metropolitan-district-council/leeds,Leeds City Council,31/10/2015,Adult Social Care,Services For Older People Under 65 P/Dis,Third Party Payments,Home Care,568,28-Oct-2015,1510-00708,0.00,1326.06,R,Allied Healthcare,No
Http://opendatacommunities.org/id/metropolitan-district-council/leeds,Leeds City Council,31/10/2015,Adult Social Care,Services For Older People - 65 And Over,Third Party Payments,Home Care,568,29-Oct-2015,1510-00709,0.00,9108.86,R,Allied Healthcare,No
Http://opendatacommunities.org/id/metropolitan-district-council/leeds,Leeds City Council,31/10/2015,Adult Social Care,Services For Older People Under 65 P/Dis,Third Party Payments,Home Care,568,29-Oct-2015,1510-00710,0.00,208.74,R,Allied Healthcare,No
Http://opendatacommunities.org/id/metropolitan-district-council/leeds,Leeds City Council as Accountable Body,31/10/2015,Social Services Pooled Budgets,Jcs For People With Learning Disabilitie,Third Party Payments,Home Care,568,30-Oct-2015,1510-00711,0.00,740.00,R,Allied Healthcare,No
Http://opendatacommunities.org/id/metropolitan-district-council/leeds,Leeds City Council,31/10/2015,Childrens Services,Safeguarding Targeted & Specialist  ,Third Party Payments,Rents (non supported),552,15-Sep-2015,1510-00712,0.00,376.24,R,Allpay.Net Visa And Mast,Yes
Http://opendatacommunities.org/id/metropolitan-district-council/leeds,Leeds City Council,31/10/2015,Childrens Services,Learning Skills & Universal,Transport,Fuel (Non LCC Supplies),321,07-Oct-2015,1510-00713,0.00,1764.41,R,Allstar Business Solutions Ltd,No
Http://opendatacommunities.org/id/metropolitan-district-council/leeds,Leeds City Council,31/10/2015,Environment & Housing,Parks and Countryside,Transport,Fuel (Non LCC Supplies),321,07-Oct-2015,1510-00714,0.00,68.77,R,Allstar Business Solutions Ltd,No
Http://opendatacommunities.org/id/metropolitan-district-council/leeds,Leeds City Council,31/10/2015,City Development,Highways,Transport,Fuel (Non LCC Supplies),321,07-Oct-2015,1510-00715,0.00,451.19,R,Allstar Business Solutions Ltd,No
Http://opendatacommunities.org/id/metropolitan-district-council/leeds,Leeds City Council,31/10/2015,Central & Corporate,Democratic Services,Transport,Fuel (Non LCC Supplies),321,07-Oct-2015,1510-00716,0.00,164.23,R,Allstar Business Solutions Ltd,No
Http://opendatacommunities.org/id/metropolitan-district-council/leeds,Leeds City Council,31/10/2015,Environment & Housing,Waste Management,Transport,Fuel (Non LCC Supplies),321,07-Oct-2015,1510-00717,0.00,9.20,R,Allstar Business Solutions Ltd,No
Http://opendatacommunities.org/id/metropolitan-district-council/leeds,Leeds City Council,31/10/2015,Central & Corporate,Commercial Services Trading Services,Transport,Fuel (Non LCC Supplies),321,13-Oct-2015,1510-00718,0.00,41.92,R,Allstar Business Solutions Ltd,No
Http://opendatacommunities.org/id/metropolitan-district-council/leeds,Leeds City Council,31/10/2015,Childrens Services,Safeguarding Targeted & Specialist,Support Services,Legal Disbursements,411,02-Oct-2015,1510-00719,0.00,113.32,R,Alpha Biolaboratories Limited,No
Http://opendatacommunities.org/id/metropolitan-district-council/leeds,Leeds City Council,31/10/2015,Childrens Services,Safeguarding Targeted & Specialist,Support Services,Legal Disbursements,411,02-Oct-2015,1510-00720,0.00,16.25,R,Alpha Biolaboratories Limited,No
Http://opendatacommunities.org/id/metropolitan-district-council/leeds,Leeds City Council,31/10/2015,Childrens Services,Safeguarding Targeted & Specialist,Third Party Payments,Section 17,551,02-Oct-2015,1510-00721,0.00,400.00,R,Alpha Biolaboratories Limited,No
Http://opendatacommunities.org/id/metropolitan-district-council/leeds,Leeds City Council,31/10/2015,Childrens Services,Safeguarding Targeted & Specialist,Support Services,Legal Disbursements,411,06-Oct-2015,1510-00722,0.00,161.66,R,Alpha Biolaboratories Limited,No
Http://opendatacommunities.org/id/metropolitan-district-council/leeds,Leeds City Council,31/10/2015,Childrens Services,Safeguarding Targeted & Specialist,Support Services,Legal Disbursements,411,07-Oct-2015,1510-00723,0.00,885.00,R,Alpha Biolaboratories Limited,No
Http://opendatacommunities.org/id/metropolitan-district-council/leeds,Leeds City Council,31/10/2015,Childrens Services,Safeguarding Targeted & Specialist,Support Services,Legal Disbursements,411,19-Oct-2015,1510-00724,0.00,60.00,R,Alpha Biolaboratories Limited,No
Http://opendatacommunities.org/id/metropolitan-district-council/leeds,Leeds City Council,31/10/2015,Childrens Services,Safeguarding Targeted & Specialist,Support Services,Legal Disbursements,411,19-Oct-2015,1510-00725,0.00,50.00,R,Alpha Biolaboratories Limited,No
Http://opendatacommunities.org/id/metropolitan-district-council/leeds,Leeds City Council,31/10/2015,Childrens Services,Safeguarding Targeted & Specialist,Support Services,Legal Disbursements,411,19-Oct-2015,1510-00726,0.00,127.50,R,Alpha Biolaboratories Limited,No
Http://opendatacommunities.org/id/metropolitan-district-council/leeds,Leeds City Council,31/10/2015,Childrens Services,Safeguarding Targeted & Specialist,Support Services,Legal Disbursements,411,21-Oct-2015,1510-00727,0.00,440.00,R,Alpha Biolaboratories Limited,No
Http://opendatacommunities.org/id/metropolitan-district-council/leeds,Leeds City Council,31/10/2015,Childrens Services,Safeguarding Targeted & Specialist,Support Services,Legal Disbursements,411,21-Oct-2015,1510-00728,0.00,98.75,R,Alpha Biolaboratories Limited,No
Http://opendatacommunities.org/id/metropolitan-district-council/leeds,Leeds City Council,31/10/2015,Childrens Services,Safeguarding Targeted & Specialist,Support Services,Legal Disbursements,411,28-Oct-2015,1510-00729,0.00,135.01,R,Alpha Biolaboratories Limited,No
Http://opendatacommunities.org/id/metropolitan-district-council/leeds,Leeds City Council,31/10/2015,Civic Enterprise Leeds,Business Support Centre,Supplies and Services,Other Hired And Contracted Services,265,12-Oct-2015,1510-00730,0.00,4427.00,R,Alpha Card Compact Media Ltd,No
Http://opendatacommunities.org/id/metropolitan-district-council/leeds,Leeds City Council,31/10/2015,Civic Enterprise Leeds,Corporate Property Management,Premises,Maintenance Of Buildings,101,14-Oct-2015,1510-00731,0.00,206.00,R,Alternative Drainage Company Ltd,No
Http://opendatacommunities.org/id/metropolitan-district-council/leeds,Leeds City Council,31/10/2015,City Development,Libraries  Arts & Heritage,Supplies and Services,Other Hired And Contracted Services,265,07-Oct-2015,1510-00732,0.00,600.00,R,Altofts And Normanton Brass Band,No
Http://opendatacommunities.org/id/metropolitan-district-council/leeds,Leeds City Council,31/10/2015,Adult Social Care,Other Adult Services,Third Party Payments,Nursing Home,570,21-Oct-2015,1510-00733,0.00,1401.76,R,Alwoodley Nursing Home,No
Http://opendatacommunities.org/id/metropolitan-district-council/leeds,Leeds City Council,31/10/2015,Adult Social Care,Services For Older People - 65 And Over,Third Party Payments,Nursing Home,570,21-Oct-2015,1510-00734,0.00,1408.84,R,Alwoodley Nursing Home,No
Http://opendatacommunities.org/id/metropolitan-district-council/leeds,Leeds City Council,31/10/2015,Childrens Services,Safeguarding Targeted & Specialist,Third Party Payments,Section 17,551,08-Oct-2015,1510-00735,0.00,338.00,R,REDACTED PERSONAL DATA,No
Http://opendatacommunities.org/id/metropolitan-district-council/leeds,Leeds City Council,31/10/2015,Childrens Services,Safeguarding Targeted & Specialist,Third Party Payments,Section 17,551,28-Oct-2015,1510-00736,0.00,338.00,R,REDACTED PERSONAL DATA,No
Http://opendatacommunities.org/id/metropolitan-district-council/leeds,Leeds City Council,31/10/2015,Childrens Services,Learning Skills & Universal,Income,Nursery Fees Income,926,01-Oct-2015,1510-00737,0.00,35.50,R,REDACTED PERSONAL DATA,No
Http://opendatacommunities.org/id/metropolitan-district-council/leeds,Leeds City Council,31/10/2015,Civic Enterprise Leeds,Business Support Centre,Supplies and Services,Operational Materials,205,05-Oct-2015,1510-00738,0.00,187.50,R,Amari Plastics Plc,No
Http://opendatacommunities.org/id/metropolitan-district-council/leeds,Leeds City Council,31/10/2015,City Development,Recreation  ,Supplies and Services,Memberships,226,01-Sep-2015,1510-00739,0.00,33.33,R,Amateur Rowing Ass,Yes
Http://opendatacommunities.org/id/metropolitan-district-council/leeds,Leeds City Council,31/10/2015,Childrens Services,Learning Skills & Universal,Third Party Payments,Services Rendered By Other Organisations,511,28-Oct-2015,1510-00740,0.00,1924.07,R,Amazing Grace Early Years Childcare,No
Http://opendatacommunities.org/id/metropolitan-district-council/leeds,Leeds City Council,31/10/2015,City Development,Recreation,Supplies and Services,Operational Furniture And Equipment,203,02-Oct-2015,1510-00741,0.00,567.53,R,Amazon Leisure Uk Ltd,No
Http://opendatacommunities.org/id/metropolitan-district-council/leeds,Leeds City Council,31/10/2015,City Development,Recreation,Supplies and Services,Operational Furniture And Equipment,203,07-Oct-2015,1510-00742,0.00,105.00,R,Amazon Leisure Uk Ltd,No
Http://opendatacommunities.org/id/metropolitan-district-council/leeds,Leeds City Council,31/10/2015,City Development,Recreation,Supplies and Services,Operational Furniture And Equipment,203,08-Oct-2015,1510-00743,0.00,1020.36,R,Amazon Leisure Uk Ltd,No
Http://opendatacommunities.org/id/metropolitan-district-council/leeds,Leeds City Council,31/10/2015,City Development,Recreation,Supplies and Services,Operational Furniture And Equipment,203,08-Oct-2015,1510-00744,0.00,438.09,R,Amazon Leisure Uk Ltd,No
